Workbook

Sheet ввод
A1: PTVERENE | B1: 1. Вставить почасовой профиль электроэнергии в закрашенные ячейки
A2: =мощность!B1 -> июль | B2: 2. Перейти в лист "Расчёт"
A3: Дата\Часы | B3: Фактический почасовой объем электрической энергии, кВтч | Z3: Итого
B4: 1 | C4: 2 | D4: 3 | E4: 4 | F4: 5 | G4: 6 | H4: 7 | I4: 8 | J4: 9 | K4: 10 | L4: 11 | M4: 12 | N4: 13 | O4: 14 | P4: 15 | Q4: 16 | R4: 17 | S4: 18 | T4: 19 | U4: 20 | V4: 21 | W4: 22 | X4: 23 | Y4: 24
A5: =мощность!AA4 -> 01.07.2025 | Z5: =SUM(B5:Y5) -> 0
A6: =мощность!AA5 -> 02.07.2025 | Z6: =SUM(B6:Y6) -> 0
A7: =мощность!AA6 -> 03.07.2025 | Z7: 0
A8: =мощность!AA7 -> 04.07.2025 | Z8: 0
A9: =мощность!AA8 -> 05.07.2025 | Z9: 0
A10: =мощность!AA9 -> 06.07.2025 | Z10: 0
A11: =мощность!AA10 -> 07.07.2025 | Z11: 0
A12: =мощность!AA11 -> 08.07.2025 | Z12: 0
A13: =мощность!AA12 -> 09.07.2025 | Z13: 0
A14: =мощность!AA13 -> 10.07.2025 | Z14: 0
A15: =мощность!AA14 -> 11.07.2025 | Z15: 0
A16: =мощность!AA15 -> 12.07.2025 | Z16: 0
A17: =мощность!AA16 -> 13.07.2025 | Z17: 0
A18: =мощность!AA17 -> 14.07.2025 | Z18: 0
A19: =мощность!AA18 -> 15.07.2025 | Z19: 0
A20: =мощность!AA19 -> 16.07.2025 | Z20: 0
A21: =мощность!AA20 -> 17.07.2025 | Z21: 0
A22: =мощность!AA21 -> 18.07.2025 | Z22: 0
A23: =мощность!AA22 -> 19.07.2025 | Z23: 0
A24: =мощность!AA23 -> 20.07.2025 | Z24: 0
A25: =мощность!AA24 -> 21.07.2025 | Z25: 0
A26: =мощность!AA25 -> 22.07.2025 | Z26: 0
A27: =мощность!AA26 -> 23.07.2025 | Z27: 0
A28: =мощность!AA27 -> 24.07.2025 | Z28: 0
A29: =мощность!AA28 -> 25.07.2025 | Z29: 0
A30: =мощность!AA29 -> 26.07.2025 | Z30: 0
A31: =мощность!AA30 -> 27.07.2025 | Z31: 0
A32: =мощность!AA31 -> 28.07.2025 | Z32: 0
A33: =мощность!AA32 -> 29.07.2025 | Z33: 0
A34: =мощность!AA33 -> 30.07.2025 | Z34: 0
A35: =мощность!AA34 -> 31.07.2025 | Z35: 0
A36: ИТОГО | B36: =SUM(B5:B35) -> 0 | C36: =SUM(C5:C35) -> 0 | D36: 0 | E36: 0 | F36: 0 | G36: 0 | H36: 0 | I36: 0 | J36: 0 | K36: 0 | L36: 0 | M36: 0 | N36: 0 | O36: 0 | P36: 0 | Q36: 0 | R36: 0 | S36: 0 | T36: 0 | U36: 0 | V36: 0 | W36: =SUM(W5:W35) -> 0 | X36: 0 | Y36: 0 | Z36: =SUM(Z5:Z35) -> 0

Sheet расчет
A1: Расчёт объемов и стоимости электроэнергии (мощности) выполнен за | G1: =ввод!A2 -> июль
A3: 1. Сформирован округленный фактический почасовой объем электрической энергии, кВтч
A4: Дата\Часы | B4: 1 | C4: 2 | D4: 3 | E4: 4 | F4: 5 | G4: 6 | H4: 7 | I4: 8 | J4: 9 | K4: 10 | L4: 11 | M4: 12 | N4: 13 | O4: 14 | P4: 15 | Q4: 16 | R4: 17 | S4: 18 | T4: 19 | U4: 20 | V4: 21 | W4: 22 | X4: 23 | Y4: 24 | Z4: Итого
A5: =мощность!AA4 -> 01.07.2025 | B5: =мощность!B4 -> 0 | C5: =мощность!C4 -> 0 | D5: =мощность!D4 -> 0 | E5: =мощность!E4 -> 0 | F5: =мощность!F4 -> 0 | G5: =мощность!G4 -> 0 | H5: =мощность!H4 -> 0 | I5: =мощность!I4 -> 0 | J5: =мощность!J4 -> 0 | K5: =мощность!K4 -> 0 | L5: =мощность!L4 -> 0 | M5: =мощность!M4 -> 0 | N5: =мощность!N4 -> 0 | O5: =мощность!O4 -> 0 | P5: =мощность!P4 -> 0 | Q5: =мощность!Q4 -> 0 | R5: =мощность!R4 -> 0 | S5: =мощность!S4 -> 0 | T5: =мощность!T4 -> 0 | U5: =мощность!U4 -> 0 | V5: =мощность!V4 -> 0 | W5: =мощность!W4 -> 0 | X5: =мощность!X4 -> 0 | Y5: =мощность!Y4 -> 0 | Z5: =SUM(B5:Y5) -> 0
A6: =мощность!AA5 -> 02.07.2025 | B6: =мощность!B5 -> 0 | C6: =мощность!C5 -> 0 | D6: =мощность!D5 -> 0 | E6: =мощность!E5 -> 0 | F6: =мощность!F5 -> 0 | G6: =мощность!G5 -> 0 | H6: =мощность!H5 -> 0 | I6: =мощность!I5 -> 0 | J6: =мощность!J5 -> 0 | K6: =мощность!K5 -> 0 | L6: =мощность!L5 -> 0 | M6: =мощность!M5 -> 0 | N6: =мощность!N5 -> 0 | O6: =мощность!O5 -> 0 | P6: =мощность!P5 -> 0 | Q6: =мощность!Q5 -> 0 | R6: =мощность!R5 -> 0 | S6: =мощность!S5 -> 0 | T6: =мощность!T5 -> 0 | U6: =мощность!U5 -> 0 | V6: =мощность!V5 -> 0 | W6: =мощность!W5 -> 0 | X6: =мощность!X5 -> 0 | Y6: =мощность!Y5 -> 0 | Z6: =SUM(B6:Y6) -> 0
A7: =мощность!AA6 -> 03.07.2025 | B7: =мощность!B6 -> 0 | C7: =мощность!C6 -> 0 | D7: =мощность!D6 -> 0 | E7: =мощность!E6 -> 0 | F7: =мощность!F6 -> 0 | G7: =мощность!G6 -> 0 | H7: =мощность!H6 -> 0 | I7: =мощность!I6 -> 0 | J7: =мощность!J6 -> 0 | K7: =мощность!K6 -> 0 | L7: =мощность!L6 -> 0 | M7: =мощность!M6 -> 0 | N7: =мощность!N6 -> 0 | O7: =мощность!O6 -> 0 | P7: =мощность!P6 -> 0 | Q7: =мощность!Q6 -> 0 | R7: =мощность!R6 -> 0 | S7: =мощность!S6 -> 0 | T7: =мощность!T6 -> 0 | U7: =мощность!U6 -> 0 | V7: =мощность!V6 -> 0 | W7: =мощность!W6 -> 0 | X7: =мощность!X6 -> 0 | Y7: =мощность!Y6 -> 0 | Z7: 0
A8: =мощность!AA7 -> 04.07.2025 | B8: =мощность!B7 -> 0 | C8: =мощность!C7 -> 0 | D8: =мощность!D7 -> 0 | E8: =мощность!E7 -> 0 | F8: =мощность!F7 -> 0 | G8: =мощность!G7 -> 0 | H8: =мощность!H7 -> 0 | I8: =мощность!I7 -> 0 | J8: =мощность!J7 -> 0 | K8: =мощность!K7 -> 0 | L8: =мощность!L7 -> 0 | M8: =мощность!M7 -> 0 | N8: =мощность!N7 -> 0 | O8: =мощность!O7 -> 0 | P8: =мощность!P7 -> 0 | Q8: =мощность!Q7 -> 0 | R8: =мощность!R7 -> 0 | S8: =мощность!S7 -> 0 | T8: =мощность!T7 -> 0 | U8: =мощность!U7 -> 0 | V8: =мощность!V7 -> 0 | W8: =мощность!W7 -> 0 | X8: =мощность!X7 -> 0 | Y8: =мощность!Y7 -> 0 | Z8: 0
A9: =мощность!AA8 -> 05.07.2025 | B9: =мощность!B8 -> 0 | C9: =мощность!C8 -> 0 | D9: =мощность!D8 -> 0 | E9: =мощность!E8 -> 0 | F9: =мощность!F8 -> 0 | G9: =мощность!G8 -> 0 | H9: =мощность!H8 -> 0 | I9: =мощность!I8 -> 0 | J9: =мощность!J8 -> 0 | K9: =мощность!K8 -> 0 | L9: =мощность!L8 -> 0 | M9: =мощность!M8 -> 0 | N9: =мощность!N8 -> 0 | O9: =мощность!O8 -> 0 | P9: =мощность!P8 -> 0 | Q9: =мощность!Q8 -> 0 | R9: =мощность!R8 -> 0 | S9: =мощность!S8 -> 0 | T9: =мощность!T8 -> 0 | U9: =мощность!U8 -> 0 | V9: =мощность!V8 -> 0 | W9: =мощность!W8 -> 0 | X9: =мощность!X8 -> 0 | Y9: =мощность!Y8 -> 0 | Z9: 0
A10: =мощность!AA9 -> 06.07.2025 | B10: =мощность!B9 -> 0 | C10: =мощность!C9 -> 0 | D10: =мощность!D9 -> 0 | E10: =мощность!E9 -> 0 | F10: =мощность!F9 -> 0 | G10: =мощность!G9 -> 0 | H10: =мощность!H9 -> 0 | I10: =мощность!I9 -> 0 | J10: =мощность!J9 -> 0 | K10: =мощность!K9 -> 0 | L10: =мощность!L9 -> 0 | M10: =мощность!M9 -> 0 | N10: =мощность!N9 -> 0 | O10: =мощность!O9 -> 0 | P10: =мощность!P9 -> 0 | Q10: =мощность!Q9 -> 0 | R10: =мощность!R9 -> 0 | S10: =мощность!S9 -> 0 | T10: =мощность!T9 -> 0 | U10: =мощность!U9 -> 0 | V10: =мощность!V9 -> 0 | W10: =мощность!W9 -> 0 | X10: =мощность!X9 -> 0 | Y10: =мощность!Y9 -> 0 | Z10: 0
A11: =мощность!AA10 -> 07.07.2025 | B11: =мощность!B10 -> 0 | C11: =мощность!C10 -> 0 | D11: =мощность!D10 -> 0 | E11: =мощность!E10 -> 0 | F11: =мощность!F10 -> 0 | G11: =мощность!G10 -> 0 | H11: =мощность!H10 -> 0 | I11: =мощность!I10 -> 0 | J11: =мощность!J10 -> 0 | K11: =мощность!K10 -> 0 | L11: =мощность!L10 -> 0 | M11: =мощность!M10 -> 0 | N11: =мощность!N10 -> 0 | O11: =мощность!O10 -> 0 | P11: =мощность!P10 -> 0 | Q11: =мощность!Q10 -> 0 | R11: =мощность!R10 -> 0 | S11: =мощность!S10 -> 0 | T11: =мощность!T10 -> 0 | U11: =мощность!U10 -> 0 | V11: =мощность!V10 -> 0 | W11: =мощность!W10 -> 0 | X11: =мощность!X10 -> 0 | Y11: =мощность!Y10 -> 0 | Z11: 0
A12: =мощность!AA11 -> 08.07.2025 | B12: =мощность!B11 -> 0 | C12: =мощность!C11 -> 0 | D12: =мощность!D11 -> 0 | E12: =мощность!E11 -> 0 | F12: =мощность!F11 -> 0 | G12: =мощность!G11 -> 0 | H12: =мощность!H11 -> 0 | I12: =мощность!I11 -> 0 | J12: =мощность!J11 -> 0 | K12: =мощность!K11 -> 0 | L12: =мощность!L11 -> 0 | M12: =мощность!M11 -> 0 | N12: =мощность!N11 -> 0 | O12: =мощность!O11 -> 0 | P12: =мощность!P11 -> 0 | Q12: =мощность!Q11 -> 0 | R12: =мощность!R11 -> 0 | S12: =мощность!S11 -> 0 | T12: =мощность!T11 -> 0 | U12: =мощность!U11 -> 0 | V12: =мощность!V11 -> 0 | W12: =мощность!W11 -> 0 | X12: =мощность!X11 -> 0 | Y12: =мощность!Y11 -> 0 | Z12: 0
A13: =мощность!AA12 -> 09.07.2025 | B13: =мощность!B12 -> 0 | C13: =мощность!C12 -> 0 | D13: =мощность!D12 -> 0 | E13: =мощность!E12 -> 0 | F13: =мощность!F12 -> 0 | G13: =мощность!G12 -> 0 | H13: =мощность!H12 -> 0 | I13: =мощность!I12 -> 0 | J13: =мощность!J12 -> 0 | K13: =мощность!K12 -> 0 | L13: =мощность!L12 -> 0 | M13: =мощность!M12 -> 0 | N13: =мощность!N12 -> 0 | O13: =мощность!O12 -> 0 | P13: =мощность!P12 -> 0 | Q13: =мощность!Q12 -> 0 | R13: =мощность!R12 -> 0 | S13: =мощность!S12 -> 0 | T13: =мощность!T12 -> 0 | U13: =мощность!U12 -> 0 | V13: =мощность!V12 -> 0 | W13: =мощность!W12 -> 0 | X13: =мощность!X12 -> 0 | Y13: =мощность!Y12 -> 0 | Z13: 0
A14: =мощность!AA13 -> 10.07.2025 | B14: =мощность!B13 -> 0 | C14: =мощность!C13 -> 0 | D14: =мощность!D13 -> 0 | E14: =мощность!E13 -> 0 | F14: =мощность!F13 -> 0 | G14: =мощность!G13 -> 0 | H14: =мощность!H13 -> 0 | I14: =мощность!I13 -> 0 | J14: =мощность!J13 -> 0 | K14: =мощность!K13 -> 0 | L14: =мощность!L13 -> 0 | M14: =мощность!M13 -> 0 | N14: =мощность!N13 -> 0 | O14: =мощность!O13 -> 0 | P14: =мощность!P13 -> 0 | Q14: =мощность!Q13 -> 0 | R14: =мощность!R13 -> 0 | S14: =мощность!S13 -> 0 | T14: =мощность!T13 -> 0 | U14: =мощность!U13 -> 0 | V14: =мощность!V13 -> 0 | W14: =мощность!W13 -> 0 | X14: =мощность!X13 -> 0 | Y14: =мощность!Y13 -> 0 | Z14: 0
A15: =мощность!AA14 -> 11.07.2025 | B15: =мощность!B14 -> 0 | C15: =мощность!C14 -> 0 | D15: =мощность!D14 -> 0 | E15: =мощность!E14 -> 0 | F15: =мощность!F14 -> 0 | G15: =мощность!G14 -> 0 | H15: =мощность!H14 -> 0 | I15: =мощность!I14 -> 0 | J15: =мощность!J14 -> 0 | K15: =мощность!K14 -> 0 | L15: =мощность!L14 -> 0 | M15: =мощность!M14 -> 0 | N15: =мощность!N14 -> 0 | O15: =мощность!O14 -> 0 | P15: =мощность!P14 -> 0 | Q15: =мощность!Q14 -> 0 | R15: =мощность!R14 -> 0 | S15: =мощность!S14 -> 0 | T15: =мощность!T14 -> 0 | U15: =мощность!U14 -> 0 | V15: =мощность!V14 -> 0 | W15: =мощность!W14 -> 0 | X15: =мощность!X14 -> 0 | Y15: =мощность!Y14 -> 0 | Z15: 0
A16: =мощность!AA15 -> 12.07.2025 | B16: =мощность!B15 -> 0 | C16: =мощность!C15 -> 0 | D16: =мощность!D15 -> 0 | E16: =мощность!E15 -> 0 | F16: =мощность!F15 -> 0 | G16: =мощность!G15 -> 0 | H16: =мощность!H15 -> 0 | I16: =мощность!I15 -> 0 | J16: =мощность!J15 -> 0 | K16: =мощность!K15 -> 0 | L16: =мощность!L15 -> 0 | M16: =мощность!M15 -> 0 | N16: =мощность!N15 -> 0 | O16: =мощность!O15 -> 0 | P16: =мощность!P15 -> 0 | Q16: =мощность!Q15 -> 0 | R16: =мощность!R15 -> 0 | S16: =мощность!S15 -> 0 | T16: =мощность!T15 -> 0 | U16: =мощность!U15 -> 0 | V16: =мощность!V15 -> 0 | W16: =мощность!W15 -> 0 | X16: =мощность!X15 -> 0 | Y16: =мощность!Y15 -> 0 | Z16: 0
A17: =мощность!AA16 -> 13.07.2025 | B17: =мощность!B16 -> 0 | C17: =мощность!C16 -> 0 | D17: =мощность!D16 -> 0 | E17: =мощность!E16 -> 0 | F17: =мощность!F16 -> 0 | G17: =мощность!G16 -> 0 | H17: =мощность!H16 -> 0 | I17: =мощность!I16 -> 0 | J17: =мощность!J16 -> 0 | K17: =мощность!K16 -> 0 | L17: =мощность!L16 -> 0 | M17: =мощность!M16 -> 0 | N17: =мощность!N16 -> 0 | O17: =мощность!O16 -> 0 | P17: =мощность!P16 -> 0 | Q17: =мощность!Q16 -> 0 | R17: =мощность!R16 -> 0 | S17: =мощность!S16 -> 0 | T17: =мощность!T16 -> 0 | U17: =мощность!U16 -> 0 | V17: =мощность!V16 -> 0 | W17: =мощность!W16 -> 0 | X17: =мощность!X16 -> 0 | Y17: =мощность!Y16 -> 0 | Z17: 0
A18: =мощность!AA17 -> 14.07.2025 | B18: =мощность!B17 -> 0 | C18: =мощность!C17 -> 0 | D18: =мощность!D17 -> 0 | E18: =мощность!E17 -> 0 | F18: =мощность!F17 -> 0 | G18: =мощность!G17 -> 0 | H18: =мощность!H17 -> 0 | I18: =мощность!I17 -> 0 | J18: =мощность!J17 -> 0 | K18: =мощность!K17 -> 0 | L18: =мощность!L17 -> 0 | M18: =мощность!M17 -> 0 | N18: =мощность!N17 -> 0 | O18: =мощность!O17 -> 0 | P18: =мощность!P17 -> 0 | Q18: =мощность!Q17 -> 0 | R18: =мощность!R17 -> 0 | S18: =мощность!S17 -> 0 | T18: =мощность!T17 -> 0 | U18: =мощность!U17 -> 0 | V18: =мощность!V17 -> 0 | W18: =мощность!W17 -> 0 | X18: =мощность!X17 -> 0 | Y18: =мощность!Y17 -> 0 | Z18: 0
A19: =мощность!AA18 -> 15.07.2025 | B19: =мощность!B18 -> 0 | C19: =мощность!C18 -> 0 | D19: =мощность!D18 -> 0 | E19: =мощность!E18 -> 0 | F19: =мощность!F18 -> 0 | G19: =мощность!G18 -> 0 | H19: =мощность!H18 -> 0 | I19: =мощность!I18 -> 0 | J19: =мощность!J18 -> 0 | K19: =мощность!K18 -> 0 | L19: =мощность!L18 -> 0 | M19: =мощность!M18 -> 0 | N19: =мощность!N18 -> 0 | O19: =мощность!O18 -> 0 | P19: =мощность!P18 -> 0 | Q19: =мощность!Q18 -> 0 | R19: =мощность!R18 -> 0 | S19: =мощность!S18 -> 0 | T19: =мощность!T18 -> 0 | U19: =мощность!U18 -> 0 | V19: =мощность!V18 -> 0 | W19: =мощность!W18 -> 0 | X19: =мощность!X18 -> 0 | Y19: =мощность!Y18 -> 0 | Z19: 0
A20: =мощность!AA19 -> 16.07.2025 | B20: =мощность!B19 -> 0 | C20: =мощность!C19 -> 0 | D20: =мощность!D19 -> 0 | E20: =мощность!E19 -> 0 | F20: =мощность!F19 -> 0 | G20: =мощность!G19 -> 0 | H20: =мощность!H19 -> 0 | I20: =мощность!I19 -> 0 | J20: =мощность!J19 -> 0 | K20: =мощность!K19 -> 0 | L20: =мощность!L19 -> 0 | M20: =мощность!M19 -> 0 | N20: =мощность!N19 -> 0 | O20: =мощность!O19 -> 0 | P20: =мощность!P19 -> 0 | Q20: =мощность!Q19 -> 0 | R20: =мощность!R19 -> 0 | S20: =мощность!S19 -> 0 | T20: =мощность!T19 -> 0 | U20: =мощность!U19 -> 0 | V20: =мощность!V19 -> 0 | W20: =мощность!W19 -> 0 | X20: =мощность!X19 -> 0 | Y20: =мощность!Y19 -> 0 | Z20: 0
A21: =мощность!AA20 -> 17.07.2025 | B21: =мощность!B20 -> 0 | C21: =мощность!C20 -> 0 | D21: =мощность!D20 -> 0 | E21: =мощность!E20 -> 0 | F21: =мощность!F20 -> 0 | G21: =мощность!G20 -> 0 | H21: =мощность!H20 -> 0 | I21: =мощность!I20 -> 0 | J21: =мощность!J20 -> 0 | K21: =мощность!K20 -> 0 | L21: =мощность!L20 -> 0 | M21: =мощность!M20 -> 0 | N21: =мощность!N20 -> 0 | O21: =мощность!O20 -> 0 | P21: =мощность!P20 -> 0 | Q21: =мощность!Q20 -> 0 | R21: =мощность!R20 -> 0 | S21: =мощность!S20 -> 0 | T21: =мощность!T20 -> 0 | U21: =мощность!U20 -> 0 | V21: =мощность!V20 -> 0 | W21: =мощность!W20 -> 0 | X21: =мощность!X20 -> 0 | Y21: =мощность!Y20 -> 0 | Z21: 0
A22: =мощность!AA21 -> 18.07.2025 | B22: =мощность!B21 -> 0 | C22: =мощность!C21 -> 0 | D22: =мощность!D21 -> 0 | E22: =мощность!E21 -> 0 | F22: =мощность!F21 -> 0 | G22: =мощность!G21 -> 0 | H22: =мощность!H21 -> 0 | I22: =мощность!I21 -> 0 | J22: =мощность!J21 -> 0 | K22: =мощность!K21 -> 0 | L22: =мощность!L21 -> 0 | M22: =мощность!M21 -> 0 | N22: =мощность!N21 -> 0 | O22: =мощность!O21 -> 0 | P22: =мощность!P21 -> 0 | Q22: =мощность!Q21 -> 0 | R22: =мощность!R21 -> 0 | S22: =мощность!S21 -> 0 | T22: =мощность!T21 -> 0 | U22: =мощность!U21 -> 0 | V22: =мощность!V21 -> 0 | W22: =мощность!W21 -> 0 | X22: =мощность!X21 -> 0 | Y22: =мощность!Y21 -> 0 | Z22: 0
A23: =мощность!AA22 -> 19.07.2025 | B23: =мощность!B22 -> 0 | C23: =мощность!C22 -> 0 | D23: =мощность!D22 -> 0 | E23: =мощность!E22 -> 0 | F23: =мощность!F22 -> 0 | G23: =мощность!G22 -> 0 | H23: =мощность!H22 -> 0 | I23: =мощность!I22 -> 0 | J23: =мощность!J22 -> 0 | K23: =мощность!K22 -> 0 | L23: =мощность!L22 -> 0 | M23: =мощность!M22 -> 0 | N23: =мощность!N22 -> 0 | O23: =мощность!O22 -> 0 | P23: =мощность!P22 -> 0 | Q23: =мощность!Q22 -> 0 | R23: =мощность!R22 -> 0 | S23: =мощность!S22 -> 0 | T23: =мощность!T22 -> 0 | U23: =мощность!U22 -> 0 | V23: =мощность!V22 -> 0 | W23: =мощность!W22 -> 0 | X23: =мощность!X22 -> 0 | Y23: =мощность!Y22 -> 0 | Z23: 0
A24: =мощность!AA23 -> 20.07.2025 | B24: =мощность!B23 -> 0 | C24: =мощность!C23 -> 0 | D24: =мощность!D23 -> 0 | E24: =мощность!E23 -> 0 | F24: =мощность!F23 -> 0 | G24: =мощность!G23 -> 0 | H24: =мощность!H23 -> 0 | I24: =мощность!I23 -> 0 | J24: =мощность!J23 -> 0 | K24: =мощность!K23 -> 0 | L24: =мощность!L23 -> 0 | M24: =мощность!M23 -> 0 | N24: =мощность!N23 -> 0 | O24: =мощность!O23 -> 0 | P24: =мощность!P23 -> 0 | Q24: =мощность!Q23 -> 0 | R24: =мощность!R23 -> 0 | S24: =мощность!S23 -> 0 | T24: =мощность!T23 -> 0 | U24: =мощность!U23 -> 0 | V24: =мощность!V23 -> 0 | W24: =мощность!W23 -> 0 | X24: =мощность!X23 -> 0 | Y24: =мощность!Y23 -> 0 | Z24: 0
A25: =мощность!AA24 -> 21.07.2025 | B25: =мощность!B24 -> 0 | C25: =мощность!C24 -> 0 | D25: =мощность!D24 -> 0 | E25: =мощность!E24 -> 0 | F25: =мощность!F24 -> 0 | G25: =мощность!G24 -> 0 | H25: =мощность!H24 -> 0 | I25: =мощность!I24 -> 0 | J25: =мощность!J24 -> 0 | K25: =мощность!K24 -> 0 | L25: =мощность!L24 -> 0 | M25: =мощность!M24 -> 0 | N25: =мощность!N24 -> 0 | O25: =мощность!O24 -> 0 | P25: =мощность!P24 -> 0 | Q25: =мощность!Q24 -> 0 | R25: =мощность!R24 -> 0 | S25: =мощность!S24 -> 0 | T25: =мощность!T24 -> 0 | U25: =мощность!U24 -> 0 | V25: =мощность!V24 -> 0 | W25: =мощность!W24 -> 0 | X25: =мощность!X24 -> 0 | Y25: =мощность!Y24 -> 0 | Z25: 0
A26: =мощность!AA25 -> 22.07.2025 | B26: =мощность!B25 -> 0 | C26: =мощность!C25 -> 0 | D26: =мощность!D25 -> 0 | E26: =мощность!E25 -> 0 | F26: =мощность!F25 -> 0 | G26: =мощность!G25 -> 0 | H26: =мощность!H25 -> 0 | I26: =мощность!I25 -> 0 | J26: =мощность!J25 -> 0 | K26: =мощность!K25 -> 0 | L26: =мощность!L25 -> 0 | M26: =мощность!M25 -> 0 | N26: =мощность!N25 -> 0 | O26: =мощность!O25 -> 0 | P26: =мощность!P25 -> 0 | Q26: =мощность!Q25 -> 0 | R26: =мощность!R25 -> 0 | S26: =мощность!S25 -> 0 | T26: =мощность!T25 -> 0 | U26: =мощность!U25 -> 0 | V26: =мощность!V25 -> 0 | W26: =мощность!W25 -> 0 | X26: =мощность!X25 -> 0 | Y26: =мощность!Y25 -> 0 | Z26: 0
A27: =мощность!AA26 -> 23.07.2025 | B27: =мощность!B26 -> 0 | C27: =мощность!C26 -> 0 | D27: =мощность!D26 -> 0 | E27: =мощность!E26 -> 0 | F27: =мощность!F26 -> 0 | G27: =мощность!G26 -> 0 | H27: =мощность!H26 -> 0 | I27: =мощность!I26 -> 0 | J27: =мощность!J26 -> 0 | K27: =мощность!K26 -> 0 | L27: =мощность!L26 -> 0 | M27: =мощность!M26 -> 0 | N27: =мощность!N26 -> 0 | O27: =мощность!O26 -> 0 | P27: =мощность!P26 -> 0 | Q27: =мощность!Q26 -> 0 | R27: =мощность!R26 -> 0 | S27: =мощность!S26 -> 0 | T27: =мощность!T26 -> 0 | U27: =мощность!U26 -> 0 | V27: =мощность!V26 -> 0 | W27: =мощность!W26 -> 0 | X27: =мощность!X26 -> 0 | Y27: =мощность!Y26 -> 0 | Z27: 0
A28: =мощность!AA27 -> 24.07.2025 | B28: =мощность!B27 -> 0 | C28: =мощность!C27 -> 0 | D28: =мощность!D27 -> 0 | E28: =мощность!E27 -> 0 | F28: =мощность!F27 -> 0 | G28: =мощность!G27 -> 0 | H28: =мощность!H27 -> 0 | I28: =мощность!I27 -> 0 | J28: =мощность!J27 -> 0 | K28: =мощность!K27 -> 0 | L28: =мощность!L27 -> 0 | M28: =мощность!M27 -> 0 | N28: =мощность!N27 -> 0 | O28: =мощность!O27 -> 0 | P28: =мощность!P27 -> 0 | Q28: =мощность!Q27 -> 0 | R28: =мощность!R27 -> 0 | S28: =мощность!S27 -> 0 | T28: =мощность!T27 -> 0 | U28: =мощность!U27 -> 0 | V28: =мощность!V27 -> 0 | W28: =мощность!W27 -> 0 | X28: =мощность!X27 -> 0 | Y28: =мощность!Y27 -> 0 | Z28: 0
A29: =мощность!AA28 -> 25.07.2025 | B29: =мощность!B28 -> 0 | C29: =мощность!C28 -> 0 | D29: =мощность!D28 -> 0 | E29: =мощность!E28 -> 0 | F29: =мощность!F28 -> 0 | G29: =мощность!G28 -> 0 | H29: =мощность!H28 -> 0 | I29: =мощность!I28 -> 0 | J29: =мощность!J28 -> 0 | K29: =мощность!K28 -> 0 | L29: =мощность!L28 -> 0 | M29: =мощность!M28 -> 0 | N29: =мощность!N28 -> 0 | O29: =мощность!O28 -> 0 | P29: =мощность!P28 -> 0 | Q29: =мощность!Q28 -> 0 | R29: =мощность!R28 -> 0 | S29: =мощность!S28 -> 0 | T29: =мощность!T28 -> 0 | U29: =мощность!U28 -> 0 | V29: =мощность!V28 -> 0 | W29: =мощность!W28 -> 0 | X29: =мощность!X28 -> 0 | Y29: =мощность!Y28 -> 0 | Z29: 0
A30: =мощность!AA29 -> 26.07.2025 | B30: =мощность!B29 -> 0 | C30: =мощность!C29 -> 0 | D30: =мощность!D29 -> 0 | E30: =мощность!E29 -> 0 | F30: =мощность!F29 -> 0 | G30: =мощность!G29 -> 0 | H30: =мощность!H29 -> 0 | I30: =мощность!I29 -> 0 | J30: =мощность!J29 -> 0 | K30: =мощность!K29 -> 0 | L30: =мощность!L29 -> 0 | M30: =мощность!M29 -> 0 | N30: =мощность!N29 -> 0 | O30: =мощность!O29 -> 0 | P30: =мощность!P29 -> 0 | Q30: =мощность!Q29 -> 0 | R30: =мощность!R29 -> 0 | S30: =мощность!S29 -> 0 | T30: =мощность!T29 -> 0 | U30: =мощность!U29 -> 0 | V30: =мощность!V29 -> 0 | W30: =мощность!W29 -> 0 | X30: =мощность!X29 -> 0 | Y30: =мощность!Y29 -> 0 | Z30: 0
A31: =мощность!AA30 -> 27.07.2025 | B31: =мощность!B30 -> 0 | C31: =мощность!C30 -> 0 | D31: =мощность!D30 -> 0 | E31: =мощность!E30 -> 0 | F31: =мощность!F30 -> 0 | G31: =мощность!G30 -> 0 | H31: =мощность!H30 -> 0 | I31: =мощность!I30 -> 0 | J31: =мощность!J30 -> 0 | K31: =мощность!K30 -> 0 | L31: =мощность!L30 -> 0 | M31: =мощность!M30 -> 0 | N31: =мощность!N30 -> 0 | O31: =мощность!O30 -> 0 | P31: =мощность!P30 -> 0 | Q31: =мощность!Q30 -> 0 | R31: =мощность!R30 -> 0 | S31: =мощность!S30 -> 0 | T31: =мощность!T30 -> 0 | U31: =мощность!U30 -> 0 | V31: =мощность!V30 -> 0 | W31: =мощность!W30 -> 0 | X31: =мощность!X30 -> 0 | Y31: =мощность!Y30 -> 0 | Z31: 0
A32: =мощность!AA31 -> 28.07.2025 | B32: =мощность!B31 -> 0 | C32: =мощность!C31 -> 0 | D32: =мощность!D31 -> 0 | E32: =мощность!E31 -> 0 | F32: =мощность!F31 -> 0 | G32: =мощность!G31 -> 0 | H32: =мощность!H31 -> 0 | I32: =мощность!I31 -> 0 | J32: =мощность!J31 -> 0 | K32: =мощность!K31 -> 0 | L32: =мощность!L31 -> 0 | M32: =мощность!M31 -> 0 | N32: =мощность!N31 -> 0 | O32: =мощность!O31 -> 0 | P32: =мощность!P31 -> 0 | Q32: =мощность!Q31 -> 0 | R32: =мощность!R31 -> 0 | S32: =мощность!S31 -> 0 | T32: =мощность!T31 -> 0 | U32: =мощность!U31 -> 0 | V32: =мощность!V31 -> 0 | W32: =мощность!W31 -> 0 | X32: =мощность!X31 -> 0 | Y32: =мощность!Y31 -> 0 | Z32: 0
A33: =мощность!AA32 -> 29.07.2025 | B33: =мощность!B32 -> 0 | C33: =мощность!C32 -> 0 | D33: =мощность!D32 -> 0 | E33: =мощность!E32 -> 0 | F33: =мощность!F32 -> 0 | G33: =мощность!G32 -> 0 | H33: =мощность!H32 -> 0 | I33: =мощность!I32 -> 0 | J33: =мощность!J32 -> 0 | K33: =мощность!K32 -> 0 | L33: =мощность!L32 -> 0 | M33: =мощность!M32 -> 0 | N33: =мощность!N32 -> 0 | O33: =мощность!O32 -> 0 | P33: =мощность!P32 -> 0 | Q33: =мощность!Q32 -> 0 | R33: =мощность!R32 -> 0 | S33: =мощность!S32 -> 0 | T33: =мощность!T32 -> 0 | U33: =мощность!U32 -> 0 | V33: =мощность!V32 -> 0 | W33: =мощность!W32 -> 0 | X33: =мощность!X32 -> 0 | Y33: =мощность!Y32 -> 0 | Z33: 0
A34: =мощность!AA33 -> 30.07.2025 | B34: =мощность!B33 -> 0 | C34: =мощность!C33 -> 0 | D34: =мощность!D33 -> 0 | E34: =мощность!E33 -> 0 | F34: =мощность!F33 -> 0 | G34: =мощность!G33 -> 0 | H34: =мощность!H33 -> 0 | I34: =мощность!I33 -> 0 | J34: =мощность!J33 -> 0 | K34: =мощность!K33 -> 0 | L34: =мощность!L33 -> 0 | M34: =мощность!M33 -> 0 | N34: =мощность!N33 -> 0 | O34: =мощность!O33 -> 0 | P34: =мощность!P33 -> 0 | Q34: =мощность!Q33 -> 0 | R34: =мощность!R33 -> 0 | S34: =мощность!S33 -> 0 | T34: =мощность!T33 -> 0 | U34: =мощность!U33 -> 0 | V34: =мощность!V33 -> 0 | W34: =мощность!W33 -> 0 | X34: =мощность!X33 -> 0 | Y34: =мощность!Y33 -> 0 | Z34: 0
A35: =мощность!AA34 -> 31.07.2025 | B35: =мощность!B34 -> 0 | C35: =мощность!C34 -> 0 | D35: =мощность!D34 -> 0 | E35: =мощность!E34 -> 0 | F35: =мощность!F34 -> 0 | G35: =мощность!G34 -> 0 | H35: =мощность!H34 -> 0 | I35: =мощность!I34 -> 0 | J35: =мощность!J34 -> 0 | K35: =мощность!K34 -> 0 | L35: =мощность!L34 -> 0 | M35: =мощность!M34 -> 0 | N35: =мощность!N34 -> 0 | O35: =мощность!O34 -> 0 | P35: =мощность!P34 -> 0 | Q35: =мощность!Q34 -> 0 | R35: =мощность!R34 -> 0 | S35: =мощность!S34 -> 0 | T35: =мощность!T34 -> 0 | U35: =мощность!U34 -> 0 | V35: =мощность!V34 -> 0 | W35: =мощность!W34 -> 0 | X35: =мощность!X34 -> 0 | Y35: =мощность!Y34 -> 0 | Z35: 0
A36: ИТОГО | B36: =SUM(B5:B35) -> 0 | C36: =SUM(C5:C35) -> 0 | D36: 0 | E36: 0 | F36: 0 | G36: 0 | H36: 0 | I36: 0 | J36: 0 | K36: 0 | L36: 0 | M36: 0 | N36: 0 | O36: 0 | P36: 0 | Q36: 0 | R36: 0 | S36: 0 | T36: 0 | U36: 0 | V36: 0 | W36: =SUM(W5:W35) -> 0 | X36: 0 | Y36: 0 | Z36: =SUM(Z5:Z35) -> 0
A38: 2. Объем и стоиомсть электрической энергии и мощности по договорам купли-продажи электрической энергии (мощности) для розничной генерации (за исключением микрогенерации)
A39: Показатель | B39: Объём, МВтч (МВт) | C39: Цена руб/МВтч (МВт) | D39: Стоимость без НДС, руб. | E39: Стоимость с НДС, руб. | F39: в т.ч. НДС (20%)
A40: Электроэнергия | B40: =цены!J749/1000 -> 0 | C40: =IF(B40=0,"",цены!K749) ->  | D40: =IF(B40=0,"",цены!L749) ->  | E40: =IF(B40=0,"",цены!M749) ->  | F40: =IF(B40=0,"",цены!N749) -> 
A41: Мощность | B41: =цены!J750/1000 -> 0 | C41: =IF(B41=0,"",цены!K750) ->  | D41: =IF(B41=0,"",цены!L750) ->  | E41: =IF(B41=0,"",цены!M750) ->  | F41: =IF(B41=0,"",цены!N750) -> 
A42: ИТОГО | B42: Х | D42: =SUM(D40:D41) -> 0 | E42: =SUM(E40:E41) -> 0 | F42: =SUM(F40:F41) -> 0

Sheet мощность (hidden)
A1: Месяц | B1: =IF(E1=1,"январь",IF(E1=2,"февраль",IF(E1=3,"март",IF(E1=4,"апрель",IF(E1=5,"май",IF(E1=6,"июнь",IF(E1=7,"июль",IF(E1=8,"август",IF(E1=9,"сентябрь",IF(E1=10,"октябрь",IF(E1=11,"ноябрь",IF(E1=12,"декабрь",0)))))))))))) -> июль | E1: =MONTH(H1) -> 7 | H1: 2025-07-01 | I1: заполнять зеленые ячейки | AA1: =TODAY() -> 2025-09-02
A2: Дата\Часы | B2: Фактический почасовой объем производства электрической энергии (мощности), кВтч | Z2: Итого | AC2: max | AD2: в
B3: 1 | C3: 2 | D3: 3 | E3: 4 | F3: 5 | G3: 6 | H3: 7 | I3: 8 | J3: 9 | K3: 10 | L3: 11 | M3: 12 | N3: 13 | O3: 14 | P3: 15 | Q3: 16 | R3: 17 | S3: 18 | T3: 19 | U3: 20 | V3: 21 | W3: 22 | X3: 23 | Y3: 24 | AC3: час | AD3: дата
A4: 1 | B4: =округл!$B$66 -> 0 | C4: =округл!$B$67 -> 0 | D4: =округл!$B$68 -> 0 | E4: =округл!$B$69 -> 0 | F4: =округл!$B$70 -> 0 | G4: =округл!$B$71 -> 0 | H4: =округл!$B$72 -> 0 | I4: =округл!$B$73 -> 0 | J4: =округл!$B$74 -> 0 | K4: =округл!$B$75 -> 0 | L4: =округл!$B$76 -> 0 | M4: =округл!$B$77 -> 0 | N4: =округл!$B$78 -> 0 | O4: =округл!$B$79 -> 0 | P4: =округл!$B$80 -> 0 | Q4: =округл!$B$81 -> 0 | R4: =округл!$B$82 -> 0 | S4: =округл!$B$83 -> 0 | T4: =округл!$B$84 -> 0 | U4: =округл!$B$85 -> 0 | V4: =округл!$B$86 -> 0 | W4: =округл!$B$87 -> 0 | X4: =округл!$B$88 -> 0 | Y4: =округл!$B$89 -> 0 | Z4: =SUM(B4:Y4) -> 0 | AA4: =B43 -> 01.07.2025 | AB4: =IF(AD4="выходной","",INDEX($B$4:$Y$34,A4,LOOKUP(AC4,$B$3:$Y$3))) -> 0 | AC4: =VLOOKUP(AA4,'[1]Лист 1'!$A$7:$B$60,2,0) -> 11 | AD4: =IF($B$45="",$B$44,$B$45) -> рабочий
A5: 2 | B5: =округл!$C$66 -> 0 | C5: =округл!$C$67 -> 0 | D5: =округл!$C$68 -> 0 | E5: =округл!$C$69 -> 0 | F5: =округл!$C$70 -> 0 | G5: =округл!$C$71 -> 0 | H5: =округл!$C$72 -> 0 | I5: =округл!$C$73 -> 0 | J5: =округл!$C$74 -> 0 | K5: =округл!$C$75 -> 0 | L5: =округл!$C$76 -> 0 | M5: =округл!$C$77 -> 0 | N5: =округл!$C$78 -> 0 | O5: =округл!$C$79 -> 0 | P5: =округл!$C$80 -> 0 | Q5: =округл!$C$81 -> 0 | R5: =округл!$C$82 -> 0 | S5: =округл!$C$83 -> 0 | T5: =округл!$C$84 -> 0 | U5: =округл!$C$85 -> 0 | V5: =округл!$C$86 -> 0 | W5: =округл!$C$87 -> 0 | X5: =округл!$C$88 -> 0 | Y5: =округл!$C$89 -> 0 | Z5: =SUM(B5:Y5) -> 0 | AA5: =$C$43 -> 02.07.2025 | AB5: =IF(AD5="выходной","",INDEX($B$4:$Y$34,A5,LOOKUP(AC5,$B$3:$Y$3))) -> 0 | AC5: =VLOOKUP(AA5,'[1]Лист 1'!$A$7:$B$60,2,0) -> 10 | AD5: =IF($C$45="",$C$44,$C$45) -> рабочий
A6: 3 | B6: =округл!$D$66 -> 0 | C6: =округл!$D$67 -> 0 | D6: =округл!$D$68 -> 0 | E6: =округл!$D$69 -> 0 | F6: =округл!$D$70 -> 0 | G6: =округл!$D$71 -> 0 | H6: =округл!$D$72 -> 0 | I6: =округл!$D$73 -> 0 | J6: =округл!$D$74 -> 0 | K6: =округл!$D$75 -> 0 | L6: =округл!$D$76 -> 0 | M6: =округл!$D$77 -> 0 | N6: =округл!$D$78 -> 0 | O6: =округл!$D$79 -> 0 | P6: =округл!$D$80 -> 0 | Q6: =округл!$D$81 -> 0 | R6: =округл!$D$82 -> 0 | S6: =округл!$D$83 -> 0 | T6: =округл!$D$84 -> 0 | U6: =округл!$D$85 -> 0 | V6: =округл!$D$86 -> 0 | W6: =округл!$D$87 -> 0 | X6: =округл!$D$88 -> 0 | Y6: =округл!$D$89 -> 0 | Z6: 0 | AA6: =$D$43 -> 03.07.2025 | AB6: =IF(AD6="выходной","",INDEX($B$4:$Y$34,A6,LOOKUP(AC6,$B$3:$Y$3))) -> 0 | AC6: =VLOOKUP(AA6,'[1]Лист 1'!$A$7:$B$60,2,0) -> 12 | AD6: =IF($D$45="",$D$44,$D$45) -> рабочий
A7: 4 | B7: =округл!$E$66 -> 0 | C7: =округл!$E$67 -> 0 | D7: =округл!$E$68 -> 0 | E7: =округл!$E$69 -> 0 | F7: =округл!$E$70 -> 0 | G7: =округл!$E$71 -> 0 | H7: =округл!$E$72 -> 0 | I7: =округл!$E$73 -> 0 | J7: =округл!$E$74 -> 0 | K7: =округл!$E$75 -> 0 | L7: =округл!$E$76 -> 0 | M7: =округл!$E$77 -> 0 | N7: =округл!$E$78 -> 0 | O7: =округл!$E$79 -> 0 | P7: =округл!$E$80 -> 0 | Q7: =округл!$E$81 -> 0 | R7: =округл!$E$82 -> 0 | S7: =округл!$E$83 -> 0 | T7: =округл!$E$84 -> 0 | U7: =округл!$E$85 -> 0 | V7: =округл!$E$86 -> 0 | W7: =округл!$E$87 -> 0 | X7: =округл!$E$88 -> 0 | Y7: =округл!$E$89 -> 0 | Z7: 0 | AA7: =$E$43 -> 04.07.2025 | AB7: 0 | AC7: =VLOOKUP(AA7,'[1]Лист 1'!$A$7:$B$60,2,0) -> 11 | AD7: =IF($E$45="",$E$44,$E$45) -> рабочий
A8: 5 | B8: =округл!$F$66 -> 0 | C8: =округл!$F$67 -> 0 | D8: =округл!$F$68 -> 0 | E8: =округл!$F$69 -> 0 | F8: =округл!$F$70 -> 0 | G8: =округл!$F$71 -> 0 | H8: =округл!$F$72 -> 0 | I8: =округл!$F$73 -> 0 | J8: =округл!$F$74 -> 0 | K8: =округл!$F$75 -> 0 | L8: =округл!$F$76 -> 0 | M8: =округл!$F$77 -> 0 | N8: =округл!$F$78 -> 0 | O8: =округл!$F$79 -> 0 | P8: =округл!$F$80 -> 0 | Q8: =округл!$F$81 -> 0 | R8: =округл!$F$82 -> 0 | S8: =округл!$F$83 -> 0 | T8: =округл!$F$84 -> 0 | U8: =округл!$F$85 -> 0 | V8: =округл!$F$86 -> 0 | W8: =округл!$F$87 -> 0 | X8: =округл!$F$88 -> 0 | Y8: =округл!$F$89 -> 0 | Z8: 0 | AA8: =$F$43 -> 05.07.2025 | AC8: =VLOOKUP(AA8,'[1]Лист 1'!$A$7:$B$60,2,0) ->  | AD8: =IF($F$45="",$F$44,$F$45) -> выходной
A9: 6 | B9: =округл!$G$66 -> 0 | C9: =округл!$G$67 -> 0 | D9: =округл!$G$68 -> 0 | E9: =округл!$G$69 -> 0 | F9: =округл!$G$70 -> 0 | G9: =округл!$G$71 -> 0 | H9: =округл!$G$72 -> 0 | I9: =округл!$G$73 -> 0 | J9: =округл!$G$74 -> 0 | K9: =округл!$G$75 -> 0 | L9: =округл!$G$76 -> 0 | M9: =округл!$G$77 -> 0 | N9: =округл!$G$78 -> 0 | O9: =округл!$G$79 -> 0 | P9: =округл!$G$80 -> 0 | Q9: =округл!$G$81 -> 0 | R9: =округл!$G$82 -> 0 | S9: =округл!$G$83 -> 0 | T9: =округл!$G$84 -> 0 | U9: =округл!$G$85 -> 0 | V9: =округл!$G$86 -> 0 | W9: =округл!$G$87 -> 0 | X9: =округл!$G$88 -> 0 | Y9: =округл!$G$89 -> 0 | Z9: 0 | AA9: =$G$43 -> 06.07.2025 | AB9: =IF(AD9="выходной","",INDEX($B$4:$Y$34,A9,LOOKUP(AC9,$B$3:$Y$3))) ->  | AC9: =VLOOKUP(AA9,'[1]Лист 1'!$A$7:$B$60,2,0) ->  | AD9: =IF($G$45="",$G$44,$G$45) -> выходной
A10: 7 | B10: =округл!$H$66 -> 0 | C10: =округл!$H$67 -> 0 | D10: =округл!$H$68 -> 0 | E10: =округл!$H$69 -> 0 | F10: =округл!$H$70 -> 0 | G10: =округл!$H$71 -> 0 | H10: =округл!$H$72 -> 0 | I10: =округл!$H$73 -> 0 | J10: =округл!$H$74 -> 0 | K10: =округл!$H$75 -> 0 | L10: =округл!$H$76 -> 0 | M10: =округл!$H$77 -> 0 | N10: =округл!$H$78 -> 0 | O10: =округл!$H$79 -> 0 | P10: =округл!$H$80 -> 0 | Q10: =округл!$H$81 -> 0 | R10: =округл!$H$82 -> 0 | S10: =округл!$H$83 -> 0 | T10: =округл!$H$84 -> 0 | U10: =округл!$H$85 -> 0 | V10: =округл!$H$86 -> 0 | W10: =округл!$H$87 -> 0 | X10: =округл!$H$88 -> 0 | Y10: =округл!$H$89 -> 0 | Z10: 0 | AA10: =$H$43 -> 07.07.2025 | AB10: 0 | AC10: =VLOOKUP(AA10,'[1]Лист 1'!$A$7:$B$60,2,0) -> 11 | AD10: =IF($H$45="",$H$44,$H$45) -> рабочий
A11: 8 | B11: =округл!$I$66 -> 0 | C11: =округл!$I$67 -> 0 | D11: =округл!$I$68 -> 0 | E11: =округл!$I$69 -> 0 | F11: =округл!$I$70 -> 0 | G11: =округл!$I$71 -> 0 | H11: =округл!$I$72 -> 0 | I11: =округл!$I$73 -> 0 | J11: =округл!$I$74 -> 0 | K11: =округл!$I$75 -> 0 | L11: =округл!$I$76 -> 0 | M11: =округл!$I$77 -> 0 | N11: =округл!$I$78 -> 0 | O11: =округл!$I$79 -> 0 | P11: =округл!$I$80 -> 0 | Q11: =округл!$I$81 -> 0 | R11: =округл!$I$82 -> 0 | S11: =округл!$I$83 -> 0 | T11: =округл!$I$84 -> 0 | U11: =округл!$I$85 -> 0 | V11: =округл!$I$86 -> 0 | W11: =округл!$I$87 -> 0 | X11: =округл!$I$88 -> 0 | Y11: =округл!$I$89 -> 0 | Z11: 0 | AA11: =$I$43 -> 08.07.2025 | AB11: =IF(AD11="выходной","",INDEX($B$4:$Y$34,A11,LOOKUP(AC11,$B$3:$Y$3))) -> 0 | AC11: =VLOOKUP(AA11,'[1]Лист 1'!$A$7:$B$60,2,0) -> 12 | AD11: =IF($I$45="",$I$44,$I$45) -> рабочий
A12: 9 | B12: =округл!$J$66 -> 0 | C12: =округл!$J$67 -> 0 | D12: =округл!$J$68 -> 0 | E12: =округл!$J$69 -> 0 | F12: =округл!$J$70 -> 0 | G12: =округл!$J$71 -> 0 | H12: =округл!$J$72 -> 0 | I12: =округл!$J$73 -> 0 | J12: =округл!$J$74 -> 0 | K12: =округл!$J$75 -> 0 | L12: =округл!$J$76 -> 0 | M12: =округл!$J$77 -> 0 | N12: =округл!$J$78 -> 0 | O12: =округл!$J$79 -> 0 | P12: =округл!$J$80 -> 0 | Q12: =округл!$J$81 -> 0 | R12: =округл!$J$82 -> 0 | S12: =округл!$J$83 -> 0 | T12: =округл!$J$84 -> 0 | U12: =округл!$J$85 -> 0 | V12: =округл!$J$86 -> 0 | W12: =округл!$J$87 -> 0 | X12: =округл!$J$88 -> 0 | Y12: =округл!$J$89 -> 0 | Z12: 0 | AA12: =$J$43 -> 09.07.2025 | AB12: =IF(AD12="выходной","",INDEX($B$4:$Y$34,A12,LOOKUP(AC12,$B$3:$Y$3))) -> 0 | AC12: =VLOOKUP(AA12,'[1]Лист 1'!$A$7:$B$60,2,0) -> 12 | AD12: =IF($J$45="",$J$44,$J$45) -> рабочий
A13: 10 | B13: =округл!$K$66 -> 0 | C13: =округл!$K$67 -> 0 | D13: =округл!$K$68 -> 0 | E13: =округл!$K$69 -> 0 | F13: =округл!$K$70 -> 0 | G13: =округл!$K$71 -> 0 | H13: =округл!$K$72 -> 0 | I13: =округл!$K$73 -> 0 | J13: =округл!$K$74 -> 0 | K13: =округл!$K$75 -> 0 | L13: =округл!$K$76 -> 0 | M13: =округл!$K$77 -> 0 | N13: =округл!$K$78 -> 0 | O13: =округл!$K$79 -> 0 | P13: =округл!$K$80 -> 0 | Q13: =округл!$K$81 -> 0 | R13: =округл!$K$82 -> 0 | S13: =округл!$K$83 -> 0 | T13: =округл!$K$84 -> 0 | U13: =округл!$K$85 -> 0 | V13: =округл!$K$86 -> 0 | W13: =округл!$K$87 -> 0 | X13: =округл!$K$88 -> 0 | Y13: =округл!$K$89 -> 0 | Z13: 0 | AA13: =$K$43 -> 10.07.2025 | AB13: 0 | AC13: =VLOOKUP(AA13,'[1]Лист 1'!$A$7:$B$60,2,0) -> 12 | AD13: =IF($K$45="",$K$44,$K$45) -> рабочий
A14: 11 | B14: =округл!$L$66 -> 0 | C14: =округл!$L$67 -> 0 | D14: =округл!$L$68 -> 0 | E14: =округл!$L$69 -> 0 | F14: =округл!$L$70 -> 0 | G14: =округл!$L$71 -> 0 | H14: =округл!$L$72 -> 0 | I14: =округл!$L$73 -> 0 | J14: =округл!$L$74 -> 0 | K14: =округл!$L$75 -> 0 | L14: =округл!$L$76 -> 0 | M14: =округл!$L$77 -> 0 | N14: =округл!$L$78 -> 0 | O14: =округл!$L$79 -> 0 | P14: =округл!$L$80 -> 0 | Q14: =округл!$L$81 -> 0 | R14: =округл!$L$82 -> 0 | S14: =округл!$L$83 -> 0 | T14: =округл!$L$84 -> 0 | U14: =округл!$L$85 -> 0 | V14: =округл!$L$86 -> 0 | W14: =округл!$L$87 -> 0 | X14: =округл!$L$88 -> 0 | Y14: =округл!$L$89 -> 0 | Z14: 0 | AA14: =$L$43 -> 11.07.2025 | AB14: =IF(AD14="выходной","",INDEX($B$4:$Y$34,A14,LOOKUP(AC14,$B$3:$Y$3))) -> 0 | AC14: =VLOOKUP(AA14,'[1]Лист 1'!$A$7:$B$60,2,0) -> 12 | AD14: =IF($L$45="",$L$44,$L$45) -> рабочий
A15: 12 | B15: =округл!$M$66 -> 0 | C15: =округл!$M$67 -> 0 | D15: =округл!$M$68 -> 0 | E15: =округл!$M$69 -> 0 | F15: =округл!$M$70 -> 0 | G15: =округл!$M$71 -> 0 | H15: =округл!$M$72 -> 0 | I15: =округл!$M$73 -> 0 | J15: =округл!$M$74 -> 0 | K15: =округл!$M$75 -> 0 | L15: =округл!$M$76 -> 0 | M15: =округл!$M$77 -> 0 | N15: =округл!$M$78 -> 0 | O15: =округл!$M$79 -> 0 | P15: =округл!$M$80 -> 0 | Q15: =округл!$M$81 -> 0 | R15: =округл!$M$82 -> 0 | S15: =округл!$M$83 -> 0 | T15: =округл!$M$84 -> 0 | U15: =округл!$M$85 -> 0 | V15: =округл!$M$86 -> 0 | W15: =округл!$M$87 -> 0 | X15: =округл!$M$88 -> 0 | Y15: =округл!$M$89 -> 0 | Z15: 0 | AA15: =$M$43 -> 12.07.2025 | AC15: =VLOOKUP(AA15,'[1]Лист 1'!$A$7:$B$60,2,0) ->  | AD15: =IF($M$45="",$M$44,$M$45) -> выходной
A16: 13 | B16: =округл!$N$66 -> 0 | C16: =округл!$N$67 -> 0 | D16: =округл!$N$68 -> 0 | E16: =округл!$N$69 -> 0 | F16: =округл!$N$70 -> 0 | G16: =округл!$N$71 -> 0 | H16: =округл!$N$72 -> 0 | I16: =округл!$N$73 -> 0 | J16: =округл!$N$74 -> 0 | K16: =округл!$N$75 -> 0 | L16: =округл!$N$76 -> 0 | M16: =округл!$N$77 -> 0 | N16: =округл!$N$78 -> 0 | O16: =округл!$N$79 -> 0 | P16: =округл!$N$80 -> 0 | Q16: =округл!$N$81 -> 0 | R16: =округл!$N$82 -> 0 | S16: =округл!$N$83 -> 0 | T16: =округл!$N$84 -> 0 | U16: =округл!$N$85 -> 0 | V16: =округл!$N$86 -> 0 | W16: =округл!$N$87 -> 0 | X16: =округл!$N$88 -> 0 | Y16: =округл!$N$89 -> 0 | Z16: 0 | AA16: =$N$43 -> 13.07.2025 | AC16: =VLOOKUP(AA16,'[1]Лист 1'!$A$7:$B$60,2,0) ->  | AD16: =IF($N$45="",$N$44,$N$45) -> выходной
A17: 14 | B17: =округл!$O$66 -> 0 | C17: =округл!$O$67 -> 0 | D17: =округл!$O$68 -> 0 | E17: =округл!$O$69 -> 0 | F17: =округл!$O$70 -> 0 | G17: =округл!$O$71 -> 0 | H17: =округл!$O$72 -> 0 | I17: =округл!$O$73 -> 0 | J17: =округл!$O$74 -> 0 | K17: =округл!$O$75 -> 0 | L17: =округл!$O$76 -> 0 | M17: =округл!$O$77 -> 0 | N17: =округл!$O$78 -> 0 | O17: =округл!$O$79 -> 0 | P17: =округл!$O$80 -> 0 | Q17: =округл!$O$81 -> 0 | R17: =округл!$O$82 -> 0 | S17: =округл!$O$83 -> 0 | T17: =округл!$O$84 -> 0 | U17: =округл!$O$85 -> 0 | V17: =округл!$O$86 -> 0 | W17: =округл!$O$87 -> 0 | X17: =округл!$O$88 -> 0 | Y17: =округл!$O$89 -> 0 | Z17: 0 | AA17: =O$43 -> 14.07.2025 | AB17: 0 | AC17: =VLOOKUP(AA17,'[1]Лист 1'!$A$7:$B$60,2,0) -> 12 | AD17: =IF($O$45="",$O$44,$O$45) -> рабочий
A18: 15 | B18: =округл!$P$66 -> 0 | C18: =округл!$P$67 -> 0 | D18: =округл!$P$68 -> 0 | E18: =округл!$P$69 -> 0 | F18: =округл!$P$70 -> 0 | G18: =округл!$P$71 -> 0 | H18: =округл!$P$72 -> 0 | I18: =округл!$P$73 -> 0 | J18: =округл!$P$74 -> 0 | K18: =округл!$P$75 -> 0 | L18: =округл!$P$76 -> 0 | M18: =округл!$P$77 -> 0 | N18: =округл!$P$78 -> 0 | O18: =округл!$P$79 -> 0 | P18: =округл!$P$80 -> 0 | Q18: =округл!$P$81 -> 0 | R18: =округл!$P$82 -> 0 | S18: =округл!$P$83 -> 0 | T18: =округл!$P$84 -> 0 | U18: =округл!$P$85 -> 0 | V18: =округл!$P$86 -> 0 | W18: =округл!$P$87 -> 0 | X18: =округл!$P$88 -> 0 | Y18: =округл!$P$89 -> 0 | Z18: 0 | AA18: =$P$43 -> 15.07.2025 | AB18: 0 | AC18: =VLOOKUP(AA18,'[1]Лист 1'!$A$7:$B$60,2,0) -> 11 | AD18: =IF($P$45="",$P$44,$P$45) -> рабочий
A19: 16 | B19: =округл!$Q$66 -> 0 | C19: =округл!$Q$67 -> 0 | D19: =округл!$Q$68 -> 0 | E19: =округл!$Q$69 -> 0 | F19: =округл!$Q$70 -> 0 | G19: =округл!$Q$71 -> 0 | H19: =округл!$Q$72 -> 0 | I19: =округл!$Q$73 -> 0 | J19: =округл!$Q$74 -> 0 | K19: =округл!$Q$75 -> 0 | L19: =округл!$Q$76 -> 0 | M19: =округл!$Q$77 -> 0 | N19: =округл!$Q$78 -> 0 | O19: =округл!$Q$79 -> 0 | P19: =округл!$Q$80 -> 0 | Q19: =округл!$Q$81 -> 0 | R19: =округл!$Q$82 -> 0 | S19: =округл!$Q$83 -> 0 | T19: =округл!$Q$84 -> 0 | U19: =округл!$Q$85 -> 0 | V19: =округл!$Q$86 -> 0 | W19: =округл!$Q$87 -> 0 | X19: =округл!$Q$88 -> 0 | Y19: =округл!$Q$89 -> 0 | Z19: 0 | AA19: =$Q$43 -> 16.07.2025 | AB19: 0 | AC19: =VLOOKUP(AA19,'[1]Лист 1'!$A$7:$B$60,2,0) -> 11 | AD19: =IF($Q$45="",$Q$44,$Q$45) -> рабочий
A20: 17 | B20: =округл!$R$66 -> 0 | C20: =округл!$R$67 -> 0 | D20: =округл!$R$68 -> 0 | E20: =округл!$R$69 -> 0 | F20: =округл!$R$70 -> 0 | G20: =округл!$R$71 -> 0 | H20: =округл!$R$72 -> 0 | I20: =округл!$R$73 -> 0 | J20: =округл!$R$74 -> 0 | K20: =округл!$R$75 -> 0 | L20: =округл!$R$76 -> 0 | M20: =округл!$R$77 -> 0 | N20: =округл!$R$78 -> 0 | O20: =округл!$R$79 -> 0 | P20: =округл!$R$80 -> 0 | Q20: =округл!$R$81 -> 0 | R20: =округл!$R$82 -> 0 | S20: =округл!$R$83 -> 0 | T20: =округл!$R$84 -> 0 | U20: =округл!$R$85 -> 0 | V20: =округл!$R$86 -> 0 | W20: =округл!$R$87 -> 0 | X20: =округл!$R$88 -> 0 | Y20: =округл!$R$89 -> 0 | Z20: 0 | AA20: =$R$43 -> 17.07.2025 | AB20: 0 | AC20: =VLOOKUP(AA20,'[1]Лист 1'!$A$7:$B$60,2,0) -> 12 | AD20: =IF($R$45="",$R$44,$R$45) -> рабочий
A21: 18 | B21: =округл!$S$66 -> 0 | C21: =округл!$S$67 -> 0 | D21: =округл!$S$68 -> 0 | E21: =округл!$S$69 -> 0 | F21: =округл!$S$70 -> 0 | G21: =округл!$S$71 -> 0 | H21: =округл!$S$72 -> 0 | I21: =округл!$S$73 -> 0 | J21: =округл!$S$74 -> 0 | K21: =округл!$S$75 -> 0 | L21: =округл!$S$76 -> 0 | M21: =округл!$S$77 -> 0 | N21: =округл!$S$78 -> 0 | O21: =округл!$S$79 -> 0 | P21: =округл!$S$80 -> 0 | Q21: =округл!$S$81 -> 0 | R21: =округл!$S$82 -> 0 | S21: =округл!$S$83 -> 0 | T21: =округл!$S$84 -> 0 | U21: =округл!$S$85 -> 0 | V21: =округл!$S$86 -> 0 | W21: =округл!$S$87 -> 0 | X21: =округл!$S$88 -> 0 | Y21: =округл!$S$89 -> 0 | Z21: 0 | AA21: =$S$43 -> 18.07.2025 | AB21: 0 | AC21: =VLOOKUP(AA21,'[1]Лист 1'!$A$7:$B$60,2,0) -> 12 | AD21: =IF($S$45="",$S$44,$S$45) -> рабочий
A22: 19 | B22: =округл!$T$66 -> 0 | C22: =округл!$T$67 -> 0 | D22: =округл!$T$68 -> 0 | E22: =округл!$T$69 -> 0 | F22: =округл!$T$70 -> 0 | G22: =округл!$T$71 -> 0 | H22: =округл!$T$72 -> 0 | I22: =округл!$T$73 -> 0 | J22: =округл!$T$74 -> 0 | K22: =округл!$T$75 -> 0 | L22: =округл!$T$76 -> 0 | M22: =округл!$T$77 -> 0 | N22: =округл!$T$78 -> 0 | O22: =округл!$T$79 -> 0 | P22: =округл!$T$80 -> 0 | Q22: =округл!$T$81 -> 0 | R22: =округл!$T$82 -> 0 | S22: =округл!$T$83 -> 0 | T22: =округл!$T$84 -> 0 | U22: =округл!$T$85 -> 0 | V22: =округл!$T$86 -> 0 | W22: =округл!$T$87 -> 0 | X22: =округл!$T$88 -> 0 | Y22: =округл!$T$89 -> 0 | Z22: 0 | AA22: =$T$43 -> 19.07.2025 | AC22: =VLOOKUP(AA22,'[1]Лист 1'!$A$7:$B$60,2,0) ->  | AD22: =IF($T$45="",$T$44,$T$45) -> выходной
A23: 20 | B23: =округл!$U$66 -> 0 | C23: =округл!$U$67 -> 0 | D23: =округл!$U$68 -> 0 | E23: =округл!$U$69 -> 0 | F23: =округл!$U$70 -> 0 | G23: =округл!$U$71 -> 0 | H23: =округл!$U$72 -> 0 | I23: =округл!$U$73 -> 0 | J23: =округл!$U$74 -> 0 | K23: =округл!$U$75 -> 0 | L23: =округл!$U$76 -> 0 | M23: =округл!$U$77 -> 0 | N23: =округл!$U$78 -> 0 | O23: =округл!$U$79 -> 0 | P23: =округл!$U$80 -> 0 | Q23: =округл!$U$81 -> 0 | R23: =округл!$U$82 -> 0 | S23: =округл!$U$83 -> 0 | T23: =округл!$U$84 -> 0 | U23: =округл!$U$85 -> 0 | V23: =округл!$U$86 -> 0 | W23: =округл!$U$87 -> 0 | X23: =округл!$U$88 -> 0 | Y23: =округл!$U$89 -> 0 | Z23: 0 | AA23: =$U$43 -> 20.07.2025 | AC23: =VLOOKUP(AA23,'[1]Лист 1'!$A$7:$B$60,2,0) ->  | AD23: =IF($U$45="",$U$44,$U$45) -> выходной
A24: 21 | B24: =округл!$V$66 -> 0 | C24: =округл!$V$67 -> 0 | D24: =округл!$V$68 -> 0 | E24: =округл!$V$69 -> 0 | F24: =округл!$V$70 -> 0 | G24: =округл!$V$71 -> 0 | H24: =округл!$V$72 -> 0 | I24: =округл!$V$73 -> 0 | J24: =округл!$V$74 -> 0 | K24: =округл!$V$75 -> 0 | L24: =округл!$V$76 -> 0 | M24: =округл!$V$77 -> 0 | N24: =округл!$V$78 -> 0 | O24: =округл!$V$79 -> 0 | P24: =округл!$V$80 -> 0 | Q24: =округл!$V$81 -> 0 | R24: =округл!$V$82 -> 0 | S24: =округл!$V$83 -> 0 | T24: =округл!$V$84 -> 0 | U24: =округл!$V$85 -> 0 | V24: =округл!$V$86 -> 0 | W24: =округл!$V$87 -> 0 | X24: =округл!$V$88 -> 0 | Y24: =округл!$V$89 -> 0 | Z24: 0 | AA24: =$V$43 -> 21.07.2025 | AB24: 0 | AC24: =VLOOKUP(AA24,'[1]Лист 1'!$A$7:$B$60,2,0) -> 11 | AD24: =IF($V$45="",$V$44,$V$45) -> рабочий
A25: 22 | B25: =округл!$W$66 -> 0 | C25: =округл!$W$67 -> 0 | D25: =округл!$W$68 -> 0 | E25: =округл!$W$69 -> 0 | F25: =округл!$W$70 -> 0 | G25: =округл!$W$71 -> 0 | H25: =округл!$W$72 -> 0 | I25: =округл!$W$73 -> 0 | J25: =округл!$W$74 -> 0 | K25: =округл!$W$75 -> 0 | L25: =округл!$W$76 -> 0 | M25: =округл!$W$77 -> 0 | N25: =округл!$W$78 -> 0 | O25: =округл!$W$79 -> 0 | P25: =округл!$W$80 -> 0 | Q25: =округл!$W$81 -> 0 | R25: =округл!$W$82 -> 0 | S25: =округл!$W$83 -> 0 | T25: =округл!$W$84 -> 0 | U25: =округл!$W$85 -> 0 | V25: =округл!$W$86 -> 0 | W25: =округл!$W$87 -> 0 | X25: =округл!$W$88 -> 0 | Y25: =округл!$W$89 -> 0 | Z25: 0 | AA25: =$W$43 -> 22.07.2025 | AB25: 0 | AC25: =VLOOKUP(AA25,'[1]Лист 1'!$A$7:$B$60,2,0) -> 12 | AD25: =IF($W$45="",$W$44,$W$45) -> рабочий
A26: 23 | B26: =округл!$X$66 -> 0 | C26: =округл!$X$67 -> 0 | D26: =округл!$X$68 -> 0 | E26: =округл!$X$69 -> 0 | F26: =округл!$X$70 -> 0 | G26: =округл!$X$71 -> 0 | H26: =округл!$X$72 -> 0 | I26: =округл!$X$73 -> 0 | J26: =округл!$X$74 -> 0 | K26: =округл!$X$75 -> 0 | L26: =округл!$X$76 -> 0 | M26: =округл!$X$77 -> 0 | N26: =округл!$X$78 -> 0 | O26: =округл!$X$79 -> 0 | P26: =округл!$X$80 -> 0 | Q26: =округл!$X$81 -> 0 | R26: =округл!$X$82 -> 0 | S26: =округл!$X$83 -> 0 | T26: =округл!$X$84 -> 0 | U26: =округл!$X$85 -> 0 | V26: =округл!$X$86 -> 0 | W26: =округл!$X$87 -> 0 | X26: =округл!$X$88 -> 0 | Y26: =округл!$X$89 -> 0 | Z26: 0 | AA26: =$X$43 -> 23.07.2025 | AB26: 0 | AC26: =VLOOKUP(AA26,'[1]Лист 1'!$A$7:$B$60,2,0) -> 16 | AD26: =IF($X$45="",$X$44,$X$45) -> рабочий
A27: 24 | B27: =округл!$Y$66 -> 0 | C27: =округл!$Y$67 -> 0 | D27: =округл!$Y$68 -> 0 | E27: =округл!$Y$69 -> 0 | F27: =округл!$Y$70 -> 0 | G27: =округл!$Y$71 -> 0 | H27: =округл!$Y$72 -> 0 | I27: =округл!$Y$73 -> 0 | J27: =округл!$Y$74 -> 0 | K27: =округл!$Y$75 -> 0 | L27: =округл!$Y$76 -> 0 | M27: =округл!$Y$77 -> 0 | N27: =округл!$Y$78 -> 0 | O27: =округл!$Y$79 -> 0 | P27: =округл!$Y$80 -> 0 | Q27: =округл!$Y$81 -> 0 | R27: =округл!$Y$82 -> 0 | S27: =округл!$Y$83 -> 0 | T27: =округл!$Y$84 -> 0 | U27: =округл!$Y$85 -> 0 | V27: =округл!$Y$86 -> 0 | W27: =округл!$Y$87 -> 0 | X27: =округл!$Y$88 -> 0 | Y27: =округл!$Y$89 -> 0 | Z27: 0 | AA27: =$Y$43 -> 24.07.2025 | AB27: 0 | AC27: =VLOOKUP(AA27,'[1]Лист 1'!$A$7:$B$60,2,0) -> 12 | AD27: =IF($Y$45="",$Y$44,$Y$45) -> рабочий
A28: 25 | B28: =округл!$Z$66 -> 0 | C28: =округл!$Z$67 -> 0 | D28: =округл!$Z$68 -> 0 | E28: =округл!$Z$69 -> 0 | F28: =округл!$Z$70 -> 0 | G28: =округл!$Z$71 -> 0 | H28: =округл!$Z$72 -> 0 | I28: =округл!$Z$73 -> 0 | J28: =округл!$Z$74 -> 0 | K28: =округл!$Z$75 -> 0 | L28: =округл!$Z$76 -> 0 | M28: =округл!$Z$77 -> 0 | N28: =округл!$Z$78 -> 0 | O28: =округл!$Z$79 -> 0 | P28: =округл!$Z$80 -> 0 | Q28: =округл!$Z$81 -> 0 | R28: =округл!$Z$82 -> 0 | S28: =округл!$Z$83 -> 0 | T28: =округл!$Z$84 -> 0 | U28: =округл!$Z$85 -> 0 | V28: =округл!$Z$86 -> 0 | W28: =округл!$Z$87 -> 0 | X28: =округл!$Z$88 -> 0 | Y28: =округл!$Z$89 -> 0 | Z28: 0 | AA28: =$Z$43 -> 25.07.2025 | AB28: 0 | AC28: =VLOOKUP(AA28,'[1]Лист 1'!$A$7:$B$60,2,0) -> 12 | AD28: =IF($Z$45="",$Z$44,$Z$45) -> рабочий
A29: 26 | B29: =округл!$AA$66 -> 0 | C29: =округл!$AA$67 -> 0 | D29: =округл!$AA$68 -> 0 | E29: =округл!$AA$69 -> 0 | F29: =округл!$AA$70 -> 0 | G29: =округл!$AA$71 -> 0 | H29: =округл!$AA$72 -> 0 | I29: =округл!$AA$73 -> 0 | J29: =округл!$AA$74 -> 0 | K29: =округл!$AA$75 -> 0 | L29: =округл!$AA$76 -> 0 | M29: =округл!$AA$77 -> 0 | N29: =округл!$AA$78 -> 0 | O29: =округл!$AA$79 -> 0 | P29: =округл!$AA$80 -> 0 | Q29: =округл!$AA$81 -> 0 | R29: =округл!$AA$82 -> 0 | S29: =округл!$AA$83 -> 0 | T29: =округл!$AA$84 -> 0 | U29: =округл!$AA$85 -> 0 | V29: =округл!$AA$86 -> 0 | W29: =округл!$AA$87 -> 0 | X29: =округл!$AA$88 -> 0 | Y29: =округл!$AA$89 -> 0 | Z29: 0 | AA29: =$AA$43 -> 26.07.2025 | AC29: =VLOOKUP(AA29,'[1]Лист 1'!$A$7:$B$60,2,0) ->  | AD29: =IF($AA$45="",$AA$44,$AA$45) -> выходной
A30: 27 | B30: =округл!$AB$66 -> 0 | C30: =округл!$AB$67 -> 0 | D30: =округл!$AB$68 -> 0 | E30: =округл!$AB$69 -> 0 | F30: =округл!$AB$70 -> 0 | G30: =округл!$AB$71 -> 0 | H30: =округл!$AB$72 -> 0 | I30: =округл!$AB$73 -> 0 | J30: =округл!$AB$74 -> 0 | K30: =округл!$AB$75 -> 0 | L30: =округл!$AB$76 -> 0 | M30: =округл!$AB$77 -> 0 | N30: =округл!$AB$78 -> 0 | O30: =округл!$AB$79 -> 0 | P30: =округл!$AB$80 -> 0 | Q30: =округл!$AB$81 -> 0 | R30: =округл!$AB$82 -> 0 | S30: =округл!$AB$83 -> 0 | T30: =округл!$AB$84 -> 0 | U30: =округл!$AB$85 -> 0 | V30: =округл!$AB$86 -> 0 | W30: =округл!$AB$87 -> 0 | X30: =округл!$AB$88 -> 0 | Y30: =округл!$AB$89 -> 0 | Z30: 0 | AA30: =$AB$43 -> 27.07.2025 | AC30: =VLOOKUP(AA30,'[1]Лист 1'!$A$7:$B$60,2,0) ->  | AD30: =IF($AB$45="",$AB$44,$AB$45) -> выходной
A31: 28 | B31: =округл!$AC$66 -> 0 | C31: =округл!$AC$67 -> 0 | D31: =округл!$AC$68 -> 0 | E31: =округл!$AC$69 -> 0 | F31: =округл!$AC$70 -> 0 | G31: =округл!$AC$71 -> 0 | H31: =округл!$AC$72 -> 0 | I31: =округл!$AC$73 -> 0 | J31: =округл!$AC$74 -> 0 | K31: =округл!$AC$75 -> 0 | L31: =округл!$AC$76 -> 0 | M31: =округл!$AC$77 -> 0 | N31: =округл!$AC$78 -> 0 | O31: =округл!$AC$79 -> 0 | P31: =округл!$AC$80 -> 0 | Q31: =округл!$AC$81 -> 0 | R31: =округл!$AC$82 -> 0 | S31: =округл!$AC$83 -> 0 | T31: =округл!$AC$84 -> 0 | U31: =округл!$AC$85 -> 0 | V31: =округл!$AC$86 -> 0 | W31: =округл!$AC$87 -> 0 | X31: =округл!$AC$88 -> 0 | Y31: =округл!$AC$89 -> 0 | Z31: 0 | AA31: =$AC$43 -> 28.07.2025 | AB31: 0 | AC31: =VLOOKUP(AA31,'[1]Лист 1'!$A$7:$B$60,2,0) -> 12 | AD31: =IF($AC$45="",$AC$44,$AC$45) -> рабочий
A32: 29 | B32: =округл!$AD$66 -> 0 | C32: =округл!$AD$67 -> 0 | D32: =округл!$AD$68 -> 0 | E32: =округл!$AD$69 -> 0 | F32: =округл!$AD$70 -> 0 | G32: =округл!$AD$71 -> 0 | H32: =округл!$AD$72 -> 0 | I32: =округл!$AD$73 -> 0 | J32: =округл!$AD$74 -> 0 | K32: =округл!$AD$75 -> 0 | L32: =округл!$AD$76 -> 0 | M32: =округл!$AD$77 -> 0 | N32: =округл!$AD$78 -> 0 | O32: =округл!$AD$79 -> 0 | P32: =округл!$AD$80 -> 0 | Q32: =округл!$AD$81 -> 0 | R32: =округл!$AD$82 -> 0 | S32: =округл!$AD$83 -> 0 | T32: =округл!$AD$84 -> 0 | U32: =округл!$AD$85 -> 0 | V32: =округл!$AD$86 -> 0 | W32: =округл!$AD$87 -> 0 | X32: =округл!$AD$88 -> 0 | Y32: =округл!$AD$89 -> 0 | Z32: 0 | AA32: =$AD$43 -> 29.07.2025 | AB32: 0 | AC32: =VLOOKUP(AA32,'[1]Лист 1'!$A$7:$B$60,2,0) -> 16 | AD32: =IF($AD$45="",$AD$44,$AD$45) -> рабочий
A33: 30 | B33: =округл!$AE$66 -> 0 | C33: =округл!$AE$67 -> 0 | D33: =округл!$AE$68 -> 0 | E33: =округл!$AE$69 -> 0 | F33: =округл!$AE$70 -> 0 | G33: =округл!$AE$71 -> 0 | H33: =округл!$AE$72 -> 0 | I33: =округл!$AE$73 -> 0 | J33: =округл!$AE$74 -> 0 | K33: =округл!$AE$75 -> 0 | L33: =округл!$AE$76 -> 0 | M33: =округл!$AE$77 -> 0 | N33: =округл!$AE$78 -> 0 | O33: =округл!$AE$79 -> 0 | P33: =округл!$AE$80 -> 0 | Q33: =округл!$AE$81 -> 0 | R33: =округл!$AE$82 -> 0 | S33: =округл!$AE$83 -> 0 | T33: =округл!$AE$84 -> 0 | U33: =округл!$AE$85 -> 0 | V33: =округл!$AE$86 -> 0 | W33: =округл!$AE$87 -> 0 | X33: =округл!$AE$88 -> 0 | Y33: =округл!$AE$89 -> 0 | Z33: 0 | AA33: =$AE$43 -> 30.07.2025 | AB33: 0 | AC33: =VLOOKUP(AA33,'[1]Лист 1'!$A$7:$B$60,2,0) -> 11 | AD33: =IF($AE$45="",$AE$44,$AE$45) -> рабочий
A34: 31 | B34: =округл!$AF$66 -> 0 | C34: =округл!$AF$67 -> 0 | D34: =округл!$AF$68 -> 0 | E34: =округл!$AF$69 -> 0 | F34: =округл!$AF$70 -> 0 | G34: =округл!$AF$71 -> 0 | H34: =округл!$AF$72 -> 0 | I34: =округл!$AF$73 -> 0 | J34: =округл!$AF$74 -> 0 | K34: =округл!$AF$75 -> 0 | L34: =округл!$AF$76 -> 0 | M34: =округл!$AF$77 -> 0 | N34: =округл!$AF$78 -> 0 | O34: =округл!$AF$79 -> 0 | P34: =округл!$AF$80 -> 0 | Q34: =округл!$AF$81 -> 0 | R34: =округл!$AF$82 -> 0 | S34: =округл!$AF$83 -> 0 | T34: =округл!$AF$84 -> 0 | U34: =округл!$AF$85 -> 0 | V34: =округл!$AF$86 -> 0 | W34: =округл!$AF$87 -> 0 | X34: =округл!$AF$88 -> 0 | Y34: =округл!$AF$89 -> 0 | Z34: 0 | AA34: =$AF$43 -> 31.07.2025 | AB34: 0 | AC34: =VLOOKUP(AA34,'[1]Лист 1'!$A$7:$B$60,2,0) -> 11 | AD34: =IF($AF$45="",$AF$44,$AF$45) -> рабочий
A35: ИТОГО | B35: =SUM(B4:B34) -> 0 | C35: =SUM(C4:C34) -> 0 | D35: 0 | E35: 0 | F35: 0 | G35: 0 | H35: 0 | I35: 0 | J35: 0 | K35: 0 | L35: 0 | M35: 0 | N35: 0 | O35: 0 | P35: 0 | Q35: 0 | R35: 0 | S35: 0 | T35: 0 | U35: 0 | V35: 0 | W35: =SUM(W4:W34) -> 0 | X35: 0 | Y35: 0 | Z35: =SUM(Z4:Z34) -> 0 | AB35: =AVERAGE(AB4:AB34) -> 0
Q38: Итого электроэнергия за расчетный период, кВтч: | W38: =Z35 -> 0
Q39: Итого мошность за расчетный период, кВт: | W39: =ROUND(AB35,0) -> 0
A42: День | B42: =CONCATENATE(PROPER(TEXT((DATE(YEAR($H$1),MONTH($H$1),DAY($H$1)+0)),"ДДДД"))) -> Вторник | C42: =CONCATENATE(PROPER(TEXT((DATE(YEAR($H$1),MONTH($H$1),DAY($H$1)+1)),"ДДДД"))) -> Среда | D42: =CONCATENATE(PROPER(TEXT((DATE(YEAR($H$1),MONTH($H$1),DAY($H$1)+2)),"ДДДД"))) -> Четверг | E42: =CONCATENATE(PROPER(TEXT((DATE(YEAR($H$1),MONTH($H$1),DAY($H$1)+3)),"ДДДД"))) -> Пятница | F42: =CONCATENATE(PROPER(TEXT((DATE(YEAR($H$1),MONTH($H$1),DAY($H$1)+4)),"ДДДД"))) -> Суббота | G42: =CONCATENATE(PROPER(TEXT((DATE(YEAR($H$1),MONTH($H$1),DAY($H$1)+5)),"ДДДД"))) -> Воскресенье | H42: =CONCATENATE(PROPER(TEXT((DATE(YEAR($H$1),MONTH($H$1),DAY($H$1)+6)),"ДДДД"))) -> Понедельник | I42: =CONCATENATE(PROPER(TEXT((DATE(YEAR($H$1),MONTH($H$1),DAY($H$1)+7)),"ДДДД"))) -> Вторник | J42: =CONCATENATE(PROPER(TEXT((DATE(YEAR($H$1),MONTH($H$1),DAY($H$1)+8)),"ДДДД"))) -> Среда | K42: =CONCATENATE(PROPER(TEXT((DATE(YEAR($H$1),MONTH($H$1),DAY($H$1)+9)),"ДДДД"))) -> Четверг | L42: =CONCATENATE(PROPER(TEXT((DATE(YEAR($H$1),MONTH($H$1),DAY($H$1)+10)),"ДДДД"))) -> Пятница | M42: =CONCATENATE(PROPER(TEXT((DATE(YEAR($H$1),MONTH($H$1),DAY($H$1)+11)),"ДДДД"))) -> Суббота | N42: =CONCATENATE(PROPER(TEXT((DATE(YEAR($H$1),MONTH($H$1),DAY($H$1)+12)),"ДДДД"))) -> Воскресенье | O42: =CONCATENATE(PROPER(TEXT((DATE(YEAR($H$1),MONTH($H$1),DAY($H$1)+13)),"ДДДД"))) -> Понедельник | P42: =CONCATENATE(PROPER(TEXT((DATE(YEAR($H$1),MONTH($H$1),DAY($H$1)+14)),"ДДДД"))) -> Вторник | Q42: =CONCATENATE(PROPER(TEXT((DATE(YEAR($H$1),MONTH($H$1),DAY($H$1)+15)),"ДДДД"))) -> Среда | R42: =CONCATENATE(PROPER(TEXT((DATE(YEAR($H$1),MONTH($H$1),DAY($H$1)+16)),"ДДДД"))) -> Четверг | S42: =CONCATENATE(PROPER(TEXT((DATE(YEAR($H$1),MONTH($H$1),DAY($H$1)+17)),"ДДДД"))) -> Пятница | T42: =CONCATENATE(PROPER(TEXT((DATE(YEAR($H$1),MONTH($H$1),DAY($H$1)+18)),"ДДДД"))) -> Суббота | U42: =CONCATENATE(PROPER(TEXT((DATE(YEAR($H$1),MONTH($H$1),DAY($H$1)+19)),"ДДДД"))) -> Воскресенье | V42: =CONCATENATE(PROPER(TEXT((DATE(YEAR($H$1),MONTH($H$1),DAY($H$1)+20)),"ДДДД"))) -> Понедельник | W42: =CONCATENATE(PROPER(TEXT((DATE(YEAR($H$1),MONTH($H$1),DAY($H$1)+21)),"ДДДД"))) -> Вторник | X42: =CONCATENATE(PROPER(TEXT((DATE(YEAR($H$1),MONTH($H$1),DAY($H$1)+22)),"ДДДД"))) -> Среда | Y42: =CONCATENATE(PROPER(TEXT((DATE(YEAR($H$1),MONTH($H$1),DAY($H$1)+23)),"ДДДД"))) -> Четверг | Z42: =CONCATENATE(PROPER(TEXT((DATE(YEAR($H$1),MONTH($H$1),DAY($H$1)+24)),"ДДДД"))) -> Пятница | AA42: =CONCATENATE(PROPER(TEXT((DATE(YEAR($H$1),MONTH($H$1),DAY($H$1)+25)),"ДДДД"))) -> Суббота | AB42: =CONCATENATE(PROPER(TEXT((DATE(YEAR($H$1),MONTH($H$1),DAY($H$1)+26)),"ДДДД"))) -> Воскресенье | AC42: =CONCATENATE(PROPER(TEXT((DATE(YEAR($H$1),MONTH($H$1),DAY($H$1)+27)),"ДДДД"))) -> Понедельник | AD42: =CONCATENATE(PROPER(TEXT((DATE(YEAR($H$1),MONTH($H$1),DAY($H$1)+28)),"ДДДД"))) -> Вторник | AE42: =CONCATENATE(PROPER(TEXT((DATE(YEAR($H$1),MONTH($H$1),DAY($H$1)+29)),"ДДДД"))) -> Среда | AF42: =CONCATENATE(PROPER(TEXT((DATE(YEAR($H$1),MONTH($H$1),DAY($H$1)+30)),"ДДДД"))) -> Четверг
A43: Дата | B43: =CONCATENATE(TEXT((DATE(YEAR($H$1),MONTH($H$1),DAY($H$1)+0)),"ДД.ММ.ГГГГ")) -> 01.07.2025 | C43: =CONCATENATE(TEXT((DATE(YEAR($H$1),MONTH($H$1),DAY($H$1)+1)),"ДД.ММ.ГГГГ")) -> 02.07.2025 | D43: =CONCATENATE(TEXT((DATE(YEAR($H$1),MONTH($H$1),DAY($H$1)+2)),"ДД.ММ.ГГГГ")) -> 03.07.2025 | E43: =CONCATENATE(TEXT((DATE(YEAR($H$1),MONTH($H$1),DAY($H$1)+3)),"ДД.ММ.ГГГГ")) -> 04.07.2025 | F43: =CONCATENATE(TEXT((DATE(YEAR($H$1),MONTH($H$1),DAY($H$1)+4)),"ДД.ММ.ГГГГ")) -> 05.07.2025 | G43: =CONCATENATE(TEXT((DATE(YEAR($H$1),MONTH($H$1),DAY($H$1)+5)),"ДД.ММ.ГГГГ")) -> 06.07.2025 | H43: =CONCATENATE(TEXT((DATE(YEAR($H$1),MONTH($H$1),DAY($H$1)+6)),"ДД.ММ.ГГГГ")) -> 07.07.2025 | I43: =CONCATENATE(TEXT((DATE(YEAR($H$1),MONTH($H$1),DAY($H$1)+7)),"ДД.ММ.ГГГГ")) -> 08.07.2025 | J43: =CONCATENATE(TEXT((DATE(YEAR($H$1),MONTH($H$1),DAY($H$1)+8)),"ДД.ММ.ГГГГ")) -> 09.07.2025 | K43: =CONCATENATE(TEXT((DATE(YEAR($H$1),MONTH($H$1),DAY($H$1)+9)),"ДД.ММ.ГГГГ")) -> 10.07.2025 | L43: =CONCATENATE(TEXT((DATE(YEAR($H$1),MONTH($H$1),DAY($H$1)+10)),"ДД.ММ.ГГГГ")) -> 11.07.2025 | M43: =CONCATENATE(TEXT((DATE(YEAR($H$1),MONTH($H$1),DAY($H$1)+11)),"ДД.ММ.ГГГГ")) -> 12.07.2025 | N43: =CONCATENATE(TEXT((DATE(YEAR($H$1),MONTH($H$1),DAY($H$1)+12)),"ДД.ММ.ГГГГ")) -> 13.07.2025 | O43: =CONCATENATE(TEXT((DATE(YEAR($H$1),MONTH($H$1),DAY($H$1)+13)),"ДД.ММ.ГГГГ")) -> 14.07.2025 | P43: =CONCATENATE(TEXT((DATE(YEAR($H$1),MONTH($H$1),DAY($H$1)+14)),"ДД.ММ.ГГГГ")) -> 15.07.2025 | Q43: =CONCATENATE(TEXT((DATE(YEAR($H$1),MONTH($H$1),DAY($H$1)+15)),"ДД.ММ.ГГГГ")) -> 16.07.2025 | R43: =CONCATENATE(TEXT((DATE(YEAR($H$1),MONTH($H$1),DAY($H$1)+16)),"ДД.ММ.ГГГГ")) -> 17.07.2025 | S43: =CONCATENATE(TEXT((DATE(YEAR($H$1),MONTH($H$1),DAY($H$1)+17)),"ДД.ММ.ГГГГ")) -> 18.07.2025 | T43: =CONCATENATE(TEXT((DATE(YEAR($H$1),MONTH($H$1),DAY($H$1)+18)),"ДД.ММ.ГГГГ")) -> 19.07.2025 | U43: =CONCATENATE(TEXT((DATE(YEAR($H$1),MONTH($H$1),DAY($H$1)+19)),"ДД.ММ.ГГГГ")) -> 20.07.2025 | V43: =CONCATENATE(TEXT((DATE(YEAR($H$1),MONTH($H$1),DAY($H$1)+20)),"ДД.ММ.ГГГГ")) -> 21.07.2025 | W43: =CONCATENATE(TEXT((DATE(YEAR($H$1),MONTH($H$1),DAY($H$1)+21)),"ДД.ММ.ГГГГ")) -> 22.07.2025 | X43: =CONCATENATE(TEXT((DATE(YEAR($H$1),MONTH($H$1),DAY($H$1)+22)),"ДД.ММ.ГГГГ")) -> 23.07.2025 | Y43: =CONCATENATE(TEXT((DATE(YEAR($H$1),MONTH($H$1),DAY($H$1)+23)),"ДД.ММ.ГГГГ")) -> 24.07.2025 | Z43: =CONCATENATE(TEXT((DATE(YEAR($H$1),MONTH($H$1),DAY($H$1)+24)),"ДД.ММ.ГГГГ")) -> 25.07.2025 | AA43: =CONCATENATE(TEXT((DATE(YEAR($H$1),MONTH($H$1),DAY($H$1)+25)),"ДД.ММ.ГГГГ")) -> 26.07.2025 | AB43: =CONCATENATE(TEXT((DATE(YEAR($H$1),MONTH($H$1),DAY($H$1)+26)),"ДД.ММ.ГГГГ")) -> 27.07.2025 | AC43: =CONCATENATE(TEXT((DATE(YEAR($H$1),MONTH($H$1),DAY($H$1)+27)),"ДД.ММ.ГГГГ")) -> 28.07.2025 | AD43: =CONCATENATE(TEXT((DATE(YEAR($H$1),MONTH($H$1),DAY($H$1)+28)),"ДД.ММ.ГГГГ")) -> 29.07.2025 | AE43: =CONCATENATE(TEXT((DATE(YEAR($H$1),MONTH($H$1),DAY($H$1)+29)),"ДД.ММ.ГГГГ")) -> 30.07.2025 | AF43: =CONCATENATE(TEXT((DATE(YEAR($H$1),MONTH($H$1),DAY($H$1)+30)),"ДД.ММ.ГГГГ")) -> 31.07.2025
A44: В/Р | B44: =IF(B42="Понедельник","рабочий",IF(B42="Вторник","рабочий",IF(B42="Среда","рабочий",IF(B42="Четверг","рабочий",IF(B42="Пятница","рабочий",IF(B42="Суббота","выходной",IF(B42="Воскресенье","выходной",0))))))) -> рабочий | C44: =IF(C42="Понедельник","рабочий",IF(C42="Вторник","рабочий",IF(C42="Среда","рабочий",IF(C42="Четверг","рабочий",IF(C42="Пятница","рабочий",IF(C42="Суббота","выходной",IF(C42="Воскресенье","выходной",0))))))) -> рабочий | D44: рабочий | E44: рабочий | F44: выходной | G44: выходной | H44: рабочий | I44: рабочий | J44: рабочий | K44: рабочий | L44: рабочий | M44: выходной | N44: выходной | O44: рабочий | P44: рабочий | Q44: рабочий | R44: рабочий | S44: рабочий | T44: выходной | U44: выходной | V44: рабочий | W44: рабочий | X44: рабочий | Y44: рабочий | Z44: рабочий | AA44: выходной | AB44: выходной | AC44: рабочий | AD44: рабочий | AE44: рабочий | AF44: рабочий
A45: вых/раб
A47: рабочий
A48: выходной

Sheet цены (hidden)
A1: Дата | B1: Час | C1: Объём (КВтч) | D1: Цена руб/МВтч | E1: 1*Цена руб/МВтч | F1: Стоимость (руб.) | G1: Стоимость*0,9 (руб.)
A2: =мощность!$AA$4 -> 01.07.2025 | B2: 0 | C2: =мощность!B4 -> 0 | D2: =[2]Лист1!C58 -> 1538 | E2: =1*D2 -> 1538 | F2: =ROUND(C2*D2/1000,2) -> 0 | G2: =ROUND(C2*E2/1000,2) -> 0
A3: =мощность!$AA$4 -> 01.07.2025 | B3: 1 | C3: =мощность!C4 -> 0 | D3: =[2]Лист1!C59 -> 1277.58 | E3: =1*D3 -> 1277.58 | F3: =ROUND(C3*D3/1000,2) -> 0 | G3: =ROUND(C3*E3/1000,2) -> 0
A4: =мощность!$AA$4 -> 01.07.2025 | B4: 2 | C4: =мощность!D4 -> 0 | D4: =[2]Лист1!C60 -> 1168.01 | E4: 1168.01 | F4: 0 | G4: 0
A5: =мощность!$AA$4 -> 01.07.2025 | B5: 3 | C5: =мощность!E4 -> 0 | D5: =[2]Лист1!C61 -> 1057.01 | E5: 1057.01 | F5: 0 | G5: 0
A6: =мощность!$AA$4 -> 01.07.2025 | B6: 4 | C6: =мощность!F4 -> 0 | D6: =[2]Лист1!C62 -> 1074.22 | E6: 1074.22 | F6: 0 | G6: 0
A7: =мощность!$AA$4 -> 01.07.2025 | B7: 5 | C7: =мощность!G4 -> 0 | D7: =[2]Лист1!C63 -> 1340.27 | E7: 1340.27 | F7: =ROUND(C7*D7/1000,2) -> 0 | G7: 0
A8: =мощность!$AA$4 -> 01.07.2025 | B8: 6 | C8: =мощность!H4 -> 0 | D8: =[2]Лист1!C64 -> 1473.06 | E8: 1473.06 | F8: 0 | G8: =ROUND(C8*E8/1000,2) -> 0
A9: =мощность!$AA$4 -> 01.07.2025 | B9: 7 | C9: =мощность!I4 -> 0 | D9: =[2]Лист1!C65 -> 1919.9 | E9: 1919.9 | F9: 0 | G9: 0
A10: =мощность!$AA$4 -> 01.07.2025 | B10: 8 | C10: =мощность!J4 -> 0 | D10: =[2]Лист1!C66 -> 2396.61 | E10: 2396.61 | F10: 0 | G10: =ROUND(C10*E10/1000,2) -> 0
A11: =мощность!$AA$4 -> 01.07.2025 | B11: 9 | C11: =мощность!K4 -> 0 | D11: =[2]Лист1!C67 -> 2525.21 | E11: 2525.21 | F11: 0 | G11: =ROUND(C11*E11/1000,2) -> 0
A12: =мощность!$AA$4 -> 01.07.2025 | B12: 10 | C12: =мощность!L4 -> 0 | D12: =[2]Лист1!C68 -> 2571.54 | E12: 2571.54 | F12: 0 | G12: 0
A13: =мощность!$AA$4 -> 01.07.2025 | B13: 11 | C13: =мощность!M4 -> 0 | D13: =[2]Лист1!C69 -> 2568.94 | E13: 2568.94 | F13: 0 | G13: 0
A14: =мощность!$AA$4 -> 01.07.2025 | B14: 12 | C14: =мощность!N4 -> 0 | D14: =[2]Лист1!C70 -> 2538.46 | E14: 2538.46 | F14: 0 | G14: 0
A15: =мощность!$AA$4 -> 01.07.2025 | B15: 13 | C15: =мощность!O4 -> 0 | D15: =[2]Лист1!C71 -> 2563.13 | E15: 2563.13 | F15: 0 | G15: 0
A16: =мощность!$AA$4 -> 01.07.2025 | B16: 14 | C16: =мощность!P4 -> 0 | D16: =[2]Лист1!C72 -> 2601.75 | E16: 2601.75 | F16: 0 | G16: 0
A17: =мощность!$AA$4 -> 01.07.2025 | B17: 15 | C17: =мощность!Q4 -> 0 | D17: =[2]Лист1!C73 -> 2615.31 | E17: 2615.31 | F17: 0 | G17: 0
A18: =мощность!$AA$4 -> 01.07.2025 | B18: 16 | C18: =мощность!R4 -> 0 | D18: =[2]Лист1!C74 -> 2588.82 | E18: 2588.82 | F18: 0 | G18: 0
A19: =мощность!$AA$4 -> 01.07.2025 | B19: 17 | C19: =мощность!S4 -> 0 | D19: =[2]Лист1!C75 -> 2603.37 | E19: 2603.37 | F19: 0 | G19: 0
A20: =мощность!$AA$4 -> 01.07.2025 | B20: 18 | C20: =мощность!T4 -> 0 | D20: =[2]Лист1!C76 -> 2580.59 | E20: 2580.59 | F20: 0 | G20: 0
A21: =мощность!$AA$4 -> 01.07.2025 | B21: 19 | C21: =мощность!U4 -> 0 | D21: =[2]Лист1!C77 -> 2533.43 | E21: 2533.43 | F21: 0 | G21: 0
A22: =мощность!$AA$4 -> 01.07.2025 | B22: 20 | C22: =мощность!V4 -> 0 | D22: =[2]Лист1!C78 -> 2501.04 | E22: 2501.04 | F22: 0 | G22: 0
A23: =мощность!$AA$4 -> 01.07.2025 | B23: 21 | C23: =мощность!W4 -> 0 | D23: =[2]Лист1!C79 -> 2477.98 | E23: 2477.98 | F23: 0 | G23: 0
A24: =мощность!$AA$4 -> 01.07.2025 | B24: 22 | C24: =мощность!X4 -> 0 | D24: =[2]Лист1!C80 -> 2191.51 | E24: 2191.51 | F24: 0 | G24: 0
A25: =мощность!$AA$4 -> 01.07.2025 | B25: 23 | C25: =мощность!Y4 -> 0 | D25: =[2]Лист1!C81 -> 1943.52 | E25: 1943.52 | F25: 0 | G25: 0
A26: =мощность!$AA$5 -> 02.07.2025 | B26: 0 | C26: =мощность!B5 -> 0 | D26: =[2]Лист1!C82 -> 1590.21 | E26: 1590.21 | F26: 0 | G26: 0
A27: =мощность!$AA$5 -> 02.07.2025 | B27: 1 | C27: =мощность!C5 -> 0 | D27: =[2]Лист1!C83 -> 1434.15 | E27: 1434.15 | F27: 0 | G27: 0
A28: =мощность!$AA$5 -> 02.07.2025 | B28: 2 | C28: =мощность!D5 -> 0 | D28: =[2]Лист1!C84 -> 1355.04 | E28: 1355.04 | F28: 0 | G28: 0
A29: =мощность!$AA$5 -> 02.07.2025 | B29: 3 | C29: =мощность!E5 -> 0 | D29: =[2]Лист1!C85 -> 1146.58 | E29: 1146.58 | F29: 0 | G29: 0
A30: =мощность!$AA$5 -> 02.07.2025 | B30: 4 | C30: =мощность!F5 -> 0 | D30: =[2]Лист1!C86 -> 1231.8 | E30: 1231.8 | F30: 0 | G30: 0
A31: =мощность!$AA$5 -> 02.07.2025 | B31: 5 | C31: =мощность!G5 -> 0 | D31: =[2]Лист1!C87 -> 1419.77 | E31: 1419.77 | F31: 0 | G31: 0
A32: =мощность!$AA$5 -> 02.07.2025 | B32: 6 | C32: =мощность!H5 -> 0 | D32: =[2]Лист1!C88 -> 1511.23 | E32: 1511.23 | F32: 0 | G32: 0
A33: =мощность!$AA$5 -> 02.07.2025 | B33: 7 | C33: =мощность!I5 -> 0 | D33: =[2]Лист1!C89 -> 1974.9 | E33: 1974.9 | F33: 0 | G33: =ROUND(C33*E33/1000,2) -> 0
A34: =мощность!$AA$5 -> 02.07.2025 | B34: 8 | C34: =мощность!J5 -> 0 | D34: =[2]Лист1!C90 -> 2555.84 | E34: 2555.84 | F34: 0 | G34: 0
A35: =мощность!$AA$5 -> 02.07.2025 | B35: 9 | C35: =мощность!K5 -> 0 | D35: =[2]Лист1!C91 -> 2652.61 | E35: 2652.61 | F35: 0 | G35: 0
A36: =мощность!$AA$5 -> 02.07.2025 | B36: 10 | C36: =мощность!L5 -> 0 | D36: =[2]Лист1!C92 -> 2687.36 | E36: 2687.36 | F36: 0 | G36: 0
A37: =мощность!$AA$5 -> 02.07.2025 | B37: 11 | C37: =мощность!M5 -> 0 | D37: =[2]Лист1!C93 -> 2677.22 | E37: 2677.22 | F37: 0 | G37: 0
A38: =мощность!$AA$5 -> 02.07.2025 | B38: 12 | C38: =мощность!N5 -> 0 | D38: =[2]Лист1!C94 -> 2478.6 | E38: 2478.6 | F38: 0 | G38: 0
A39: =мощность!$AA$5 -> 02.07.2025 | B39: 13 | C39: =мощность!O5 -> 0 | D39: =[2]Лист1!C95 -> 2496.21 | E39: 2496.21 | F39: 0 | G39: 0
A40: =мощность!$AA$5 -> 02.07.2025 | B40: 14 | C40: =мощность!P5 -> 0 | D40: =[2]Лист1!C96 -> 2498.1 | E40: 2498.1 | F40: 0 | G40: 0
A41: =мощность!$AA$5 -> 02.07.2025 | B41: 15 | C41: =мощность!Q5 -> 0 | D41: =[2]Лист1!C97 -> 2492.73 | E41: 2492.73 | F41: 0 | G41: 0
A42: =мощность!$AA$5 -> 02.07.2025 | B42: 16 | C42: =мощность!R5 -> 0 | D42: =[2]Лист1!C98 -> 2475.08 | E42: 2475.08 | F42: 0 | G42: 0
A43: =мощность!$AA$5 -> 02.07.2025 | B43: 17 | C43: =мощность!S5 -> 0 | D43: =[2]Лист1!C99 -> 2495.09 | E43: 2495.09 | F43: 0 | G43: 0
A44: =мощность!$AA$5 -> 02.07.2025 | B44: 18 | C44: =мощность!T5 -> 0 | D44: =[2]Лист1!C100 -> 2648.06 | E44: 2648.06 | F44: 0 | G44: 0
A45: =мощность!$AA$5 -> 02.07.2025 | B45: 19 | C45: =мощность!U5 -> 0 | D45: =[2]Лист1!C101 -> 2617.51 | E45: 2617.51 | F45: 0 | G45: 0
A46: =мощность!$AA$5 -> 02.07.2025 | B46: 20 | C46: =мощность!V5 -> 0 | D46: =[2]Лист1!C102 -> 2586.69 | E46: 2586.69 | F46: 0 | G46: 0
A47: =мощность!$AA$5 -> 02.07.2025 | B47: 21 | C47: =мощность!W5 -> 0 | D47: =[2]Лист1!C103 -> 2567.27 | E47: 2567.27 | F47: 0 | G47: 0
A48: =мощность!$AA$5 -> 02.07.2025 | B48: 22 | C48: =мощность!X5 -> 0 | D48: =[2]Лист1!C104 -> 2304 | E48: 2304 | F48: 0 | G48: 0
A49: =мощность!$AA$5 -> 02.07.2025 | B49: 23 | C49: =мощность!Y5 -> 0 | D49: =[2]Лист1!C105 -> 1885.94 | E49: 1885.94 | F49: 0 | G49: 0
A50: =мощность!$AA$6 -> 03.07.2025 | B50: 0 | C50: =мощность!B6 -> 0 | D50: =[2]Лист1!C106 -> 1477.08 | E50: 1477.08 | F50: 0 | G50: 0
A51: =мощность!$AA$6 -> 03.07.2025 | B51: 1 | C51: =мощность!C6 -> 0 | D51: =[2]Лист1!C107 -> 1320.2 | E51: 1320.2 | F51: 0 | G51: 0
A52: =мощность!$AA$6 -> 03.07.2025 | B52: 2 | C52: =мощность!D6 -> 0 | D52: =[2]Лист1!C108 -> 1204.47 | E52: 1204.47 | F52: 0 | G52: 0
A53: =мощность!$AA$6 -> 03.07.2025 | B53: 3 | C53: =мощность!E6 -> 0 | D53: =[2]Лист1!C109 -> 1090.9 | E53: 1090.9 | F53: 0 | G53: 0
A54: =мощность!$AA$6 -> 03.07.2025 | B54: 4 | C54: =мощность!F6 -> 0 | D54: =[2]Лист1!C110 -> 1098.84 | E54: 1098.84 | F54: 0 | G54: 0
A55: =мощность!$AA$6 -> 03.07.2025 | B55: 5 | C55: =мощность!G6 -> 0 | D55: =[2]Лист1!C111 -> 1147.49 | E55: 1147.49 | F55: 0 | G55: 0
A56: =мощность!$AA$6 -> 03.07.2025 | B56: 6 | C56: =мощность!H6 -> 0 | D56: =[2]Лист1!C112 -> 1459.06 | E56: 1459.06 | F56: 0 | G56: 0
A57: =мощность!$AA$6 -> 03.07.2025 | B57: 7 | C57: =мощность!I6 -> 0 | D57: =[2]Лист1!C113 -> 1889.04 | E57: 1889.04 | F57: 0 | G57: 0
A58: =мощность!$AA$6 -> 03.07.2025 | B58: 8 | C58: =мощность!J6 -> 0 | D58: =[2]Лист1!C114 -> 2419.21 | E58: 2419.21 | F58: 0 | G58: 0
A59: =мощность!$AA$6 -> 03.07.2025 | B59: 9 | C59: =мощность!K6 -> 0 | D59: =[2]Лист1!C115 -> 2475.99 | E59: 2475.99 | F59: 0 | G59: 0
A60: =мощность!$AA$6 -> 03.07.2025 | B60: 10 | C60: =мощность!L6 -> 0 | D60: =[2]Лист1!C116 -> 2439.95 | E60: 2439.95 | F60: 0 | G60: 0
A61: =мощность!$AA$6 -> 03.07.2025 | B61: 11 | C61: =мощность!M6 -> 0 | D61: =[2]Лист1!C117 -> 2436.57 | E61: 2436.57 | F61: 0 | G61: 0
A62: =мощность!$AA$6 -> 03.07.2025 | B62: 12 | C62: =мощность!N6 -> 0 | D62: =[2]Лист1!C118 -> 2428.56 | E62: 2428.56 | F62: 0 | G62: 0
A63: =мощность!$AA$6 -> 03.07.2025 | B63: 13 | C63: =мощность!O6 -> 0 | D63: =[2]Лист1!C119 -> 2443.87 | E63: 2443.87 | F63: 0 | G63: 0
A64: =мощность!$AA$6 -> 03.07.2025 | B64: 14 | C64: =мощность!P6 -> 0 | D64: =[2]Лист1!C120 -> 2531.04 | E64: 2531.04 | F64: 0 | G64: 0
A65: =мощность!$AA$6 -> 03.07.2025 | B65: 15 | C65: =мощность!Q6 -> 0 | D65: =[2]Лист1!C121 -> 2564.1 | E65: 2564.1 | F65: 0 | G65: 0
A66: =мощность!$AA$6 -> 03.07.2025 | B66: 16 | C66: =мощность!R6 -> 0 | D66: =[2]Лист1!C122 -> 2526.77 | E66: 2526.77 | F66: 0 | G66: 0
A67: =мощность!$AA$6 -> 03.07.2025 | B67: 17 | C67: =мощность!S6 -> 0 | D67: =[2]Лист1!C123 -> 2455.62 | E67: =1*D67 -> 2455.62 | F67: =ROUND(C67*D67/1000,2) -> 0 | G67: =ROUND(C67*E67/1000,2) -> 0
A68: =мощность!$AA$6 -> 03.07.2025 | B68: 18 | C68: =мощность!T6 -> 0 | D68: =[2]Лист1!C124 -> 2455.26 | E68: 2455.26 | F68: 0 | G68: 0
A69: =мощность!$AA$6 -> 03.07.2025 | B69: 19 | C69: =мощность!U6 -> 0 | D69: =[2]Лист1!C125 -> 2426.96 | E69: 2426.96 | F69: 0 | G69: 0
A70: =мощность!$AA$6 -> 03.07.2025 | B70: 20 | C70: =мощность!V6 -> 0 | D70: =[2]Лист1!C126 -> 2390.12 | E70: 2390.12 | F70: 0 | G70: 0
A71: =мощность!$AA$6 -> 03.07.2025 | B71: 21 | C71: =мощность!W6 -> 0 | D71: =[2]Лист1!C127 -> 2378.39 | E71: 2378.39 | F71: 0 | G71: 0
A72: =мощность!$AA$6 -> 03.07.2025 | B72: 22 | C72: =мощность!X6 -> 0 | D72: =[2]Лист1!C128 -> 2131.63 | E72: 2131.63 | F72: 0 | G72: 0
A73: =мощность!$AA$6 -> 03.07.2025 | B73: 23 | C73: =мощность!Y6 -> 0 | D73: =[2]Лист1!C129 -> 1881.35 | E73: 1881.35 | F73: 0 | G73: 0
A74: =мощность!$AA$7 -> 04.07.2025 | B74: 0 | C74: =мощность!B7 -> 0 | D74: =[2]Лист1!C130 -> 1564.76 | E74: 1564.76 | F74: 0 | G74: 0
A75: =мощность!$AA$7 -> 04.07.2025 | B75: 1 | C75: =мощность!C7 -> 0 | D75: =[2]Лист1!C131 -> 1349.31 | E75: 1349.31 | F75: 0 | G75: 0
A76: =мощность!$AA$7 -> 04.07.2025 | B76: 2 | C76: =мощность!D7 -> 0 | D76: =[2]Лист1!C132 -> 1211.67 | E76: 1211.67 | F76: 0 | G76: 0
A77: =мощность!$AA$7 -> 04.07.2025 | B77: 3 | C77: =мощность!E7 -> 0 | D77: =[2]Лист1!C133 -> 1085.51 | E77: 1085.51 | F77: 0 | G77: 0
A78: =мощность!$AA$7 -> 04.07.2025 | B78: 4 | C78: =мощность!F7 -> 0 | D78: =[2]Лист1!C134 -> 1098.52 | E78: 1098.52 | F78: 0 | G78: 0
A79: =мощность!$AA$7 -> 04.07.2025 | B79: 5 | C79: =мощность!G7 -> 0 | D79: =[2]Лист1!C135 -> 1317.54 | E79: 1317.54 | F79: 0 | G79: 0
A80: =мощность!$AA$7 -> 04.07.2025 | B80: 6 | C80: =мощность!H7 -> 0 | D80: =[2]Лист1!C136 -> 1475.2 | E80: 1475.2 | F80: 0 | G80: 0
A81: =мощность!$AA$7 -> 04.07.2025 | B81: 7 | C81: =мощность!I7 -> 0 | D81: =[2]Лист1!C137 -> 1902.97 | E81: 1902.97 | F81: 0 | G81: 0
A82: =мощность!$AA$7 -> 04.07.2025 | B82: 8 | C82: =мощность!J7 -> 0 | D82: =[2]Лист1!C138 -> 2433.52 | E82: 2433.52 | F82: 0 | G82: 0
A83: =мощность!$AA$7 -> 04.07.2025 | B83: 9 | C83: =мощность!K7 -> 0 | D83: =[2]Лист1!C139 -> 2549.82 | E83: 2549.82 | F83: 0 | G83: 0
A84: =мощность!$AA$7 -> 04.07.2025 | B84: 10 | C84: =мощность!L7 -> 0 | D84: =[2]Лист1!C140 -> 2499.42 | E84: 2499.42 | F84: 0 | G84: 0
A85: =мощность!$AA$7 -> 04.07.2025 | B85: 11 | C85: =мощность!M7 -> 0 | D85: =[2]Лист1!C141 -> 2497.19 | E85: 2497.19 | F85: 0 | G85: =ROUND(C85*E85/1000,2) -> 0
A86: =мощность!$AA$7 -> 04.07.2025 | B86: 12 | C86: =мощность!N7 -> 0 | D86: =[2]Лист1!C142 -> 2558.04 | E86: 2558.04 | F86: 0 | G86: 0
A87: =мощность!$AA$7 -> 04.07.2025 | B87: 13 | C87: =мощность!O7 -> 0 | D87: =[2]Лист1!C143 -> 2491.56 | E87: 2491.56 | F87: 0 | G87: 0
A88: =мощность!$AA$7 -> 04.07.2025 | B88: 14 | C88: =мощность!P7 -> 0 | D88: =[2]Лист1!C144 -> 2480.82 | E88: 2480.82 | F88: 0 | G88: 0
A89: =мощность!$AA$7 -> 04.07.2025 | B89: 15 | C89: =мощность!Q7 -> 0 | D89: =[2]Лист1!C145 -> 2677.95 | E89: 2677.95 | F89: 0 | G89: 0
A90: =мощность!$AA$7 -> 04.07.2025 | B90: 16 | C90: =мощность!R7 -> 0 | D90: =[2]Лист1!C146 -> 2601.7 | E90: 2601.7 | F90: 0 | G90: 0
A91: =мощность!$AA$7 -> 04.07.2025 | B91: 17 | C91: =мощность!S7 -> 0 | D91: =[2]Лист1!C147 -> 2623.54 | E91: 2623.54 | F91: 0 | G91: 0
A92: =мощность!$AA$7 -> 04.07.2025 | B92: 18 | C92: =мощность!T7 -> 0 | D92: =[2]Лист1!C148 -> 2608.66 | E92: 2608.66 | F92: 0 | G92: 0
A93: =мощность!$AA$7 -> 04.07.2025 | B93: 19 | C93: =мощность!U7 -> 0 | D93: =[2]Лист1!C149 -> 2493.92 | E93: 2493.92 | F93: 0 | G93: 0
A94: =мощность!$AA$7 -> 04.07.2025 | B94: 20 | C94: =мощность!V7 -> 0 | D94: =[2]Лист1!C150 -> 2473.16 | E94: 2473.16 | F94: 0 | G94: 0
A95: =мощность!$AA$7 -> 04.07.2025 | B95: 21 | C95: =мощность!W7 -> 0 | D95: =[2]Лист1!C151 -> 2548.43 | E95: 2548.43 | F95: 0 | G95: 0
A96: =мощность!$AA$7 -> 04.07.2025 | B96: 22 | C96: =мощность!X7 -> 0 | D96: =[2]Лист1!C152 -> 2363.41 | E96: 2363.41 | F96: 0 | G96: 0
A97: =мощность!$AA$7 -> 04.07.2025 | B97: 23 | C97: =мощность!Y7 -> 0 | D97: =[2]Лист1!C153 -> 1923.35 | E97: 1923.35 | F97: 0 | G97: 0
A98: =мощность!$AA$8 -> 05.07.2025 | B98: 0 | C98: =мощность!B8 -> 0 | D98: =[2]Лист1!C154 -> 1647.71 | E98: 1647.71 | F98: 0 | G98: 0
A99: =мощность!$AA$8 -> 05.07.2025 | B99: 1 | C99: =мощность!C8 -> 0 | D99: =[2]Лист1!C155 -> 1421.85 | E99: 1421.85 | F99: 0 | G99: 0
A100: =мощность!$AA$8 -> 05.07.2025 | B100: 2 | C100: =мощность!D8 -> 0 | D100: =[2]Лист1!C156 -> 1318.03 | E100: 1318.03 | F100: 0 | G100: 0
A101: =мощность!$AA$8 -> 05.07.2025 | B101: 3 | C101: =мощность!E8 -> 0 | D101: =[2]Лист1!C157 -> 1179.31 | E101: 1179.31 | F101: 0 | G101: 0
A102: =мощность!$AA$8 -> 05.07.2025 | B102: 4 | C102: =мощность!F8 -> 0 | D102: =[2]Лист1!C158 -> 1120.9 | E102: 1120.9 | F102: 0 | G102: 0
A103: =мощность!$AA$8 -> 05.07.2025 | B103: 5 | C103: =мощность!G8 -> 0 | D103: =[2]Лист1!C159 -> 1109.07 | E103: 1109.07 | F103: 0 | G103: 0
A104: =мощность!$AA$8 -> 05.07.2025 | B104: 6 | C104: =мощность!H8 -> 0 | D104: =[2]Лист1!C160 -> 1215.87 | E104: 1215.87 | F104: 0 | G104: 0
A105: =мощность!$AA$8 -> 05.07.2025 | B105: 7 | C105: =мощность!I8 -> 0 | D105: =[2]Лист1!C161 -> 1564.7 | E105: 1564.7 | F105: 0 | G105: 0
A106: =мощность!$AA$8 -> 05.07.2025 | B106: 8 | C106: =мощность!J8 -> 0 | D106: =[2]Лист1!C162 -> 2011.01 | E106: 2011.01 | F106: 0 | G106: 0
A107: =мощность!$AA$8 -> 05.07.2025 | B107: 9 | C107: =мощность!K8 -> 0 | D107: =[2]Лист1!C163 -> 2232.75 | E107: 2232.75 | F107: 0 | G107: 0
A108: =мощность!$AA$8 -> 05.07.2025 | B108: 10 | C108: =мощность!L8 -> 0 | D108: =[2]Лист1!C164 -> 2295.11 | E108: 2295.11 | F108: 0 | G108: 0
A109: =мощность!$AA$8 -> 05.07.2025 | B109: 11 | C109: =мощность!M8 -> 0 | D109: =[2]Лист1!C165 -> 2317.44 | E109: 2317.44 | F109: 0 | G109: 0
A110: =мощность!$AA$8 -> 05.07.2025 | B110: 12 | C110: =мощность!N8 -> 0 | D110: =[2]Лист1!C166 -> 2313.88 | E110: 2313.88 | F110: 0 | G110: 0
A111: =мощность!$AA$8 -> 05.07.2025 | B111: 13 | C111: =мощность!O8 -> 0 | D111: =[2]Лист1!C167 -> 2317.88 | E111: 2317.88 | F111: 0 | G111: 0
A112: =мощность!$AA$8 -> 05.07.2025 | B112: 14 | C112: =мощность!P8 -> 0 | D112: =[2]Лист1!C168 -> 2312.31 | E112: 2312.31 | F112: 0 | G112: 0
A113: =мощность!$AA$8 -> 05.07.2025 | B113: 15 | C113: =мощность!Q8 -> 0 | D113: =[2]Лист1!C169 -> 2363.04 | E113: 2363.04 | F113: 0 | G113: 0
A114: =мощность!$AA$8 -> 05.07.2025 | B114: 16 | C114: =мощность!R8 -> 0 | D114: =[2]Лист1!C170 -> 2369.09 | E114: 2369.09 | F114: 0 | G114: 0
A115: =мощность!$AA$8 -> 05.07.2025 | B115: 17 | C115: =мощность!S8 -> 0 | D115: =[2]Лист1!C171 -> 2334.49 | E115: 2334.49 | F115: 0 | G115: 0
A116: =мощность!$AA$8 -> 05.07.2025 | B116: 18 | C116: =мощность!T8 -> 0 | D116: =[2]Лист1!C172 -> 2317.83 | E116: 2317.83 | F116: 0 | G116: 0
A117: =мощность!$AA$8 -> 05.07.2025 | B117: 19 | C117: =мощность!U8 -> 0 | D117: =[2]Лист1!C173 -> 2294.07 | E117: 2294.07 | F117: 0 | G117: 0
A118: =мощность!$AA$8 -> 05.07.2025 | B118: 20 | C118: =мощность!V8 -> 0 | D118: =[2]Лист1!C174 -> 2290.79 | E118: 2290.79 | F118: 0 | G118: 0
A119: =мощность!$AA$8 -> 05.07.2025 | B119: 21 | C119: =мощность!W8 -> 0 | D119: =[2]Лист1!C175 -> 2302.59 | E119: 2302.59 | F119: 0 | G119: 0
A120: =мощность!$AA$8 -> 05.07.2025 | B120: 22 | C120: =мощность!X8 -> 0 | D120: =[2]Лист1!C176 -> 2038.27 | E120: 2038.27 | F120: 0 | G120: 0
A121: =мощность!$AA$8 -> 05.07.2025 | B121: 23 | C121: =мощность!Y8 -> 0 | D121: =[2]Лист1!C177 -> 1854.95 | E121: 1854.95 | F121: 0 | G121: 0
A122: =мощность!$AA$9 -> 06.07.2025 | B122: 0 | C122: =мощность!B9 -> 0 | D122: =[2]Лист1!C178 -> 1667.6 | E122: 1667.6 | F122: 0 | G122: 0
A123: =мощность!$AA$9 -> 06.07.2025 | B123: 1 | C123: =мощность!C9 -> 0 | D123: =[2]Лист1!C179 -> 1423.19 | E123: 1423.19 | F123: 0 | G123: 0
A124: =мощность!$AA$9 -> 06.07.2025 | B124: 2 | C124: =мощность!D9 -> 0 | D124: =[2]Лист1!C180 -> 1305.76 | E124: 1305.76 | F124: 0 | G124: 0
A125: =мощность!$AA$9 -> 06.07.2025 | B125: 3 | C125: =мощность!E9 -> 0 | D125: =[2]Лист1!C181 -> 1124.95 | E125: 1124.95 | F125: 0 | G125: 0
A126: =мощность!$AA$9 -> 06.07.2025 | B126: 4 | C126: =мощность!F9 -> 0 | D126: =[2]Лист1!C182 -> 1066.86 | E126: 1066.86 | F126: 0 | G126: 0
A127: =мощность!$AA$9 -> 06.07.2025 | B127: 5 | C127: =мощность!G9 -> 0 | D127: =[2]Лист1!C183 -> 1064.64 | E127: 1064.64 | F127: 0 | G127: 0
A128: =мощность!$AA$9 -> 06.07.2025 | B128: 6 | C128: =мощность!H9 -> 0 | D128: =[2]Лист1!C184 -> 1019.76 | E128: 1019.76 | F128: 0 | G128: 0
A129: =мощность!$AA$9 -> 06.07.2025 | B129: 7 | C129: =мощность!I9 -> 0 | D129: =[2]Лист1!C185 -> 1433.84 | E129: 1433.84 | F129: 0 | G129: 0
A130: =мощность!$AA$9 -> 06.07.2025 | B130: 8 | C130: =мощность!J9 -> 0 | D130: =[2]Лист1!C186 -> 1827.31 | E130: 1827.31 | F130: 0 | G130: 0
A131: =мощность!$AA$9 -> 06.07.2025 | B131: 9 | C131: =мощность!K9 -> 0 | D131: =[2]Лист1!C187 -> 2149.17 | E131: =1*D131 -> 2149.17 | F131: =ROUND(C131*D131/1000,2) -> 0 | G131: =ROUND(C131*E131/1000,2) -> 0
A132: =мощность!$AA$9 -> 06.07.2025 | B132: 10 | C132: =мощность!L9 -> 0 | D132: =[2]Лист1!C188 -> 2273.7 | E132: 2273.7 | F132: 0 | G132: 0
A133: =мощность!$AA$9 -> 06.07.2025 | B133: 11 | C133: =мощность!M9 -> 0 | D133: =[2]Лист1!C189 -> 2272.33 | E133: 2272.33 | F133: 0 | G133: 0
A134: =мощность!$AA$9 -> 06.07.2025 | B134: 12 | C134: =мощность!N9 -> 0 | D134: =[2]Лист1!C190 -> 2272.41 | E134: 2272.41 | F134: 0 | G134: 0
A135: =мощность!$AA$9 -> 06.07.2025 | B135: 13 | C135: =мощность!O9 -> 0 | D135: =[2]Лист1!C191 -> 2278.85 | E135: 2278.85 | F135: 0 | G135: 0
A136: =мощность!$AA$9 -> 06.07.2025 | B136: 14 | C136: =мощность!P9 -> 0 | D136: =[2]Лист1!C192 -> 2281.7 | E136: 2281.7 | F136: 0 | G136: 0
A137: =мощность!$AA$9 -> 06.07.2025 | B137: 15 | C137: =мощность!Q9 -> 0 | D137: =[2]Лист1!C193 -> 2283.9 | E137: 2283.9 | F137: 0 | G137: 0
A138: =мощность!$AA$9 -> 06.07.2025 | B138: 16 | C138: =мощность!R9 -> 0 | D138: =[2]Лист1!C194 -> 2326.02 | E138: 2326.02 | F138: 0 | G138: 0
A139: =мощность!$AA$9 -> 06.07.2025 | B139: 17 | C139: =мощность!S9 -> 0 | D139: =[2]Лист1!C195 -> 2315.98 | E139: 2315.98 | F139: 0 | G139: 0
A140: =мощность!$AA$9 -> 06.07.2025 | B140: 18 | C140: =мощность!T9 -> 0 | D140: =[2]Лист1!C196 -> 2313.47 | E140: 2313.47 | F140: 0 | G140: 0
A141: =мощность!$AA$9 -> 06.07.2025 | B141: 19 | C141: =мощность!U9 -> 0 | D141: =[2]Лист1!C197 -> 2288.82 | E141: 2288.82 | F141: 0 | G141: 0
A142: =мощность!$AA$9 -> 06.07.2025 | B142: 20 | C142: =мощность!V9 -> 0 | D142: =[2]Лист1!C198 -> 2284.95 | E142: 2284.95 | F142: 0 | G142: 0
A143: =мощность!$AA$9 -> 06.07.2025 | B143: 21 | C143: =мощность!W9 -> 0 | D143: =[2]Лист1!C199 -> 2278.88 | E143: 2278.88 | F143: 0 | G143: 0
A144: =мощность!$AA$9 -> 06.07.2025 | B144: 22 | C144: =мощность!X9 -> 0 | D144: =[2]Лист1!C200 -> 2056.76 | E144: 2056.76 | F144: 0 | G144: 0
A145: =мощность!$AA$9 -> 06.07.2025 | B145: 23 | C145: =мощность!Y9 -> 0 | D145: =[2]Лист1!C201 -> 1726.88 | E145: 1726.88 | F145: 0 | G145: 0
A146: =мощность!$AA$10 -> 07.07.2025 | B146: 0 | C146: =мощность!B10 -> 0 | D146: =[2]Лист1!C202 -> 1572.67 | E146: 1572.67 | F146: 0 | G146: 0
A147: =мощность!$AA$10 -> 07.07.2025 | B147: 1 | C147: =мощность!C10 -> 0 | D147: =[2]Лист1!C203 -> 1409.45 | E147: 1409.45 | F147: 0 | G147: 0
A148: =мощность!$AA$10 -> 07.07.2025 | B148: 2 | C148: =мощность!D10 -> 0 | D148: =[2]Лист1!C204 -> 1221.65 | E148: 1221.65 | F148: 0 | G148: 0
A149: =мощность!$AA$10 -> 07.07.2025 | B149: 3 | C149: =мощность!E10 -> 0 | D149: =[2]Лист1!C205 -> 1081.81 | E149: 1081.81 | F149: 0 | G149: 0
A150: =мощность!$AA$10 -> 07.07.2025 | B150: 4 | C150: =мощность!F10 -> 0 | D150: =[2]Лист1!C206 -> 1048.64 | E150: 1048.64 | F150: 0 | G150: 0
A151: =мощность!$AA$10 -> 07.07.2025 | B151: 5 | C151: =мощность!G10 -> 0 | D151: =[2]Лист1!C207 -> 1131.2 | E151: 1131.2 | F151: 0 | G151: 0
A152: =мощность!$AA$10 -> 07.07.2025 | B152: 6 | C152: =мощность!H10 -> 0 | D152: =[2]Лист1!C208 -> 1431.98 | E152: 1431.98 | F152: 0 | G152: 0
A153: =мощность!$AA$10 -> 07.07.2025 | B153: 7 | C153: =мощность!I10 -> 0 | D153: =[2]Лист1!C209 -> 1867.01 | E153: 1867.01 | F153: 0 | G153: 0
A154: =мощность!$AA$10 -> 07.07.2025 | B154: 8 | C154: =мощность!J10 -> 0 | D154: =[2]Лист1!C210 -> 2373.73 | E154: 2373.73 | F154: 0 | G154: 0
A155: =мощность!$AA$10 -> 07.07.2025 | B155: 9 | C155: =мощность!K10 -> 0 | D155: =[2]Лист1!C211 -> 2459.88 | E155: 2459.88 | F155: 0 | G155: 0
A156: =мощность!$AA$10 -> 07.07.2025 | B156: 10 | C156: =мощность!L10 -> 0 | D156: =[2]Лист1!C212 -> 2503.65 | E156: 2503.65 | F156: 0 | G156: 0
A157: =мощность!$AA$10 -> 07.07.2025 | B157: 11 | C157: =мощность!M10 -> 0 | D157: =[2]Лист1!C213 -> 2320.48 | E157: 2320.48 | F157: 0 | G157: 0
A158: =мощность!$AA$10 -> 07.07.2025 | B158: 12 | C158: =мощность!N10 -> 0 | D158: =[2]Лист1!C214 -> 2297.24 | E158: 2297.24 | F158: 0 | G158: 0
A159: =мощность!$AA$10 -> 07.07.2025 | B159: 13 | C159: =мощность!O10 -> 0 | D159: =[2]Лист1!C215 -> 2310.69 | E159: 2310.69 | F159: 0 | G159: 0
A160: =мощность!$AA$10 -> 07.07.2025 | B160: 14 | C160: =мощность!P10 -> 0 | D160: =[2]Лист1!C216 -> 2358.07 | E160: 2358.07 | F160: 0 | G160: 0
A161: =мощность!$AA$10 -> 07.07.2025 | B161: 15 | C161: =мощность!Q10 -> 0 | D161: =[2]Лист1!C217 -> 2429.72 | E161: 2429.72 | F161: 0 | G161: 0
A162: =мощность!$AA$10 -> 07.07.2025 | B162: 16 | C162: =мощность!R10 -> 0 | D162: =[2]Лист1!C218 -> 2391.53 | E162: 2391.53 | F162: 0 | G162: 0
A163: =мощность!$AA$10 -> 07.07.2025 | B163: 17 | C163: =мощность!S10 -> 0 | D163: =[2]Лист1!C219 -> 2454.29 | E163: 2454.29 | F163: 0 | G163: 0
A164: =мощность!$AA$10 -> 07.07.2025 | B164: 18 | C164: =мощность!T10 -> 0 | D164: =[2]Лист1!C220 -> 2411.47 | E164: 2411.47 | F164: 0 | G164: 0
A165: =мощность!$AA$10 -> 07.07.2025 | B165: 19 | C165: =мощность!U10 -> 0 | D165: =[2]Лист1!C221 -> 2329.76 | E165: 2329.76 | F165: 0 | G165: 0
A166: =мощность!$AA$10 -> 07.07.2025 | B166: 20 | C166: =мощность!V10 -> 0 | D166: =[2]Лист1!C222 -> 2312.55 | E166: 2312.55 | F166: 0 | G166: 0
A167: =мощность!$AA$10 -> 07.07.2025 | B167: 21 | C167: =мощность!W10 -> 0 | D167: =[2]Лист1!C223 -> 2321.24 | E167: 2321.24 | F167: 0 | G167: 0
A168: =мощность!$AA$10 -> 07.07.2025 | B168: 22 | C168: =мощность!X10 -> 0 | D168: =[2]Лист1!C224 -> 2011.47 | E168: 2011.47 | F168: 0 | G168: 0
A169: =мощность!$AA$10 -> 07.07.2025 | B169: 23 | C169: =мощность!Y10 -> 0 | D169: =[2]Лист1!C225 -> 1758.27 | E169: 1758.27 | F169: 0 | G169: 0
A170: =мощность!$AA$11 -> 08.07.2025 | B170: 0 | C170: =мощность!B11 -> 0 | D170: =[2]Лист1!C226 -> 1419.28 | E170: 1419.28 | F170: 0 | G170: 0
A171: =мощность!$AA$11 -> 08.07.2025 | B171: 1 | C171: =мощность!C11 -> 0 | D171: =[2]Лист1!C227 -> 1157.74 | E171: 1157.74 | F171: 0 | G171: 0
A172: =мощность!$AA$11 -> 08.07.2025 | B172: 2 | C172: =мощность!D11 -> 0 | D172: =[2]Лист1!C228 -> 1003.32 | E172: 1003.32 | F172: 0 | G172: 0
A173: =мощность!$AA$11 -> 08.07.2025 | B173: 3 | C173: =мощность!E11 -> 0 | D173: =[2]Лист1!C229 -> 162.34 | E173: 162.34 | F173: 0 | G173: 0
A174: =мощность!$AA$11 -> 08.07.2025 | B174: 4 | C174: =мощность!F11 -> 0 | D174: =[2]Лист1!C230 -> 123.74 | E174: 123.74 | F174: 0 | G174: 0
A175: =мощность!$AA$11 -> 08.07.2025 | B175: 5 | C175: =мощность!G11 -> 0 | D175: =[2]Лист1!C231 -> 136.96 | E175: 136.96 | F175: 0 | G175: 0
A176: =мощность!$AA$11 -> 08.07.2025 | B176: 6 | C176: =мощность!H11 -> 0 | D176: =[2]Лист1!C232 -> 1131.81 | E176: 1131.81 | F176: 0 | G176: 0
A177: =мощность!$AA$11 -> 08.07.2025 | B177: 7 | C177: =мощность!I11 -> 0 | D177: =[2]Лист1!C233 -> 1696.85 | E177: 1696.85 | F177: 0 | G177: 0
A178: =мощность!$AA$11 -> 08.07.2025 | B178: 8 | C178: =мощность!J11 -> 0 | D178: =[2]Лист1!C234 -> 2207.87 | E178: 2207.87 | F178: 0 | G178: 0
A179: =мощность!$AA$11 -> 08.07.2025 | B179: 9 | C179: =мощность!K11 -> 0 | D179: =[2]Лист1!C235 -> 2268.74 | E179: 2268.74 | F179: 0 | G179: 0
A180: =мощность!$AA$11 -> 08.07.2025 | B180: 10 | C180: =мощность!L11 -> 0 | D180: =[2]Лист1!C236 -> 2196.37 | E180: 2196.37 | F180: 0 | G180: 0
A181: =мощность!$AA$11 -> 08.07.2025 | B181: 11 | C181: =мощность!M11 -> 0 | D181: =[2]Лист1!C237 -> 2185.9 | E181: 2185.9 | F181: 0 | G181: 0
A182: =мощность!$AA$11 -> 08.07.2025 | B182: 12 | C182: =мощность!N11 -> 0 | D182: =[2]Лист1!C238 -> 2176.56 | E182: 2176.56 | F182: 0 | G182: 0
A183: =мощность!$AA$11 -> 08.07.2025 | B183: 13 | C183: =мощность!O11 -> 0 | D183: =[2]Лист1!C239 -> 2172.16 | E183: 2172.16 | F183: 0 | G183: 0
A184: =мощность!$AA$11 -> 08.07.2025 | B184: 14 | C184: =мощность!P11 -> 0 | D184: =[2]Лист1!C240 -> 1695.59 | E184: 1695.59 | F184: 0 | G184: 0
A185: =мощность!$AA$11 -> 08.07.2025 | B185: 15 | C185: =мощность!Q11 -> 0 | D185: =[2]Лист1!C241 -> 2085.77 | E185: 2085.77 | F185: 0 | G185: 0
A186: =мощность!$AA$11 -> 08.07.2025 | B186: 16 | C186: =мощность!R11 -> 0 | D186: =[2]Лист1!C242 -> 2238.69 | E186: 2238.69 | F186: 0 | G186: 0
A187: =мощность!$AA$11 -> 08.07.2025 | B187: 17 | C187: =мощность!S11 -> 0 | D187: =[2]Лист1!C243 -> 2199.64 | E187: 2199.64 | F187: 0 | G187: 0
A188: =мощность!$AA$11 -> 08.07.2025 | B188: 18 | C188: =мощность!T11 -> 0 | D188: =[2]Лист1!C244 -> 2309.66 | E188: 2309.66 | F188: 0 | G188: 0
A189: =мощность!$AA$11 -> 08.07.2025 | B189: 19 | C189: =мощность!U11 -> 0 | D189: =[2]Лист1!C245 -> 2127.27 | E189: 2127.27 | F189: 0 | G189: 0
A190: =мощность!$AA$11 -> 08.07.2025 | B190: 20 | C190: =мощность!V11 -> 0 | D190: =[2]Лист1!C246 -> 1934.06 | E190: 1934.06 | F190: 0 | G190: 0
A191: =мощность!$AA$11 -> 08.07.2025 | B191: 21 | C191: =мощность!W11 -> 0 | D191: =[2]Лист1!C247 -> 2215.24 | E191: 2215.24 | F191: 0 | G191: 0
A192: =мощность!$AA$11 -> 08.07.2025 | B192: 22 | C192: =мощность!X11 -> 0 | D192: =[2]Лист1!C248 -> 1922.78 | E192: 1922.78 | F192: 0 | G192: 0
A193: =мощность!$AA$11 -> 08.07.2025 | B193: 23 | C193: =мощность!Y11 -> 0 | D193: =[2]Лист1!C249 -> 1719.85 | E193: 1719.85 | F193: 0 | G193: 0
A194: =мощность!$AA$12 -> 09.07.2025 | B194: 0 | C194: =мощность!B12 -> 0 | D194: =[2]Лист1!C250 -> 1472.96 | E194: 1472.96 | F194: 0 | G194: 0
A195: =мощность!$AA$12 -> 09.07.2025 | B195: 1 | C195: =мощность!C12 -> 0 | D195: =[2]Лист1!C251 -> 1041.49 | E195: =1*D195 -> 1041.49 | F195: =ROUND(C195*D195/1000,2) -> 0 | G195: =ROUND(C195*E195/1000,2) -> 0
A196: =мощность!$AA$12 -> 09.07.2025 | B196: 2 | C196: =мощность!D12 -> 0 | D196: =[2]Лист1!C252 -> 127.56 | E196: 127.56 | F196: 0 | G196: 0
A197: =мощность!$AA$12 -> 09.07.2025 | B197: 3 | C197: =мощность!E12 -> 0 | D197: =[2]Лист1!C253 -> 124.79 | E197: 124.79 | F197: 0 | G197: 0
A198: =мощность!$AA$12 -> 09.07.2025 | B198: 4 | C198: =мощность!F12 -> 0 | D198: =[2]Лист1!C254 -> 122.23 | E198: 122.23 | F198: 0 | G198: 0
A199: =мощность!$AA$12 -> 09.07.2025 | B199: 5 | C199: =мощность!G12 -> 0 | D199: =[2]Лист1!C255 -> 134.26 | E199: 134.26 | F199: 0 | G199: 0
A200: =мощность!$AA$12 -> 09.07.2025 | B200: 6 | C200: =мощность!H12 -> 0 | D200: =[2]Лист1!C256 -> 1042.94 | E200: 1042.94 | F200: 0 | G200: 0
... 553 more rows

Sheet округл (hidden)
B1: Почасовые расходы,кВтч ( мощность,кВт )
B3: за | C3: =мощность!B1 -> июль
B5: 1 | C5: 2 | D5: 3 | E5: 4 | F5: 5 | G5: 6 | H5: 7 | I5: 8 | J5: 9 | K5: 10 | L5: 11 | M5: 12 | N5: 13 | O5: 14 | P5: 15 | Q5: 16 | R5: 17 | S5: 18 | T5: 19 | U5: 20 | V5: 21 | W5: 22 | X5: 23 | Y5: 24 | Z5: 25 | AA5: 26 | AB5: 27 | AC5: 28 | AD5: 29 | AE5: 30 | AF5: 31
A6: 1 | B6: =ввод!$B$5 -> 0 | C6: =ввод!$B$6 -> 0 | D6: =ввод!$B$7 -> 0 | E6: =ввод!$B$8 -> 0 | F6: =ввод!$B$9 -> 0 | G6: =ввод!$B$10 -> 0 | H6: =ввод!$B$11 -> 0 | I6: =ввод!$B$12 -> 0 | J6: =ввод!$B$13 -> 0 | K6: =ввод!$B$14 -> 0 | L6: =ввод!$B$15 -> 0 | M6: =ввод!$B$16 -> 0 | N6: =ввод!$B$17 -> 0 | O6: =ввод!$B$18 -> 0 | P6: =ввод!$B$19 -> 0 | Q6: =ввод!$B$20 -> 0 | R6: =ввод!$B$21 -> 0 | S6: =ввод!$B$22 -> 0 | T6: =ввод!$B$23 -> 0 | U6: =ввод!$B$24 -> 0 | V6: =ввод!$B$25 -> 0 | W6: =ввод!$B$26 -> 0 | X6: =ввод!$B$27 -> 0 | Y6: =ввод!$B$28 -> 0 | Z6: =ввод!$B$29 -> 0 | AA6: =ввод!$B$30 -> 0 | AB6: =ввод!$B$31 -> 0 | AC6: =ввод!$B$32 -> 0 | AD6: =ввод!$B$33 -> 0 | AE6: =ввод!$B$34 -> 0 | AF6: =ввод!$B$35 -> 0
A7: 2 | B7: =ввод!$C$5 -> 0 | C7: =ввод!$C$6 -> 0 | D7: =ввод!$C$7 -> 0 | E7: =ввод!$C$8 -> 0 | F7: =ввод!$C$9 -> 0 | G7: =ввод!$C$10 -> 0 | H7: =ввод!$C$11 -> 0 | I7: =ввод!$C$12 -> 0 | J7: =ввод!$C$13 -> 0 | K7: =ввод!$C$14 -> 0 | L7: =ввод!$C$15 -> 0 | M7: =ввод!$C$16 -> 0 | N7: =ввод!$C$17 -> 0 | O7: =ввод!$C$18 -> 0 | P7: =ввод!$C$19 -> 0 | Q7: =ввод!$C$20 -> 0 | R7: =ввод!$C$21 -> 0 | S7: =ввод!$C$22 -> 0 | T7: =ввод!$C$23 -> 0 | U7: =ввод!$C$24 -> 0 | V7: =ввод!$C$25 -> 0 | W7: =ввод!$C$26 -> 0 | X7: =ввод!$C$27 -> 0 | Y7: =ввод!$C$28 -> 0 | Z7: =ввод!$C$29 -> 0 | AA7: =ввод!$C$30 -> 0 | AB7: =ввод!$C$31 -> 0 | AC7: =ввод!$C$32 -> 0 | AD7: =ввод!$C$33 -> 0 | AE7: =ввод!$C$34 -> 0 | AF7: =ввод!$C$35 -> 0
A8: 3 | B8: =ввод!$D$5 -> 0 | C8: =ввод!$D$6 -> 0 | D8: =ввод!$D$7 -> 0 | E8: =ввод!$D$8 -> 0 | F8: =ввод!$D$9 -> 0 | G8: =ввод!$D$10 -> 0 | H8: =ввод!$D$11 -> 0 | I8: =ввод!$D$12 -> 0 | J8: =ввод!$D$13 -> 0 | K8: =ввод!$D$14 -> 0 | L8: =ввод!$D$15 -> 0 | M8: =ввод!$D$16 -> 0 | N8: =ввод!$D$17 -> 0 | O8: =ввод!$D$18 -> 0 | P8: =ввод!$D$19 -> 0 | Q8: =ввод!$D$20 -> 0 | R8: =ввод!$D$21 -> 0 | S8: =ввод!$D$22 -> 0 | T8: =ввод!$D$23 -> 0 | U8: =ввод!$D$24 -> 0 | V8: =ввод!$D$25 -> 0 | W8: =ввод!$D$26 -> 0 | X8: =ввод!$D$27 -> 0 | Y8: =ввод!$D$28 -> 0 | Z8: =ввод!$D$29 -> 0 | AA8: =ввод!$D$30 -> 0 | AB8: =ввод!$D$31 -> 0 | AC8: =ввод!$D$32 -> 0 | AD8: =ввод!$D$33 -> 0 | AE8: =ввод!$D$34 -> 0 | AF8: =ввод!$D$35 -> 0
A9: 4 | B9: =ввод!$E$5 -> 0 | C9: =ввод!$E$6 -> 0 | D9: =ввод!$E$7 -> 0 | E9: =ввод!$E$8 -> 0 | F9: =ввод!$E$9 -> 0 | G9: =ввод!$E$10 -> 0 | H9: =ввод!$E$11 -> 0 | I9: =ввод!$E$12 -> 0 | J9: =ввод!$E$13 -> 0 | K9: =ввод!$E$14 -> 0 | L9: =ввод!$E$15 -> 0 | M9: =ввод!$E$16 -> 0 | N9: =ввод!$E$17 -> 0 | O9: =ввод!$E$18 -> 0 | P9: =ввод!$E$19 -> 0 | Q9: =ввод!$E$20 -> 0 | R9: =ввод!$E$21 -> 0 | S9: =ввод!$E$22 -> 0 | T9: =ввод!$E$23 -> 0 | U9: =ввод!$E$24 -> 0 | V9: =ввод!$E$25 -> 0 | W9: =ввод!$E$26 -> 0 | X9: =ввод!$E$27 -> 0 | Y9: =ввод!$E$28 -> 0 | Z9: =ввод!$E$29 -> 0 | AA9: =ввод!$E$30 -> 0 | AB9: =ввод!$E$31 -> 0 | AC9: =ввод!$E$32 -> 0 | AD9: =ввод!$E$33 -> 0 | AE9: =ввод!$E$34 -> 0 | AF9: =ввод!$E$35 -> 0
A10: 5 | B10: =ввод!$F$5 -> 0 | C10: =ввод!$F$6 -> 0 | D10: =ввод!$F$7 -> 0 | E10: =ввод!$F$8 -> 0 | F10: =ввод!$F$9 -> 0 | G10: =ввод!$F$10 -> 0 | H10: =ввод!$F$11 -> 0 | I10: =ввод!$F$12 -> 0 | J10: =ввод!$F$13 -> 0 | K10: =ввод!$F$14 -> 0 | L10: =ввод!$F$15 -> 0 | M10: =ввод!$F$16 -> 0 | N10: =ввод!$F$17 -> 0 | O10: =ввод!$F$18 -> 0 | P10: =ввод!$F$19 -> 0 | Q10: =ввод!$F$20 -> 0 | R10: =ввод!$F$21 -> 0 | S10: =ввод!$F$22 -> 0 | T10: =ввод!$F$23 -> 0 | U10: =ввод!$F$24 -> 0 | V10: =ввод!$F$25 -> 0 | W10: =ввод!$F$26 -> 0 | X10: =ввод!$F$27 -> 0 | Y10: =ввод!$F$28 -> 0 | Z10: =ввод!$F$29 -> 0 | AA10: =ввод!$F$30 -> 0 | AB10: =ввод!$F$31 -> 0 | AC10: =ввод!$F$32 -> 0 | AD10: =ввод!$F$33 -> 0 | AE10: =ввод!$F$34 -> 0 | AF10: =ввод!$F$35 -> 0
A11: 6 | B11: =ввод!$G$5 -> 0 | C11: =ввод!$G$6 -> 0 | D11: =ввод!$G$7 -> 0 | E11: =ввод!$G$8 -> 0 | F11: =ввод!$G$9 -> 0 | G11: =ввод!$G$10 -> 0 | H11: =ввод!$G$11 -> 0 | I11: =ввод!$G$12 -> 0 | J11: =ввод!$G$13 -> 0 | K11: =ввод!$G$14 -> 0 | L11: =ввод!$G$15 -> 0 | M11: =ввод!$G$16 -> 0 | N11: =ввод!$G$17 -> 0 | O11: =ввод!$G$18 -> 0 | P11: =ввод!$G$19 -> 0 | Q11: =ввод!$G$20 -> 0 | R11: =ввод!$G$21 -> 0 | S11: =ввод!$G$22 -> 0 | T11: =ввод!$G$23 -> 0 | U11: =ввод!$G$24 -> 0 | V11: =ввод!$G$25 -> 0 | W11: =ввод!$G$26 -> 0 | X11: =ввод!$G$27 -> 0 | Y11: =ввод!$G$28 -> 0 | Z11: =ввод!$G$29 -> 0 | AA11: =ввод!$G$30 -> 0 | AB11: =ввод!$G$31 -> 0 | AC11: =ввод!$G$32 -> 0 | AD11: =ввод!$G$33 -> 0 | AE11: =ввод!$G$34 -> 0 | AF11: =ввод!$G$35 -> 0
A12: 7 | B12: =ввод!$H$5 -> 0 | C12: =ввод!$H$6 -> 0 | D12: =ввод!$H$7 -> 0 | E12: =ввод!$H$8 -> 0 | F12: =ввод!$H$9 -> 0 | G12: =ввод!$H$10 -> 0 | H12: =ввод!$H$11 -> 0 | I12: =ввод!$H$12 -> 0 | J12: =ввод!$H$13 -> 0 | K12: =ввод!$H$14 -> 0 | L12: =ввод!$H$15 -> 0 | M12: =ввод!$H$16 -> 0 | N12: =ввод!$H$17 -> 0 | O12: =ввод!$H$18 -> 0 | P12: =ввод!$H$19 -> 0 | Q12: =ввод!$H$20 -> 0 | R12: =ввод!$H$21 -> 0 | S12: =ввод!$H$22 -> 0 | T12: =ввод!$H$23 -> 0 | U12: =ввод!$H$24 -> 0 | V12: =ввод!$H$25 -> 0 | W12: =ввод!$H$26 -> 0 | X12: =ввод!$H$27 -> 0 | Y12: =ввод!$H$28 -> 0 | Z12: =ввод!$H$29 -> 0 | AA12: =ввод!$H$30 -> 0 | AB12: =ввод!$H$31 -> 0 | AC12: =ввод!$H$32 -> 0 | AD12: =ввод!$H$33 -> 0 | AE12: =ввод!$H$34 -> 0 | AF12: =ввод!$H$35 -> 0
A13: 8 | B13: =ввод!$I$5 -> 0 | C13: =ввод!$I$6 -> 0 | D13: =ввод!$I$7 -> 0 | E13: =ввод!$I$8 -> 0 | F13: =ввод!$I$9 -> 0 | G13: =ввод!$I$10 -> 0 | H13: =ввод!$I$11 -> 0 | I13: =ввод!$I$12 -> 0 | J13: =ввод!$I$13 -> 0 | K13: =ввод!$I$14 -> 0 | L13: =ввод!$I$15 -> 0 | M13: =ввод!$I$16 -> 0 | N13: =ввод!$I$17 -> 0 | O13: =ввод!$I$18 -> 0 | P13: =ввод!$I$19 -> 0 | Q13: =ввод!$I$20 -> 0 | R13: =ввод!$I$21 -> 0 | S13: =ввод!$I$22 -> 0 | T13: =ввод!$I$23 -> 0 | U13: =ввод!$I$24 -> 0 | V13: =ввод!$I$25 -> 0 | W13: =ввод!$I$26 -> 0 | X13: =ввод!$I$27 -> 0 | Y13: =ввод!$I$28 -> 0 | Z13: =ввод!$I$29 -> 0 | AA13: =ввод!$I$30 -> 0 | AB13: =ввод!$I$31 -> 0 | AC13: =ввод!$I$32 -> 0 | AD13: =ввод!$I$33 -> 0 | AE13: =ввод!$I$34 -> 0 | AF13: =ввод!$I$35 -> 0
A14: 9 | B14: =ввод!$J$5 -> 0 | C14: =ввод!$J$6 -> 0 | D14: =ввод!$J$7 -> 0 | E14: =ввод!$J$8 -> 0 | F14: =ввод!$J$9 -> 0 | G14: =ввод!$J$10 -> 0 | H14: =ввод!$J$11 -> 0 | I14: =ввод!$J$12 -> 0 | J14: =ввод!$J$13 -> 0 | K14: =ввод!$J$14 -> 0 | L14: =ввод!$J$15 -> 0 | M14: =ввод!$J$16 -> 0 | N14: =ввод!$J$17 -> 0 | O14: =ввод!$J$18 -> 0 | P14: =ввод!$J$19 -> 0 | Q14: =ввод!$J$20 -> 0 | R14: =ввод!$J$21 -> 0 | S14: =ввод!$J$22 -> 0 | T14: =ввод!$J$23 -> 0 | U14: =ввод!$J$24 -> 0 | V14: =ввод!$J$25 -> 0 | W14: =ввод!$J$26 -> 0 | X14: =ввод!$J$27 -> 0 | Y14: =ввод!$J$28 -> 0 | Z14: =ввод!$J$29 -> 0 | AA14: =ввод!$J$30 -> 0 | AB14: =ввод!$J$31 -> 0 | AC14: =ввод!$J$32 -> 0 | AD14: =ввод!$J$33 -> 0 | AE14: =ввод!$J$34 -> 0 | AF14: =ввод!$J$35 -> 0
A15: 10 | B15: =ввод!$K$5 -> 0 | C15: =ввод!$K$6 -> 0 | D15: =ввод!$K$7 -> 0 | E15: =ввод!$K$8 -> 0 | F15: =ввод!$K$9 -> 0 | G15: =ввод!$K$10 -> 0 | H15: =ввод!$K$11 -> 0 | I15: =ввод!$K$12 -> 0 | J15: =ввод!$K$13 -> 0 | K15: =ввод!$K$14 -> 0 | L15: =ввод!$K$15 -> 0 | M15: =ввод!$K$16 -> 0 | N15: =ввод!$K$17 -> 0 | O15: =ввод!$K$18 -> 0 | P15: =ввод!$K$19 -> 0 | Q15: =ввод!$K$20 -> 0 | R15: =ввод!$K$21 -> 0 | S15: =ввод!$K$22 -> 0 | T15: =ввод!$K$23 -> 0 | U15: =ввод!$K$24 -> 0 | V15: =ввод!$K$25 -> 0 | W15: =ввод!$K$26 -> 0 | X15: =ввод!$K$27 -> 0 | Y15: =ввод!$K$28 -> 0 | Z15: =ввод!$K$29 -> 0 | AA15: =ввод!$K$30 -> 0 | AB15: =ввод!$K$31 -> 0 | AC15: =ввод!$K$32 -> 0 | AD15: =ввод!$K$33 -> 0 | AE15: =ввод!$K$34 -> 0 | AF15: =ввод!$K$35 -> 0
A16: 11 | B16: =ввод!$L$5 -> 0 | C16: =ввод!$L$6 -> 0 | D16: =ввод!$L$7 -> 0 | E16: =ввод!$L$8 -> 0 | F16: =ввод!$L$9 -> 0 | G16: =ввод!$L$10 -> 0 | H16: =ввод!$L$11 -> 0 | I16: =ввод!$L$12 -> 0 | J16: =ввод!$L$13 -> 0 | K16: =ввод!$L$14 -> 0 | L16: =ввод!$L$15 -> 0 | M16: =ввод!$L$16 -> 0 | N16: =ввод!$L$17 -> 0 | O16: =ввод!$L$18 -> 0 | P16: =ввод!$L$19 -> 0 | Q16: =ввод!$L$20 -> 0 | R16: =ввод!$L$21 -> 0 | S16: =ввод!$L$22 -> 0 | T16: =ввод!$L$23 -> 0 | U16: =ввод!$L$24 -> 0 | V16: =ввод!$L$25 -> 0 | W16: =ввод!$L$26 -> 0 | X16: =ввод!$L$27 -> 0 | Y16: =ввод!$L$28 -> 0 | Z16: =ввод!$L$29 -> 0 | AA16: =ввод!$L$30 -> 0 | AB16: =ввод!$L$31 -> 0 | AC16: =ввод!$L$32 -> 0 | AD16: =ввод!$L$33 -> 0 | AE16: =ввод!$L$34 -> 0 | AF16: =ввод!$L$35 -> 0
A17: 12 | B17: =ввод!$M$5 -> 0 | C17: =ввод!$M$6 -> 0 | D17: =ввод!$M$7 -> 0 | E17: =ввод!$M$8 -> 0 | F17: =ввод!$M$9 -> 0 | G17: =ввод!$M$10 -> 0 | H17: =ввод!$M$11 -> 0 | I17: =ввод!$M$12 -> 0 | J17: =ввод!$M$13 -> 0 | K17: =ввод!$M$14 -> 0 | L17: =ввод!$M$15 -> 0 | M17: =ввод!$M$16 -> 0 | N17: =ввод!$M$17 -> 0 | O17: =ввод!$M$18 -> 0 | P17: =ввод!$M$19 -> 0 | Q17: =ввод!$M$20 -> 0 | R17: =ввод!$M$21 -> 0 | S17: =ввод!$M$22 -> 0 | T17: =ввод!$M$23 -> 0 | U17: =ввод!$M$24 -> 0 | V17: =ввод!$M$25 -> 0 | W17: =ввод!$M$26 -> 0 | X17: =ввод!$M$27 -> 0 | Y17: =ввод!$M$28 -> 0 | Z17: =ввод!$M$29 -> 0 | AA17: =ввод!$M$30 -> 0 | AB17: =ввод!$M$31 -> 0 | AC17: =ввод!$M$32 -> 0 | AD17: =ввод!$M$33 -> 0 | AE17: =ввод!$M$34 -> 0 | AF17: =ввод!$M$35 -> 0
A18: 13 | B18: =ввод!$N$5 -> 0 | C18: =ввод!$N$6 -> 0 | D18: =ввод!$N$7 -> 0 | E18: =ввод!$N$8 -> 0 | F18: =ввод!$N$9 -> 0 | G18: =ввод!$N$10 -> 0 | H18: =ввод!$N$11 -> 0 | I18: =ввод!$N$12 -> 0 | J18: =ввод!$N$13 -> 0 | K18: =ввод!$N$14 -> 0 | L18: =ввод!$N$15 -> 0 | M18: =ввод!$N$16 -> 0 | N18: =ввод!$N$17 -> 0 | O18: =ввод!$N$18 -> 0 | P18: =ввод!$N$19 -> 0 | Q18: =ввод!$N$20 -> 0 | R18: =ввод!$N$21 -> 0 | S18: =ввод!$N$22 -> 0 | T18: =ввод!$N$23 -> 0 | U18: =ввод!$N$24 -> 0 | V18: =ввод!$N$25 -> 0 | W18: =ввод!$N$26 -> 0 | X18: =ввод!$N$27 -> 0 | Y18: =ввод!$N$28 -> 0 | Z18: =ввод!$N$29 -> 0 | AA18: =ввод!$N$30 -> 0 | AB18: =ввод!$N$31 -> 0 | AC18: =ввод!$N$32 -> 0 | AD18: =ввод!$N$33 -> 0 | AE18: =ввод!$N$34 -> 0 | AF18: =ввод!$N$35 -> 0
A19: 14 | B19: =ввод!$O$5 -> 0 | C19: =ввод!$O$6 -> 0 | D19: =ввод!$O$7 -> 0 | E19: =ввод!$O$8 -> 0 | F19: =ввод!$O$9 -> 0 | G19: =ввод!$O$10 -> 0 | H19: =ввод!$O$11 -> 0 | I19: =ввод!$O$12 -> 0 | J19: =ввод!$O$13 -> 0 | K19: =ввод!$O$14 -> 0 | L19: =ввод!$O$15 -> 0 | M19: =ввод!$O$16 -> 0 | N19: =ввод!$O$17 -> 0 | O19: =ввод!$O$18 -> 0 | P19: =ввод!$O$19 -> 0 | Q19: =ввод!$O$20 -> 0 | R19: =ввод!$O$21 -> 0 | S19: =ввод!$O$22 -> 0 | T19: =ввод!$O$23 -> 0 | U19: =ввод!$O$24 -> 0 | V19: =ввод!$O$25 -> 0 | W19: =ввод!$O$26 -> 0 | X19: =ввод!$O$27 -> 0 | Y19: =ввод!$O$28 -> 0 | Z19: =ввод!$O$29 -> 0 | AA19: =ввод!$O$30 -> 0 | AB19: =ввод!$O$31 -> 0 | AC19: =ввод!$O$32 -> 0 | AD19: =ввод!$O$33 -> 0 | AE19: =ввод!$O$34 -> 0 | AF19: =ввод!$O$35 -> 0
A20: 15 | B20: =ввод!$P$5 -> 0 | C20: =ввод!$P$6 -> 0 | D20: =ввод!$P$7 -> 0 | E20: =ввод!$P$8 -> 0 | F20: =ввод!$P$9 -> 0 | G20: =ввод!$P$10 -> 0 | H20: =ввод!$P$11 -> 0 | I20: =ввод!$P$12 -> 0 | J20: =ввод!$P$13 -> 0 | K20: =ввод!$P$14 -> 0 | L20: =ввод!$P$15 -> 0 | M20: =ввод!$P$16 -> 0 | N20: =ввод!$P$17 -> 0 | O20: =ввод!$P$18 -> 0 | P20: =ввод!$P$19 -> 0 | Q20: =ввод!$P$20 -> 0 | R20: =ввод!$P$21 -> 0 | S20: =ввод!$P$22 -> 0 | T20: =ввод!$P$23 -> 0 | U20: =ввод!$P$24 -> 0 | V20: =ввод!$P$25 -> 0 | W20: =ввод!$P$26 -> 0 | X20: =ввод!$P$27 -> 0 | Y20: =ввод!$P$28 -> 0 | Z20: =ввод!$P$29 -> 0 | AA20: =ввод!$P$30 -> 0 | AB20: =ввод!$P$31 -> 0 | AC20: =ввод!$P$32 -> 0 | AD20: =ввод!$P$33 -> 0 | AE20: =ввод!$P$34 -> 0 | AF20: =ввод!$P$35 -> 0
A21: 16 | B21: =ввод!$Q$5 -> 0 | C21: =ввод!$Q$6 -> 0 | D21: =ввод!$Q$7 -> 0 | E21: =ввод!$Q$8 -> 0 | F21: =ввод!$Q$9 -> 0 | G21: =ввод!$Q$10 -> 0 | H21: =ввод!$Q$11 -> 0 | I21: =ввод!$Q$12 -> 0 | J21: =ввод!$Q$13 -> 0 | K21: =ввод!$Q$14 -> 0 | L21: =ввод!$Q$15 -> 0 | M21: =ввод!$Q$16 -> 0 | N21: =ввод!$Q$17 -> 0 | O21: =ввод!$Q$18 -> 0 | P21: =ввод!$Q$19 -> 0 | Q21: =ввод!$Q$20 -> 0 | R21: =ввод!$Q$21 -> 0 | S21: =ввод!$Q$22 -> 0 | T21: =ввод!$Q$23 -> 0 | U21: =ввод!$Q$24 -> 0 | V21: =ввод!$Q$25 -> 0 | W21: =ввод!$Q$26 -> 0 | X21: =ввод!$Q$27 -> 0 | Y21: =ввод!$Q$28 -> 0 | Z21: =ввод!$Q$29 -> 0 | AA21: =ввод!$Q$30 -> 0 | AB21: =ввод!$Q$31 -> 0 | AC21: =ввод!$Q$32 -> 0 | AD21: =ввод!$Q$33 -> 0 | AE21: =ввод!$Q$34 -> 0 | AF21: =ввод!$Q$35 -> 0
A22: 17 | B22: =ввод!$R$5 -> 0 | C22: =ввод!$R$6 -> 0 | D22: =ввод!$R$7 -> 0 | E22: =ввод!$R$8 -> 0 | F22: =ввод!$R$9 -> 0 | G22: =ввод!$R$10 -> 0 | H22: =ввод!$R$11 -> 0 | I22: =ввод!$R$12 -> 0 | J22: =ввод!$R$13 -> 0 | K22: =ввод!$R$14 -> 0 | L22: =ввод!$R$15 -> 0 | M22: =ввод!$R$16 -> 0 | N22: =ввод!$R$17 -> 0 | O22: =ввод!$R$18 -> 0 | P22: =ввод!$R$19 -> 0 | Q22: =ввод!$R$20 -> 0 | R22: =ввод!$R$21 -> 0 | S22: =ввод!$R$22 -> 0 | T22: =ввод!$R$23 -> 0 | U22: =ввод!$R$24 -> 0 | V22: =ввод!$R$25 -> 0 | W22: =ввод!$R$26 -> 0 | X22: =ввод!$R$27 -> 0 | Y22: =ввод!$R$28 -> 0 | Z22: =ввод!$R$29 -> 0 | AA22: =ввод!$R$30 -> 0 | AB22: =ввод!$R$31 -> 0 | AC22: =ввод!$R$32 -> 0 | AD22: =ввод!$R$33 -> 0 | AE22: =ввод!$R$34 -> 0 | AF22: =ввод!$R$35 -> 0
A23: 18 | B23: =ввод!$S$5 -> 0 | C23: =ввод!$S$6 -> 0 | D23: =ввод!$S$7 -> 0 | E23: =ввод!$S$8 -> 0 | F23: =ввод!$S$9 -> 0 | G23: =ввод!$S$10 -> 0 | H23: =ввод!$S$11 -> 0 | I23: =ввод!$S$12 -> 0 | J23: =ввод!$S$13 -> 0 | K23: =ввод!$S$14 -> 0 | L23: =ввод!$S$15 -> 0 | M23: =ввод!$S$16 -> 0 | N23: =ввод!$S$17 -> 0 | O23: =ввод!$S$18 -> 0 | P23: =ввод!$S$19 -> 0 | Q23: =ввод!$S$20 -> 0 | R23: =ввод!$S$21 -> 0 | S23: =ввод!$S$22 -> 0 | T23: =ввод!$S$23 -> 0 | U23: =ввод!$S$24 -> 0 | V23: =ввод!$S$25 -> 0 | W23: =ввод!$S$26 -> 0 | X23: =ввод!$S$27 -> 0 | Y23: =ввод!$S$28 -> 0 | Z23: =ввод!$S$29 -> 0 | AA23: =ввод!$S$30 -> 0 | AB23: =ввод!$S$31 -> 0 | AC23: =ввод!$S$32 -> 0 | AD23: =ввод!$S$33 -> 0 | AE23: =ввод!$S$34 -> 0 | AF23: =ввод!$S$35 -> 0
A24: 19 | B24: =ввод!$T$5 -> 0 | C24: =ввод!$T$6 -> 0 | D24: =ввод!$T$7 -> 0 | E24: =ввод!$T$8 -> 0 | F24: =ввод!$T$9 -> 0 | G24: =ввод!$T$10 -> 0 | H24: =ввод!$T$11 -> 0 | I24: =ввод!$T$12 -> 0 | J24: =ввод!$T$13 -> 0 | K24: =ввод!$T$14 -> 0 | L24: =ввод!$T$15 -> 0 | M24: =ввод!$T$16 -> 0 | N24: =ввод!$T$17 -> 0 | O24: =ввод!$T$18 -> 0 | P24: =ввод!$T$19 -> 0 | Q24: =ввод!$T$20 -> 0 | R24: =ввод!$T$21 -> 0 | S24: =ввод!$T$22 -> 0 | T24: =ввод!$T$23 -> 0 | U24: =ввод!$T$24 -> 0 | V24: =ввод!$T$25 -> 0 | W24: =ввод!$T$26 -> 0 | X24: =ввод!$T$27 -> 0 | Y24: =ввод!$T$28 -> 0 | Z24: =ввод!$T$29 -> 0 | AA24: =ввод!$T$30 -> 0 | AB24: =ввод!$T$31 -> 0 | AC24: =ввод!$T$32 -> 0 | AD24: =ввод!$T$33 -> 0 | AE24: =ввод!$T$34 -> 0 | AF24: =ввод!$T$35 -> 0
A25: 20 | B25: =ввод!$U$5 -> 0 | C25: =ввод!$U$6 -> 0 | D25: =ввод!$U$7 -> 0 | E25: =ввод!$U$8 -> 0 | F25: =ввод!$U$9 -> 0 | G25: =ввод!$U$10 -> 0 | H25: =ввод!$U$11 -> 0 | I25: =ввод!$U$12 -> 0 | J25: =ввод!$U$13 -> 0 | K25: =ввод!$U$14 -> 0 | L25: =ввод!$U$15 -> 0 | M25: =ввод!$U$16 -> 0 | N25: =ввод!$U$17 -> 0 | O25: =ввод!$U$18 -> 0 | P25: =ввод!$U$19 -> 0 | Q25: =ввод!$U$20 -> 0 | R25: =ввод!$U$21 -> 0 | S25: =ввод!$U$22 -> 0 | T25: =ввод!$U$23 -> 0 | U25: =ввод!$U$24 -> 0 | V25: =ввод!$U$25 -> 0 | W25: =ввод!$U$26 -> 0 | X25: =ввод!$U$27 -> 0 | Y25: =ввод!$U$28 -> 0 | Z25: =ввод!$U$29 -> 0 | AA25: =ввод!$U$30 -> 0 | AB25: =ввод!$U$31 -> 0 | AC25: =ввод!$U$32 -> 0 | AD25: =ввод!$U$33 -> 0 | AE25: =ввод!$U$34 -> 0 | AF25: =ввод!$U$35 -> 0
A26: 21 | B26: =ввод!$V$5 -> 0 | C26: =ввод!$V$6 -> 0 | D26: =ввод!$V$7 -> 0 | E26: =ввод!$V$8 -> 0 | F26: =ввод!$V$9 -> 0 | G26: =ввод!$V$10 -> 0 | H26: =ввод!$V$11 -> 0 | I26: =ввод!$V$12 -> 0 | J26: =ввод!$V$13 -> 0 | K26: =ввод!$V$14 -> 0 | L26: =ввод!$V$15 -> 0 | M26: =ввод!$V$16 -> 0 | N26: =ввод!$V$17 -> 0 | O26: =ввод!$V$18 -> 0 | P26: =ввод!$V$19 -> 0 | Q26: =ввод!$V$20 -> 0 | R26: =ввод!$V$21 -> 0 | S26: =ввод!$V$22 -> 0 | T26: =ввод!$V$23 -> 0 | U26: =ввод!$V$24 -> 0 | V26: =ввод!$V$25 -> 0 | W26: =ввод!$V$26 -> 0 | X26: =ввод!$V$27 -> 0 | Y26: =ввод!$V$28 -> 0 | Z26: =ввод!$V$29 -> 0 | AA26: =ввод!$V$30 -> 0 | AB26: =ввод!$V$31 -> 0 | AC26: =ввод!$V$32 -> 0 | AD26: =ввод!$V$33 -> 0 | AE26: =ввод!$V$34 -> 0 | AF26: =ввод!$V$35 -> 0
A27: 22 | B27: =ввод!$W$5 -> 0 | C27: =ввод!$W$6 -> 0 | D27: =ввод!$W$7 -> 0 | E27: =ввод!$W$8 -> 0 | F27: =ввод!$W$9 -> 0 | G27: =ввод!$W$10 -> 0 | H27: =ввод!$W$11 -> 0 | I27: =ввод!$W$12 -> 0 | J27: =ввод!$W$13 -> 0 | K27: =ввод!$W$14 -> 0 | L27: =ввод!$W$15 -> 0 | M27: =ввод!$W$16 -> 0 | N27: =ввод!$W$17 -> 0 | O27: =ввод!$W$18 -> 0 | P27: =ввод!$W$19 -> 0 | Q27: =ввод!$W$20 -> 0 | R27: =ввод!$W$21 -> 0 | S27: =ввод!$W$22 -> 0 | T27: =ввод!$W$23 -> 0 | U27: =ввод!$W$24 -> 0 | V27: =ввод!$W$25 -> 0 | W27: =ввод!$W$26 -> 0 | X27: =ввод!$W$27 -> 0 | Y27: =ввод!$W$28 -> 0 | Z27: =ввод!$W$29 -> 0 | AA27: =ввод!$W$30 -> 0 | AB27: =ввод!$W$31 -> 0 | AC27: =ввод!$W$32 -> 0 | AD27: =ввод!$W$33 -> 0 | AE27: =ввод!$W$34 -> 0 | AF27: =ввод!$W$35 -> 0
A28: 23 | B28: =ввод!$X$5 -> 0 | C28: =ввод!$X$6 -> 0 | D28: =ввод!$X$7 -> 0 | E28: =ввод!$X$8 -> 0 | F28: =ввод!$X$9 -> 0 | G28: =ввод!$X$10 -> 0 | H28: =ввод!$X$11 -> 0 | I28: =ввод!$X$12 -> 0 | J28: =ввод!$X$13 -> 0 | K28: =ввод!$X$14 -> 0 | L28: =ввод!$X$15 -> 0 | M28: =ввод!$X$16 -> 0 | N28: =ввод!$X$17 -> 0 | O28: =ввод!$X$18 -> 0 | P28: =ввод!$X$19 -> 0 | Q28: =ввод!$X$20 -> 0 | R28: =ввод!$X$21 -> 0 | S28: =ввод!$X$22 -> 0 | T28: =ввод!$X$23 -> 0 | U28: =ввод!$X$24 -> 0 | V28: =ввод!$X$25 -> 0 | W28: =ввод!$X$26 -> 0 | X28: =ввод!$X$27 -> 0 | Y28: =ввод!$X$28 -> 0 | Z28: =ввод!$X$29 -> 0 | AA28: =ввод!$X$30 -> 0 | AB28: =ввод!$X$31 -> 0 | AC28: =ввод!$X$32 -> 0 | AD28: =ввод!$X$33 -> 0 | AE28: =ввод!$X$34 -> 0 | AF28: =ввод!$X$35 -> 0
A29: 24 | B29: =ввод!$Y$5 -> 0 | C29: =ввод!$Y$6 -> 0 | D29: =ввод!$Y$7 -> 0 | E29: =ввод!$Y$8 -> 0 | F29: =ввод!$Y$9 -> 0 | G29: =ввод!$Y$10 -> 0 | H29: =ввод!$Y$11 -> 0 | I29: =ввод!$Y$12 -> 0 | J29: =ввод!$Y$13 -> 0 | K29: =ввод!$Y$14 -> 0 | L29: =ввод!$Y$15 -> 0 | M29: =ввод!$Y$16 -> 0 | N29: =ввод!$Y$17 -> 0 | O29: =ввод!$Y$18 -> 0 | P29: =ввод!$Y$19 -> 0 | Q29: =ввод!$Y$20 -> 0 | R29: =ввод!$Y$21 -> 0 | S29: =ввод!$Y$22 -> 0 | T29: =ввод!$Y$23 -> 0 | U29: =ввод!$Y$24 -> 0 | V29: =ввод!$Y$25 -> 0 | W29: =ввод!$Y$26 -> 0 | X29: =ввод!$Y$27 -> 0 | Y29: =ввод!$Y$28 -> 0 | Z29: =ввод!$Y$29 -> 0 | AA29: =ввод!$Y$30 -> 0 | AB29: =ввод!$Y$31 -> 0 | AC29: =ввод!$Y$32 -> 0 | AD29: =ввод!$Y$33 -> 0 | AE29: =ввод!$Y$34 -> 0 | AF29: =ввод!$Y$35 -> 0
A31: итог | B31: =SUM(B6:B29) -> 0 | C31: =SUM(C6:C29) -> 0 | D31: 0 | E31: 0 | F31: 0 | G31: 0 | H31: 0 | I31: 0 | J31: 0 | K31: 0 | L31: 0 | M31: 0 | N31: 0 | O31: 0 | P31: 0 | Q31: 0 | R31: 0 | S31: 0 | T31: 0 | U31: 0 | V31: 0 | W31: 0 | X31: 0 | Y31: 0 | Z31: 0 | AA31: 0 | AB31: 0 | AC31: 0 | AD31: 0 | AE31: 0 | AF31: 0 | AG31: =SUM(B6:AF30) -> 0
B36: 1 | C36: 2 | D36: 3 | E36: 4 | F36: 5 | G36: 6 | H36: 7 | I36: 8 | J36: 9 | K36: 10 | L36: 11 | M36: 12 | N36: 13 | O36: 14 | P36: 15 | Q36: 16 | R36: 17 | S36: 18 | T36: 19 | U36: 20 | V36: 21 | W36: 22 | X36: 23 | Y36: 24 | Z36: 25 | AA36: 26 | AB36: 27 | AC36: 28 | AD36: 29 | AE36: 30 | AF36: 31
A37: 1 | B37: =B6 -> 0 | C37: =C6+(B60-ROUND(B60,0)) -> 0 | D37: =D6+(C60-ROUND(C60,0)) -> 0 | E37: 0 | F37: 0 | G37: 0 | H37: 0 | I37: 0 | J37: 0 | K37: 0 | L37: 0 | M37: 0 | N37: 0 | O37: 0 | P37: 0 | Q37: 0 | R37: 0 | S37: 0 | T37: 0 | U37: 0 | V37: 0 | W37: 0 | X37: 0 | Y37: 0 | Z37: 0 | AA37: 0 | AB37: 0 | AC37: =AC6+(AB60-ROUND(AB60,0)) -> 0 | AD37: =AD6+(AC60-ROUND(AC60,0)) -> 0 | AE37: =AE6+(AD60-ROUND(AD60,0)) -> 0 | AF37: =AF6+(AE60-ROUND(AE60,0)) -> 0
A38: 2 | B38: =B7+(B37-ROUND(B37,0)) -> 0 | C38: =C7+(C37-ROUND(C37,0)) -> 0 | D38: =D7+(D37-ROUND(D37,0)) -> 0 | E38: 0 | F38: 0 | G38: 0 | H38: 0 | I38: 0 | J38: 0 | K38: 0 | L38: 0 | M38: 0 | N38: 0 | O38: 0 | P38: 0 | Q38: 0 | R38: 0 | S38: 0 | T38: 0 | U38: 0 | V38: 0 | W38: 0 | X38: 0 | Y38: 0 | Z38: 0 | AA38: 0 | AB38: 0 | AC38: =AC7+(AC37-ROUND(AC37,0)) -> 0 | AD38: =AD7+(AD37-ROUND(AD37,0)) -> 0 | AE38: =AE7+(AE37-ROUND(AE37,0)) -> 0 | AF38: =AF7+(AF37-ROUND(AF37,0)) -> 0
A39: 3 | B39: =B8+(B38-ROUND(B38,0)) -> 0 | C39: 0 | D39: 0 | E39: 0 | F39: 0 | G39: 0 | H39: 0 | I39: 0 | J39: 0 | K39: 0 | L39: 0 | M39: 0 | N39: 0 | O39: 0 | P39: 0 | Q39: 0 | R39: 0 | S39: 0 | T39: 0 | U39: 0 | V39: 0 | W39: 0 | X39: 0 | Y39: 0 | Z39: 0 | AA39: 0 | AB39: 0 | AC39: 0 | AD39: =AD8+(AD38-ROUND(AD38,0)) -> 0 | AE39: 0 | AF39: 0
A40: 4 | B40: 0 | C40: 0 | D40: 0 | E40: 0 | F40: 0 | G40: 0 | H40: 0 | I40: 0 | J40: 0 | K40: 0 | L40: 0 | M40: 0 | N40: 0 | O40: 0 | P40: 0 | Q40: 0 | R40: 0 | S40: 0 | T40: 0 | U40: 0 | V40: 0 | W40: 0 | X40: 0 | Y40: 0 | Z40: 0 | AA40: 0 | AB40: 0 | AC40: 0 | AD40: 0 | AE40: 0 | AF40: 0
A41: 5 | B41: 0 | C41: 0 | D41: 0 | E41: 0 | F41: 0 | G41: 0 | H41: 0 | I41: 0 | J41: 0 | K41: 0 | L41: 0 | M41: 0 | N41: 0 | O41: 0 | P41: 0 | Q41: 0 | R41: 0 | S41: 0 | T41: 0 | U41: 0 | V41: 0 | W41: 0 | X41: 0 | Y41: 0 | Z41: 0 | AA41: 0 | AB41: 0 | AC41: 0 | AD41: 0 | AE41: 0 | AF41: 0
A42: 6 | B42: 0 | C42: 0 | D42: 0 | E42: 0 | F42: 0 | G42: 0 | H42: 0 | I42: 0 | J42: 0 | K42: 0 | L42: 0 | M42: 0 | N42: 0 | O42: 0 | P42: 0 | Q42: 0 | R42: 0 | S42: 0 | T42: 0 | U42: 0 | V42: 0 | W42: 0 | X42: 0 | Y42: 0 | Z42: 0 | AA42: 0 | AB42: 0 | AC42: 0 | AD42: 0 | AE42: 0 | AF42: 0
A43: 7 | B43: 0 | C43: 0 | D43: 0 | E43: 0 | F43: 0 | G43: 0 | H43: 0 | I43: 0 | J43: 0 | K43: 0 | L43: 0 | M43: 0 | N43: 0 | O43: 0 | P43: 0 | Q43: 0 | R43: 0 | S43: 0 | T43: 0 | U43: 0 | V43: 0 | W43: 0 | X43: 0 | Y43: 0 | Z43: 0 | AA43: 0 | AB43: 0 | AC43: 0 | AD43: 0 | AE43: 0 | AF43: 0
A44: 8 | B44: 0 | C44: 0 | D44: 0 | E44: 0 | F44: 0 | G44: 0 | H44: 0 | I44: 0 | J44: 0 | K44: 0 | L44: 0 | M44: 0 | N44: 0 | O44: 0 | P44: 0 | Q44: 0 | R44: 0 | S44: 0 | T44: 0 | U44: 0 | V44: 0 | W44: 0 | X44: 0 | Y44: 0 | Z44: 0 | AA44: 0 | AB44: 0 | AC44: 0 | AD44: 0 | AE44: 0 | AF44: 0
A45: 9 | B45: 0 | C45: 0 | D45: 0 | E45: 0 | F45: 0 | G45: 0 | H45: 0 | I45: 0 | J45: 0 | K45: 0 | L45: 0 | M45: 0 | N45: 0 | O45: 0 | P45: 0 | Q45: 0 | R45: 0 | S45: 0 | T45: 0 | U45: 0 | V45: 0 | W45: 0 | X45: 0 | Y45: 0 | Z45: 0 | AA45: 0 | AB45: 0 | AC45: 0 | AD45: 0 | AE45: 0 | AF45: 0
A46: 10 | B46: 0 | C46: 0 | D46: 0 | E46: 0 | F46: 0 | G46: 0 | H46: 0 | I46: 0 | J46: 0 | K46: 0 | L46: 0 | M46: 0 | N46: 0 | O46: 0 | P46: 0 | Q46: 0 | R46: 0 | S46: 0 | T46: 0 | U46: 0 | V46: 0 | W46: 0 | X46: 0 | Y46: 0 | Z46: 0 | AA46: 0 | AB46: 0 | AC46: 0 | AD46: 0 | AE46: 0 | AF46: 0
A47: 11 | B47: 0 | C47: 0 | D47: 0 | E47: 0 | F47: 0 | G47: 0 | H47: 0 | I47: 0 | J47: 0 | K47: 0 | L47: 0 | M47: 0 | N47: 0 | O47: 0 | P47: 0 | Q47: 0 | R47: 0 | S47: 0 | T47: 0 | U47: 0 | V47: 0 | W47: 0 | X47: 0 | Y47: 0 | Z47: 0 | AA47: 0 | AB47: 0 | AC47: 0 | AD47: 0 | AE47: 0 | AF47: 0
A48: 12 | B48: 0 | C48: 0 | D48: 0 | E48: 0 | F48: 0 | G48: 0 | H48: 0 | I48: 0 | J48: 0 | K48: 0 | L48: 0 | M48: 0 | N48: 0 | O48: 0 | P48: 0 | Q48: 0 | R48: 0 | S48: 0 | T48: 0 | U48: 0 | V48: 0 | W48: 0 | X48: 0 | Y48: 0 | Z48: 0 | AA48: 0 | AB48: =AB17+(AB47-ROUND(AB47,0)) -> 0 | AC48: 0 | AD48: 0 | AE48: 0 | AF48: 0
A49: 13 | B49: 0 | C49: 0 | D49: 0 | E49: 0 | F49: 0 | G49: 0 | H49: 0 | I49: 0 | J49: 0 | K49: 0 | L49: 0 | M49: 0 | N49: 0 | O49: 0 | P49: 0 | Q49: 0 | R49: =R18+(R48-ROUND(R48,0)) -> 0 | S49: 0 | T49: 0 | U49: 0 | V49: 0 | W49: 0 | X49: 0 | Y49: 0 | Z49: 0 | AA49: 0 | AB49: 0 | AC49: 0 | AD49: 0 | AE49: 0 | AF49: 0
A50: 14 | B50: 0 | C50: 0 | D50: 0 | E50: 0 | F50: 0 | G50: 0 | H50: 0 | I50: 0 | J50: 0 | K50: 0 | L50: 0 | M50: 0 | N50: 0 | O50: 0 | P50: 0 | Q50: 0 | R50: 0 | S50: 0 | T50: 0 | U50: 0 | V50: 0 | W50: 0 | X50: 0 | Y50: 0 | Z50: 0 | AA50: 0 | AB50: 0 | AC50: 0 | AD50: 0 | AE50: 0 | AF50: 0
A51: 15 | B51: 0 | C51: 0 | D51: 0 | E51: 0 | F51: 0 | G51: 0 | H51: 0 | I51: 0 | J51: 0 | K51: 0 | L51: 0 | M51: 0 | N51: 0 | O51: 0 | P51: 0 | Q51: 0 | R51: 0 | S51: 0 | T51: 0 | U51: 0 | V51: 0 | W51: 0 | X51: 0 | Y51: 0 | Z51: 0 | AA51: 0 | AB51: 0 | AC51: 0 | AD51: 0 | AE51: 0 | AF51: 0
A52: 16 | B52: 0 | C52: 0 | D52: 0 | E52: 0 | F52: 0 | G52: =G21+(G51-ROUND(G51,0)) -> 0 | H52: 0 | I52: 0 | J52: 0 | K52: 0 | L52: 0 | M52: 0 | N52: 0 | O52: 0 | P52: 0 | Q52: 0 | R52: 0 | S52: 0 | T52: 0 | U52: 0 | V52: 0 | W52: 0 | X52: 0 | Y52: 0 | Z52: 0 | AA52: 0 | AB52: 0 | AC52: 0 | AD52: 0 | AE52: 0 | AF52: 0
A53: 17 | B53: 0 | C53: 0 | D53: 0 | E53: 0 | F53: 0 | G53: 0 | H53: 0 | I53: 0 | J53: 0 | K53: 0 | L53: 0 | M53: 0 | N53: 0 | O53: 0 | P53: 0 | Q53: 0 | R53: 0 | S53: 0 | T53: 0 | U53: 0 | V53: 0 | W53: 0 | X53: 0 | Y53: 0 | Z53: 0 | AA53: 0 | AB53: 0 | AC53: 0 | AD53: 0 | AE53: 0 | AF53: 0
A54: 18 | B54: 0 | C54: 0 | D54: 0 | E54: 0 | F54: 0 | G54: 0 | H54: 0 | I54: 0 | J54: 0 | K54: 0 | L54: 0 | M54: 0 | N54: 0 | O54: 0 | P54: 0 | Q54: 0 | R54: 0 | S54: 0 | T54: 0 | U54: 0 | V54: 0 | W54: 0 | X54: 0 | Y54: 0 | Z54: 0 | AA54: 0 | AB54: 0 | AC54: 0 | AD54: 0 | AE54: 0 | AF54: 0
A55: 19 | B55: =B24+(B54-ROUND(B54,0)) -> 0 | C55: 0 | D55: 0 | E55: 0 | F55: 0 | G55: 0 | H55: 0 | I55: 0 | J55: 0 | K55: 0 | L55: 0 | M55: 0 | N55: 0 | O55: 0 | P55: 0 | Q55: 0 | R55: 0 | S55: 0 | T55: 0 | U55: 0 | V55: 0 | W55: 0 | X55: 0 | Y55: 0 | Z55: 0 | AA55: 0 | AB55: 0 | AC55: 0 | AD55: 0 | AE55: 0 | AF55: 0
A56: 20 | B56: 0 | C56: 0 | D56: 0 | E56: 0 | F56: 0 | G56: 0 | H56: 0 | I56: 0 | J56: 0 | K56: 0 | L56: 0 | M56: 0 | N56: 0 | O56: 0 | P56: 0 | Q56: 0 | R56: 0 | S56: 0 | T56: 0 | U56: 0 | V56: 0 | W56: 0 | X56: 0 | Y56: 0 | Z56: =Z25+(Z55-ROUND(Z55,0)) -> 0 | AA56: 0 | AB56: 0 | AC56: 0 | AD56: 0 | AE56: 0 | AF56: 0
A57: 21 | B57: 0 | C57: 0 | D57: 0 | E57: 0 | F57: 0 | G57: 0 | H57: 0 | I57: 0 | J57: 0 | K57: 0 | L57: 0 | M57: 0 | N57: 0 | O57: 0 | P57: 0 | Q57: 0 | R57: 0 | S57: 0 | T57: 0 | U57: 0 | V57: 0 | W57: 0 | X57: 0 | Y57: 0 | Z57: 0 | AA57: 0 | AB57: 0 | AC57: 0 | AD57: 0 | AE57: 0 | AF57: 0
A58: 22 | B58: 0 | C58: 0 | D58: 0 | E58: 0 | F58: 0 | G58: 0 | H58: 0 | I58: 0 | J58: 0 | K58: 0 | L58: 0 | M58: 0 | N58: 0 | O58: 0 | P58: 0 | Q58: 0 | R58: 0 | S58: 0 | T58: 0 | U58: 0 | V58: 0 | W58: 0 | X58: 0 | Y58: 0 | Z58: 0 | AA58: 0 | AB58: 0 | AC58: 0 | AD58: 0 | AE58: 0 | AF58: 0
A59: 23 | B59: 0 | C59: 0 | D59: 0 | E59: 0 | F59: 0 | G59: 0 | H59: 0 | I59: 0 | J59: 0 | K59: 0 | L59: 0 | M59: 0 | N59: 0 | O59: 0 | P59: 0 | Q59: 0 | R59: 0 | S59: 0 | T59: 0 | U59: 0 | V59: 0 | W59: 0 | X59: 0 | Y59: 0 | Z59: 0 | AA59: 0 | AB59: 0 | AC59: 0 | AD59: 0 | AE59: 0 | AF59: 0
A60: 24 | B60: =B29+(B59-ROUND(B59,0)) -> 0 | C60: 0 | D60: 0 | E60: 0 | F60: 0 | G60: 0 | H60: 0 | I60: 0 | J60: 0 | K60: 0 | L60: 0 | M60: 0 | N60: 0 | O60: 0 | P60: 0 | Q60: 0 | R60: 0 | S60: 0 | T60: 0 | U60: 0 | V60: 0 | W60: 0 | X60: 0 | Y60: 0 | Z60: 0 | AA60: 0 | AB60: 0 | AC60: 0 | AD60: 0 | AE60: 0 | AF60: 0
A62: итог | B62: =SUM(B37:B60) -> 0 | C62: =SUM(C37:C60) -> 0 | D62: 0 | E62: 0 | F62: 0 | G62: 0 | H62: 0 | I62: 0 | J62: 0 | K62: 0 | L62: 0 | M62: 0 | N62: 0 | O62: 0 | P62: 0 | Q62: 0 | R62: 0 | S62: 0 | T62: 0 | U62: 0 | V62: 0 | W62: 0 | X62: 0 | Y62: 0 | Z62: 0 | AA62: 0 | AB62: 0 | AC62: 0 | AD62: 0 | AE62: =SUM(AE37:AE60) -> 0 | AF62: =SUM(AF37:AF60) -> 0
B65: 1 | C65: 2 | D65: 3 | E65: 4 | F65: 5 | G65: 6 | H65: 7 | I65: 8 | J65: 9 | K65: 10 | L65: 11 | M65: 12 | N65: 13 | O65: 14 | P65: 15 | Q65: 16 | R65: 17 | S65: 18 | T65: 19 | U65: 20 | V65: 21 | W65: 22 | X65: 23 | Y65: 24 | Z65: 25 | AA65: 26 | AB65: 27 | AC65: 28 | AD65: 29 | AE65: 30 | AF65: 31 | AH65: 1 | AI65: 2 | AJ65: 3 | AK65: 4 | AL65: 5 | AM65: 6 | AN65: 7 | AO65: 8 | AP65: 9 | AQ65: 10 | AR65: 11 | AS65: 12 | AT65: 13 | AU65: 14 | AV65: 15 | AW65: 16 | AX65: 17 | AY65: 18 | AZ65: 19 | BA65: 20 | BB65: 21 | BC65: 22 | BD65: 23 | BE65: 24 | BF65: 25 | BG65: 26 | BH65: 27 | BI65: 28 | BJ65: 29 | BK65: 30 | BL65: 31
A66: 1 | B66: =ROUND(B37,0) -> 0 | C66: =ROUND(C37,0) -> 0 | D66: 0 | E66: 0 | F66: 0 | G66: 0 | H66: 0 | I66: 0 | J66: 0 | K66: 0 | L66: 0 | M66: 0 | N66: 0 | O66: 0 | P66: 0 | Q66: 0 | R66: 0 | S66: 0 | T66: 0 | U66: 0 | V66: 0 | W66: 0 | X66: =ROUND(X37,0) -> 0 | Y66: 0 | Z66: 0 | AA66: 0 | AB66: 0 | AC66: 0 | AD66: 0 | AE66: 0 | AF66: 0 | AH66: =IF(B66<0,0,B66) -> 0 | AI66: =IF(C66<0,0,C66) -> 0 | AJ66: 0 | AK66: 0 | AL66: 0 | AM66: 0 | AN66: 0 | AO66: 0 | AP66: 0 | AQ66: 0 | AR66: 0 | AS66: 0 | AT66: 0 | AU66: 0 | AV66: 0 | AW66: 0 | AX66: 0 | AY66: =IF(S66<0,0,S66) -> 0 | AZ66: 0 | BA66: 0 | BB66: 0 | BC66: 0 | BD66: 0 | BE66: 0 | BF66: 0 | BG66: 0 | BH66: 0 | BI66: 0 | BJ66: 0 | BK66: =IF(AE66<0,0,AE66) -> 0 | BL66: =IF(AF66<0,0,AF66) -> 0
A67: 2 | B67: =ROUND(B38,0) -> 0 | C67: 0 | D67: 0 | E67: 0 | F67: 0 | G67: 0 | H67: 0 | I67: 0 | J67: 0 | K67: 0 | L67: 0 | M67: 0 | N67: 0 | O67: 0 | P67: 0 | Q67: 0 | R67: 0 | S67: 0 | T67: 0 | U67: 0 | V67: 0 | W67: 0 | X67: 0 | Y67: 0 | Z67: 0 | AA67: 0 | AB67: 0 | AC67: 0 | AD67: 0 | AE67: 0 | AF67: 0 | AH67: =IF(B67<0,0,B67) -> 0 | AI67: 0 | AJ67: 0 | AK67: 0 | AL67: 0 | AM67: 0 | AN67: 0 | AO67: 0 | AP67: 0 | AQ67: 0 | AR67: 0 | AS67: 0 | AT67: 0 | AU67: 0 | AV67: 0 | AW67: 0 | AX67: 0 | AY67: 0 | AZ67: 0 | BA67: 0 | BB67: 0 | BC67: 0 | BD67: 0 | BE67: 0 | BF67: 0 | BG67: 0 | BH67: 0 | BI67: 0 | BJ67: 0 | BK67: 0 | BL67: 0
A68: 3 | B68: 0 | C68: 0 | D68: 0 | E68: 0 | F68: 0 | G68: 0 | H68: 0 | I68: 0 | J68: 0 | K68: 0 | L68: 0 | M68: 0 | N68: 0 | O68: 0 | P68: 0 | Q68: 0 | R68: 0 | S68: 0 | T68: 0 | U68: 0 | V68: 0 | W68: 0 | X68: 0 | Y68: 0 | Z68: 0 | AA68: 0 | AB68: 0 | AC68: 0 | AD68: 0 | AE68: 0 | AF68: 0 | AH68: 0 | AI68: 0 | AJ68: 0 | AK68: 0 | AL68: 0 | AM68: 0 | AN68: 0 | AO68: 0 | AP68: 0 | AQ68: 0 | AR68: 0 | AS68: 0 | AT68: 0 | AU68: 0 | AV68: 0 | AW68: 0 | AX68: 0 | AY68: 0 | AZ68: 0 | BA68: 0 | BB68: 0 | BC68: 0 | BD68: 0 | BE68: 0 | BF68: 0 | BG68: 0 | BH68: 0 | BI68: 0 | BJ68: 0 | BK68: 0 | BL68: 0
A69: 4 | B69: 0 | C69: 0 | D69: 0 | E69: 0 | F69: 0 | G69: 0 | H69: 0 | I69: 0 | J69: 0 | K69: 0 | L69: 0 | M69: 0 | N69: 0 | O69: 0 | P69: 0 | Q69: 0 | R69: 0 | S69: 0 | T69: 0 | U69: 0 | V69: 0 | W69: 0 | X69: =ROUND(X40,0) -> 0 | Y69: 0 | Z69: 0 | AA69: 0 | AB69: 0 | AC69: 0 | AD69: 0 | AE69: 0 | AF69: 0 | AH69: =IF(B69<0,0,B69) -> 0 | AI69: 0 | AJ69: 0 | AK69: 0 | AL69: 0 | AM69: 0 | AN69: 0 | AO69: 0 | AP69: 0 | AQ69: 0 | AR69: 0 | AS69: 0 | AT69: 0 | AU69: 0 | AV69: 0 | AW69: 0 | AX69: 0 | AY69: 0 | AZ69: 0 | BA69: 0 | BB69: 0 | BC69: 0 | BD69: 0 | BE69: 0 | BF69: 0 | BG69: 0 | BH69: 0 | BI69: 0 | BJ69: 0 | BK69: 0 | BL69: 0
A70: 5 | B70: 0 | C70: 0 | D70: 0 | E70: 0 | F70: 0 | G70: 0 | H70: 0 | I70: 0 | J70: 0 | K70: 0 | L70: 0 | M70: 0 | N70: 0 | O70: 0 | P70: 0 | Q70: 0 | R70: 0 | S70: 0 | T70: 0 | U70: 0 | V70: 0 | W70: 0 | X70: 0 | Y70: 0 | Z70: 0 | AA70: 0 | AB70: 0 | AC70: 0 | AD70: 0 | AE70: 0 | AF70: 0 | AH70: 0 | AI70: 0 | AJ70: 0 | AK70: 0 | AL70: 0 | AM70: 0 | AN70: 0 | AO70: 0 | AP70: 0 | AQ70: 0 | AR70: 0 | AS70: 0 | AT70: 0 | AU70: 0 | AV70: 0 | AW70: 0 | AX70: 0 | AY70: 0 | AZ70: 0 | BA70: 0 | BB70: 0 | BC70: 0 | BD70: 0 | BE70: 0 | BF70: 0 | BG70: 0 | BH70: 0 | BI70: 0 | BJ70: 0 | BK70: 0 | BL70: 0
A71: 6 | B71: 0 | C71: 0 | D71: 0 | E71: 0 | F71: 0 | G71: 0 | H71: 0 | I71: 0 | J71: 0 | K71: 0 | L71: 0 | M71: 0 | N71: 0 | O71: 0 | P71: 0 | Q71: 0 | R71: 0 | S71: 0 | T71: 0 | U71: 0 | V71: 0 | W71: 0 | X71: 0 | Y71: 0 | Z71: 0 | AA71: 0 | AB71: 0 | AC71: 0 | AD71: 0 | AE71: 0 | AF71: 0 | AH71: 0 | AI71: 0 | AJ71: 0 | AK71: 0 | AL71: 0 | AM71: 0 | AN71: 0 | AO71: 0 | AP71: 0 | AQ71: 0 | AR71: 0 | AS71: 0 | AT71: 0 | AU71: 0 | AV71: 0 | AW71: 0 | AX71: 0 | AY71: 0 | AZ71: 0 | BA71: 0 | BB71: 0 | BC71: 0 | BD71: 0 | BE71: 0 | BF71: 0 | BG71: 0 | BH71: 0 | BI71: 0 | BJ71: 0 | BK71: 0 | BL71: 0
A72: 7 | B72: 0 | C72: 0 | D72: 0 | E72: 0 | F72: 0 | G72: 0 | H72: 0 | I72: 0 | J72: 0 | K72: 0 | L72: 0 | M72: 0 | N72: 0 | O72: 0 | P72: 0 | Q72: 0 | R72: 0 | S72: 0 | T72: 0 | U72: 0 | V72: 0 | W72: 0 | X72: 0 | Y72: 0 | Z72: 0 | AA72: 0 | AB72: 0 | AC72: 0 | AD72: 0 | AE72: 0 | AF72: 0 | AH72: 0 | AI72: 0 | AJ72: 0 | AK72: 0 | AL72: 0 | AM72: 0 | AN72: 0 | AO72: 0 | AP72: 0 | AQ72: 0 | AR72: 0 | AS72: 0 | AT72: 0 | AU72: 0 | AV72: 0 | AW72: 0 | AX72: 0 | AY72: 0 | AZ72: 0 | BA72: 0 | BB72: 0 | BC72: 0 | BD72: 0 | BE72: 0 | BF72: 0 | BG72: 0 | BH72: 0 | BI72: 0 | BJ72: 0 | BK72: 0 | BL72: 0
A73: 8 | B73: 0 | C73: 0 | D73: 0 | E73: 0 | F73: 0 | G73: 0 | H73: 0 | I73: 0 | J73: 0 | K73: 0 | L73: 0 | M73: 0 | N73: 0 | O73: 0 | P73: 0 | Q73: 0 | R73: 0 | S73: 0 | T73: 0 | U73: 0 | V73: 0 | W73: 0 | X73: 0 | Y73: 0 | Z73: 0 | AA73: 0 | AB73: 0 | AC73: 0 | AD73: 0 | AE73: 0 | AF73: 0 | AH73: 0 | AI73: 0 | AJ73: 0 | AK73: 0 | AL73: 0 | AM73: 0 | AN73: 0 | AO73: 0 | AP73: 0 | AQ73: 0 | AR73: 0 | AS73: 0 | AT73: 0 | AU73: 0 | AV73: 0 | AW73: 0 | AX73: 0 | AY73: 0 | AZ73: 0 | BA73: 0 | BB73: 0 | BC73: 0 | BD73: 0 | BE73: 0 | BF73: 0 | BG73: 0 | BH73: 0 | BI73: 0 | BJ73: 0 | BK73: 0 | BL73: 0
A74: 9 | B74: 0 | C74: 0 | D74: 0 | E74: 0 | F74: 0 | G74: 0 | H74: 0 | I74: 0 | J74: 0 | K74: 0 | L74: 0 | M74: 0 | N74: 0 | O74: 0 | P74: 0 | Q74: 0 | R74: 0 | S74: 0 | T74: =ROUND(T45,0) -> 0 | U74: 0 | V74: 0 | W74: 0 | X74: 0 | Y74: 0 | Z74: 0 | AA74: 0 | AB74: 0 | AC74: 0 | AD74: 0 | AE74: 0 | AF74: 0 | AH74: 0 | AI74: 0 | AJ74: 0 | AK74: 0 | AL74: 0 | AM74: 0 | AN74: 0 | AO74: 0 | AP74: 0 | AQ74: 0 | AR74: 0 | AS74: 0 | AT74: 0 | AU74: 0 | AV74: 0 | AW74: 0 | AX74: 0 | AY74: 0 | AZ74: 0 | BA74: 0 | BB74: 0 | BC74: 0 | BD74: 0 | BE74: 0 | BF74: 0 | BG74: 0 | BH74: 0 | BI74: 0 | BJ74: 0 | BK74: 0 | BL74: 0
A75: 10 | B75: 0 | C75: 0 | D75: 0 | E75: 0 | F75: 0 | G75: 0 | H75: 0 | I75: 0 | J75: 0 | K75: 0 | L75: 0 | M75: 0 | N75: 0 | O75: 0 | P75: 0 | Q75: 0 | R75: 0 | S75: 0 | T75: 0 | U75: 0 | V75: 0 | W75: 0 | X75: 0 | Y75: 0 | Z75: 0 | AA75: 0 | AB75: 0 | AC75: 0 | AD75: 0 | AE75: 0 | AF75: 0 | AH75: 0 | AI75: 0 | AJ75: 0 | AK75: 0 | AL75: 0 | AM75: 0 | AN75: 0 | AO75: 0 | AP75: 0 | AQ75: 0 | AR75: 0 | AS75: 0 | AT75: 0 | AU75: 0 | AV75: 0 | AW75: 0 | AX75: 0 | AY75: 0 | AZ75: 0 | BA75: 0 | BB75: 0 | BC75: 0 | BD75: 0 | BE75: 0 | BF75: 0 | BG75: =IF(AA75<0,0,AA75) -> 0 | BH75: 0 | BI75: 0 | BJ75: 0 | BK75: 0 | BL75: 0
A76: 11 | B76: 0 | C76: 0 | D76: 0 | E76: 0 | F76: 0 | G76: 0 | H76: 0 | I76: 0 | J76: 0 | K76: 0 | L76: 0 | M76: 0 | N76: 0 | O76: 0 | P76: 0 | Q76: 0 | R76: 0 | S76: 0 | T76: 0 | U76: 0 | V76: 0 | W76: 0 | X76: 0 | Y76: 0 | Z76: 0 | AA76: 0 | AB76: 0 | AC76: 0 | AD76: 0 | AE76: 0 | AF76: 0 | AH76: 0 | AI76: 0 | AJ76: 0 | AK76: 0 | AL76: 0 | AM76: 0 | AN76: 0 | AO76: 0 | AP76: 0 | AQ76: 0 | AR76: 0 | AS76: 0 | AT76: 0 | AU76: 0 | AV76: 0 | AW76: 0 | AX76: 0 | AY76: 0 | AZ76: 0 | BA76: 0 | BB76: 0 | BC76: 0 | BD76: 0 | BE76: 0 | BF76: 0 | BG76: 0 | BH76: 0 | BI76: 0 | BJ76: 0 | BK76: 0 | BL76: 0
A77: 12 | B77: 0 | C77: 0 | D77: 0 | E77: 0 | F77: 0 | G77: 0 | H77: 0 | I77: 0 | J77: 0 | K77: 0 | L77: 0 | M77: 0 | N77: 0 | O77: 0 | P77: 0 | Q77: 0 | R77: 0 | S77: 0 | T77: 0 | U77: 0 | V77: 0 | W77: 0 | X77: 0 | Y77: 0 | Z77: 0 | AA77: 0 | AB77: 0 | AC77: 0 | AD77: 0 | AE77: 0 | AF77: 0 | AH77: 0 | AI77: 0 | AJ77: 0 | AK77: 0 | AL77: 0 | AM77: 0 | AN77: 0 | AO77: 0 | AP77: 0 | AQ77: 0 | AR77: 0 | AS77: 0 | AT77: 0 | AU77: 0 | AV77: 0 | AW77: 0 | AX77: 0 | AY77: 0 | AZ77: 0 | BA77: 0 | BB77: 0 | BC77: 0 | BD77: 0 | BE77: 0 | BF77: 0 | BG77: 0 | BH77: 0 | BI77: 0 | BJ77: 0 | BK77: 0 | BL77: 0
A78: 13 | B78: 0 | C78: 0 | D78: 0 | E78: 0 | F78: 0 | G78: 0 | H78: 0 | I78: 0 | J78: 0 | K78: 0 | L78: 0 | M78: 0 | N78: 0 | O78: 0 | P78: 0 | Q78: 0 | R78: 0 | S78: 0 | T78: 0 | U78: 0 | V78: 0 | W78: 0 | X78: 0 | Y78: 0 | Z78: 0 | AA78: 0 | AB78: 0 | AC78: 0 | AD78: 0 | AE78: 0 | AF78: 0 | AH78: 0 | AI78: 0 | AJ78: 0 | AK78: 0 | AL78: 0 | AM78: 0 | AN78: 0 | AO78: 0 | AP78: 0 | AQ78: 0 | AR78: 0 | AS78: 0 | AT78: 0 | AU78: 0 | AV78: 0 | AW78: 0 | AX78: 0 | AY78: 0 | AZ78: 0 | BA78: 0 | BB78: 0 | BC78: 0 | BD78: 0 | BE78: 0 | BF78: 0 | BG78: 0 | BH78: 0 | BI78: 0 | BJ78: 0 | BK78: 0 | BL78: 0
A79: 14 | B79: 0 | C79: 0 | D79: 0 | E79: 0 | F79: 0 | G79: 0 | H79: 0 | I79: 0 | J79: 0 | K79: 0 | L79: 0 | M79: 0 | N79: 0 | O79: 0 | P79: 0 | Q79: 0 | R79: 0 | S79: 0 | T79: 0 | U79: 0 | V79: 0 | W79: 0 | X79: 0 | Y79: 0 | Z79: 0 | AA79: 0 | AB79: 0 | AC79: 0 | AD79: 0 | AE79: 0 | AF79: 0 | AH79: 0 | AI79: 0 | AJ79: 0 | AK79: 0 | AL79: 0 | AM79: 0 | AN79: 0 | AO79: 0 | AP79: 0 | AQ79: 0 | AR79: 0 | AS79: 0 | AT79: 0 | AU79: 0 | AV79: 0 | AW79: 0 | AX79: 0 | AY79: 0 | AZ79: 0 | BA79: 0 | BB79: 0 | BC79: 0 | BD79: 0 | BE79: 0 | BF79: 0 | BG79: 0 | BH79: 0 | BI79: 0 | BJ79: 0 | BK79: 0 | BL79: 0
A80: 15 | B80: 0 | C80: 0 | D80: 0 | E80: 0 | F80: 0 | G80: =ROUND(G51,0) -> 0 | H80: 0 | I80: 0 | J80: 0 | K80: 0 | L80: 0 | M80: 0 | N80: 0 | O80: 0 | P80: 0 | Q80: 0 | R80: 0 | S80: 0 | T80: 0 | U80: 0 | V80: 0 | W80: 0 | X80: 0 | Y80: 0 | Z80: 0 | AA80: 0 | AB80: 0 | AC80: 0 | AD80: 0 | AE80: 0 | AF80: 0 | AH80: 0 | AI80: 0 | AJ80: 0 | AK80: 0 | AL80: 0 | AM80: 0 | AN80: 0 | AO80: 0 | AP80: 0 | AQ80: 0 | AR80: 0 | AS80: 0 | AT80: 0 | AU80: 0 | AV80: 0 | AW80: 0 | AX80: 0 | AY80: 0 | AZ80: 0 | BA80: 0 | BB80: 0 | BC80: 0 | BD80: 0 | BE80: 0 | BF80: 0 | BG80: 0 | BH80: 0 | BI80: 0 | BJ80: 0 | BK80: 0 | BL80: 0
A81: 16 | B81: 0 | C81: 0 | D81: 0 | E81: 0 | F81: 0 | G81: =ROUND(G52,0) -> 0 | H81: 0 | I81: 0 | J81: 0 | K81: 0 | L81: 0 | M81: 0 | N81: 0 | O81: 0 | P81: 0 | Q81: 0 | R81: 0 | S81: 0 | T81: 0 | U81: 0 | V81: 0 | W81: 0 | X81: 0 | Y81: 0 | Z81: 0 | AA81: 0 | AB81: 0 | AC81: 0 | AD81: 0 | AE81: 0 | AF81: 0 | AH81: 0 | AI81: 0 | AJ81: 0 | AK81: 0 | AL81: 0 | AM81: 0 | AN81: 0 | AO81: 0 | AP81: 0 | AQ81: 0 | AR81: 0 | AS81: 0 | AT81: 0 | AU81: 0 | AV81: 0 | AW81: 0 | AX81: =IF(R81<0,0,R81) -> 0 | AY81: 0 | AZ81: 0 | BA81: 0 | BB81: 0 | BC81: 0 | BD81: 0 | BE81: 0 | BF81: 0 | BG81: 0 | BH81: 0 | BI81: 0 | BJ81: 0 | BK81: 0 | BL81: 0
A82: 17 | B82: 0 | C82: 0 | D82: 0 | E82: 0 | F82: 0 | G82: 0 | H82: 0 | I82: 0 | J82: 0 | K82: 0 | L82: 0 | M82: 0 | N82: 0 | O82: 0 | P82: 0 | Q82: 0 | R82: 0 | S82: 0 | T82: 0 | U82: 0 | V82: 0 | W82: 0 | X82: 0 | Y82: 0 | Z82: 0 | AA82: 0 | AB82: 0 | AC82: 0 | AD82: 0 | AE82: 0 | AF82: 0 | AH82: 0 | AI82: 0 | AJ82: 0 | AK82: 0 | AL82: 0 | AM82: 0 | AN82: 0 | AO82: 0 | AP82: 0 | AQ82: 0 | AR82: 0 | AS82: 0 | AT82: 0 | AU82: 0 | AV82: 0 | AW82: 0 | AX82: 0 | AY82: 0 | AZ82: 0 | BA82: 0 | BB82: 0 | BC82: 0 | BD82: 0 | BE82: 0 | BF82: 0 | BG82: 0 | BH82: 0 | BI82: 0 | BJ82: 0 | BK82: 0 | BL82: 0
A83: 18 | B83: =ROUND(B54,0) -> 0 | C83: 0 | D83: 0 | E83: 0 | F83: 0 | G83: 0 | H83: 0 | I83: 0 | J83: 0 | K83: 0 | L83: 0 | M83: 0 | N83: 0 | O83: 0 | P83: 0 | Q83: 0 | R83: 0 | S83: 0 | T83: 0 | U83: 0 | V83: 0 | W83: 0 | X83: 0 | Y83: 0 | Z83: 0 | AA83: 0 | AB83: 0 | AC83: 0 | AD83: 0 | AE83: 0 | AF83: 0 | AH83: 0 | AI83: 0 | AJ83: 0 | AK83: 0 | AL83: 0 | AM83: 0 | AN83: 0 | AO83: 0 | AP83: 0 | AQ83: 0 | AR83: 0 | AS83: 0 | AT83: 0 | AU83: 0 | AV83: 0 | AW83: 0 | AX83: 0 | AY83: 0 | AZ83: 0 | BA83: 0 | BB83: 0 | BC83: 0 | BD83: 0 | BE83: 0 | BF83: 0 | BG83: 0 | BH83: 0 | BI83: 0 | BJ83: 0 | BK83: 0 | BL83: 0
A84: 19 | B84: 0 | C84: 0 | D84: 0 | E84: 0 | F84: 0 | G84: 0 | H84: 0 | I84: 0 | J84: 0 | K84: 0 | L84: 0 | M84: 0 | N84: 0 | O84: 0 | P84: 0 | Q84: 0 | R84: 0 | S84: 0 | T84: 0 | U84: 0 | V84: 0 | W84: 0 | X84: 0 | Y84: 0 | Z84: 0 | AA84: 0 | AB84: 0 | AC84: 0 | AD84: 0 | AE84: 0 | AF84: 0 | AH84: 0 | AI84: 0 | AJ84: 0 | AK84: 0 | AL84: 0 | AM84: 0 | AN84: 0 | AO84: 0 | AP84: 0 | AQ84: 0 | AR84: 0 | AS84: 0 | AT84: 0 | AU84: 0 | AV84: 0 | AW84: 0 | AX84: 0 | AY84: 0 | AZ84: 0 | BA84: 0 | BB84: 0 | BC84: 0 | BD84: 0 | BE84: 0 | BF84: 0 | BG84: 0 | BH84: 0 | BI84: 0 | BJ84: 0 | BK84: 0 | BL84: 0
A85: 20 | B85: 0 | C85: 0 | D85: 0 | E85: 0 | F85: 0 | G85: 0 | H85: 0 | I85: 0 | J85: 0 | K85: 0 | L85: 0 | M85: 0 | N85: 0 | O85: 0 | P85: 0 | Q85: 0 | R85: 0 | S85: 0 | T85: 0 | U85: 0 | V85: 0 | W85: 0 | X85: 0 | Y85: 0 | Z85: 0 | AA85: 0 | AB85: 0 | AC85: 0 | AD85: 0 | AE85: 0 | AF85: 0 | AH85: 0 | AI85: 0 | AJ85: 0 | AK85: 0 | AL85: 0 | AM85: 0 | AN85: 0 | AO85: 0 | AP85: 0 | AQ85: 0 | AR85: 0 | AS85: 0 | AT85: 0 | AU85: 0 | AV85: 0 | AW85: 0 | AX85: 0 | AY85: 0 | AZ85: 0 | BA85: 0 | BB85: 0 | BC85: 0 | BD85: 0 | BE85: 0 | BF85: 0 | BG85: 0 | BH85: 0 | BI85: 0 | BJ85: 0 | BK85: 0 | BL85: 0
A86: 21 | B86: 0 | C86: 0 | D86: 0 | E86: 0 | F86: 0 | G86: 0 | H86: 0 | I86: 0 | J86: 0 | K86: 0 | L86: 0 | M86: 0 | N86: 0 | O86: 0 | P86: 0 | Q86: 0 | R86: 0 | S86: 0 | T86: 0 | U86: 0 | V86: 0 | W86: 0 | X86: 0 | Y86: 0 | Z86: 0 | AA86: 0 | AB86: 0 | AC86: 0 | AD86: 0 | AE86: 0 | AF86: 0 | AH86: 0 | AI86: 0 | AJ86: 0 | AK86: 0 | AL86: 0 | AM86: 0 | AN86: 0 | AO86: 0 | AP86: 0 | AQ86: 0 | AR86: 0 | AS86: 0 | AT86: 0 | AU86: 0 | AV86: 0 | AW86: 0 | AX86: 0 | AY86: 0 | AZ86: 0 | BA86: 0 | BB86: 0 | BC86: 0 | BD86: 0 | BE86: 0 | BF86: 0 | BG86: 0 | BH86: 0 | BI86: 0 | BJ86: 0 | BK86: 0 | BL86: 0
A87: 22 | B87: 0 | C87: 0 | D87: 0 | E87: 0 | F87: 0 | G87: 0 | H87: 0 | I87: 0 | J87: 0 | K87: 0 | L87: 0 | M87: 0 | N87: 0 | O87: 0 | P87: 0 | Q87: 0 | R87: 0 | S87: 0 | T87: 0 | U87: 0 | V87: 0 | W87: 0 | X87: 0 | Y87: 0 | Z87: 0 | AA87: 0 | AB87: 0 | AC87: 0 | AD87: 0 | AE87: 0 | AF87: 0 | AH87: 0 | AI87: 0 | AJ87: 0 | AK87: 0 | AL87: 0 | AM87: 0 | AN87: 0 | AO87: 0 | AP87: 0 | AQ87: 0 | AR87: 0 | AS87: 0 | AT87: 0 | AU87: 0 | AV87: 0 | AW87: 0 | AX87: 0 | AY87: 0 | AZ87: 0 | BA87: 0 | BB87: 0 | BC87: 0 | BD87: 0 | BE87: 0 | BF87: 0 | BG87: 0 | BH87: 0 | BI87: 0 | BJ87: 0 | BK87: 0 | BL87: 0
A88: 23 | B88: 0 | C88: 0 | D88: 0 | E88: 0 | F88: 0 | G88: 0 | H88: 0 | I88: 0 | J88: 0 | K88: 0 | L88: 0 | M88: 0 | N88: 0 | O88: 0 | P88: 0 | Q88: 0 | R88: 0 | S88: 0 | T88: 0 | U88: 0 | V88: 0 | W88: 0 | X88: 0 | Y88: =ROUND(Y59,0) -> 0 | Z88: 0 | AA88: 0 | AB88: 0 | AC88: 0 | AD88: 0 | AE88: 0 | AF88: 0 | AH88: 0 | AI88: 0 | AJ88: 0 | AK88: 0 | AL88: 0 | AM88: 0 | AN88: 0 | AO88: 0 | AP88: 0 | AQ88: 0 | AR88: 0 | AS88: 0 | AT88: 0 | AU88: 0 | AV88: 0 | AW88: 0 | AX88: 0 | AY88: 0 | AZ88: 0 | BA88: 0 | BB88: 0 | BC88: 0 | BD88: 0 | BE88: 0 | BF88: 0 | BG88: 0 | BH88: 0 | BI88: 0 | BJ88: 0 | BK88: 0 | BL88: 0
A89: 24 | B89: 0 | C89: 0 | D89: 0 | E89: 0 | F89: 0 | G89: 0 | H89: 0 | I89: 0 | J89: 0 | K89: 0 | L89: 0 | M89: 0 | N89: 0 | O89: 0 | P89: 0 | Q89: 0 | R89: 0 | S89: 0 | T89: 0 | U89: 0 | V89: 0 | W89: 0 | X89: 0 | Y89: 0 | Z89: 0 | AA89: 0 | AB89: 0 | AC89: 0 | AD89: 0 | AE89: 0 | AF89: =ROUND(AF60,0) -> 0 | AH89: 0 | AI89: 0 | AJ89: 0 | AK89: 0 | AL89: 0 | AM89: 0 | AN89: 0 | AO89: 0 | AP89: 0 | AQ89: 0 | AR89: 0 | AS89: 0 | AT89: 0 | AU89: 0 | AV89: 0 | AW89: 0 | AX89: 0 | AY89: 0 | AZ89: 0 | BA89: 0 | BB89: 0 | BC89: 0 | BD89: 0 | BE89: 0 | BF89: 0 | BG89: 0 | BH89: 0 | BI89: 0 | BJ89: 0 | BK89: 0 | BL89: 0
BM90: =SUM(AH66:BL89) -> 0
A91: итог | B91: =SUM(B66:B89) -> 0 | C91: 0 | D91: 0 | E91: 0 | F91: 0 | G91: 0 | H91: 0 | I91: 0 | J91: 0 | K91: 0 | L91: 0 | M91: 0 | N91: 0 | O91: 0 | P91: 0 | Q91: 0 | R91: 0 | S91: 0 | T91: 0 | U91: 0 | V91: 0 | W91: 0 | X91: 0 | Y91: 0 | Z91: 0 | AA91: 0 | AB91: 0 | AC91: 0 | AD91: 0 | AE91: 0 | AF91: 0 | AG91: =SUM(B91:AF91) -> 0
A93: 1 | B93: =округл!$B$66 -> 0 | C93: =округл!$C$66 -> 0 | D93: =округл!$D$66 -> 0 | E93: =округл!$E$66 -> 0 | F93: =округл!$F$66 -> 0 | G93: =округл!$G$66 -> 0 | H93: =округл!$H$66 -> 0 | I93: =округл!$I$66 -> 0 | J93: =округл!$J$66 -> 0 | K93: =округл!$K$66 -> 0 | L93: =округл!$L$66 -> 0 | M93: =округл!$M$66 -> 0 | N93: =округл!$N$66 -> 0 | O93: =округл!$O$66 -> 0 | P93: =округл!$P$66 -> 0 | Q93: =округл!$Q$66 -> 0 | R93: =округл!$R$66 -> 0 | S93: =округл!$S$66 -> 0 | T93: =округл!$T$66 -> 0 | U93: =округл!$U$66 -> 0 | V93: =округл!$V$66 -> 0 | W93: =округл!$W$66 -> 0 | X93: =округл!$X$66 -> 0 | Y93: =округл!$Y$66 -> 0 | Z93: =округл!$Z$66 -> 0 | AA93: =округл!$AA$66 -> 0 | AB93: =округл!$AB$66 -> 0 | AC93: =округл!$AC$66 -> 0 | AD93: =округл!$AD$66 -> 0 | AE93: =округл!$AE$66 -> 0 | AF93: =округл!$AF$66 -> 0
A94: 2 | B94: =округл!$B$67 -> 0 | C94: =округл!$C$67 -> 0 | D94: =округл!$D$67 -> 0 | E94: =округл!$E$67 -> 0 | F94: =округл!$F$67 -> 0 | G94: =округл!$G$67 -> 0 | H94: =округл!$H$67 -> 0 | I94: =округл!$I$67 -> 0 | J94: =округл!$J$67 -> 0 | K94: =округл!$K$67 -> 0 | L94: =округл!$L$67 -> 0 | M94: =округл!$M$67 -> 0 | N94: =округл!$N$67 -> 0 | O94: =округл!$O$67 -> 0 | P94: =округл!$P$67 -> 0 | Q94: =округл!$Q$67 -> 0 | R94: =округл!$R$67 -> 0 | S94: =округл!$S$67 -> 0 | T94: =округл!$T$67 -> 0 | U94: =округл!$U$67 -> 0 | V94: =округл!$V$67 -> 0 | W94: =округл!$W$67 -> 0 | X94: =округл!$X$67 -> 0 | Y94: =округл!$Y$67 -> 0 | Z94: =округл!$Z$67 -> 0 | AA94: =округл!$AA$67 -> 0 | AB94: =округл!$AB$67 -> 0 | AC94: =округл!$AC$67 -> 0 | AD94: =округл!$AD$67 -> 0 | AE94: =округл!$AE$67 -> 0 | AF94: =округл!$AF$67 -> 0
A95: 3 | B95: =округл!$B$68 -> 0 | C95: =округл!$C$68 -> 0 | D95: =округл!$D$68 -> 0 | E95: =округл!$E$68 -> 0 | F95: =округл!$F$68 -> 0 | G95: =округл!$G$68 -> 0 | H95: =округл!$H$68 -> 0 | I95: =округл!$I$68 -> 0 | J95: =округл!$J$68 -> 0 | K95: =округл!$K$68 -> 0 | L95: =округл!$L$68 -> 0 | M95: =округл!$M$68 -> 0 | N95: =округл!$N$68 -> 0 | O95: =округл!$O$68 -> 0 | P95: =округл!$P$68 -> 0 | Q95: =округл!$Q$68 -> 0 | R95: =округл!$R$68 -> 0 | S95: =округл!$S$68 -> 0 | T95: =округл!$T$68 -> 0 | U95: =округл!$U$68 -> 0 | V95: =округл!$V$68 -> 0 | W95: =округл!$W$68 -> 0 | X95: =округл!$X$68 -> 0 | Y95: =округл!$Y$68 -> 0 | Z95: =округл!$Z$68 -> 0 | AA95: =округл!$AA$68 -> 0 | AB95: =округл!$AB$68 -> 0 | AC95: =округл!$AC$68 -> 0 | AD95: =округл!$AD$68 -> 0 | AE95: =округл!$AE$68 -> 0 | AF95: =округл!$AF$68 -> 0
A96: 4 | B96: =округл!$B$69 -> 0 | C96: =округл!$C$69 -> 0 | D96: =округл!$D$69 -> 0 | E96: =округл!$E$69 -> 0 | F96: =округл!$F$69 -> 0 | G96: =округл!$G$69 -> 0 | H96: =округл!$H$69 -> 0 | I96: =округл!$I$69 -> 0 | J96: =округл!$J$69 -> 0 | K96: =округл!$K$69 -> 0 | L96: =округл!$L$69 -> 0 | M96: =округл!$M$69 -> 0 | N96: =округл!$N$69 -> 0 | O96: =округл!$O$69 -> 0 | P96: =округл!$P$69 -> 0 | Q96: =округл!$Q$69 -> 0 | R96: =округл!$R$69 -> 0 | S96: =округл!$S$69 -> 0 | T96: =округл!$T$69 -> 0 | U96: =округл!$U$69 -> 0 | V96: =округл!$V$69 -> 0 | W96: =округл!$W$69 -> 0 | X96: =округл!$X$69 -> 0 | Y96: =округл!$Y$69 -> 0 | Z96: =округл!$Z$69 -> 0 | AA96: =округл!$AA$69 -> 0 | AB96: =округл!$AB$69 -> 0 | AC96: =округл!$AC$69 -> 0 | AD96: =округл!$AD$69 -> 0 | AE96: =округл!$AE$69 -> 0 | AF96: =округл!$AF$69 -> 0
A97: 5 | B97: =округл!$B$70 -> 0 | C97: =округл!$C$70 -> 0 | D97: =округл!$D$70 -> 0 | E97: =округл!$E$70 -> 0 | F97: =округл!$F$70 -> 0 | G97: =округл!$G$70 -> 0 | H97: =округл!$H$70 -> 0 | I97: =округл!$I$70 -> 0 | J97: =округл!$J$70 -> 0 | K97: =округл!$K$70 -> 0 | L97: =округл!$L$70 -> 0 | M97: =округл!$M$70 -> 0 | N97: =округл!$N$70 -> 0 | O97: =округл!$O$70 -> 0 | P97: =округл!$P$70 -> 0 | Q97: =округл!$Q$70 -> 0 | R97: =округл!$R$70 -> 0 | S97: =округл!$S$70 -> 0 | T97: =округл!$T$70 -> 0 | U97: =округл!$U$70 -> 0 | V97: =округл!$V$70 -> 0 | W97: =округл!$W$70 -> 0 | X97: =округл!$X$70 -> 0 | Y97: =округл!$Y$70 -> 0 | Z97: =округл!$Z$70 -> 0 | AA97: =округл!$AA$70 -> 0 | AB97: =округл!$AB$70 -> 0 | AC97: =округл!$AC$70 -> 0 | AD97: =округл!$AD$70 -> 0 | AE97: =округл!$AE$70 -> 0 | AF97: =округл!$AF$70 -> 0
A98: 6 | B98: =округл!$B$71 -> 0 | C98: =округл!$C$71 -> 0 | D98: =округл!$D$71 -> 0 | E98: =округл!$E$71 -> 0 | F98: =округл!$F$71 -> 0 | G98: =округл!$G$71 -> 0 | H98: =округл!$H$71 -> 0 | I98: =округл!$I$71 -> 0 | J98: =округл!$J$71 -> 0 | K98: =округл!$K$71 -> 0 | L98: =округл!$L$71 -> 0 | M98: =округл!$M$71 -> 0 | N98: =округл!$N$71 -> 0 | O98: =округл!$O$71 -> 0 | P98: =округл!$P$71 -> 0 | Q98: =округл!$Q$71 -> 0 | R98: =округл!$R$71 -> 0 | S98: =округл!$S$71 -> 0 | T98: =округл!$T$71 -> 0 | U98: =округл!$U$71 -> 0 | V98: =округл!$V$71 -> 0 | W98: =округл!$W$71 -> 0 | X98: =округл!$X$71 -> 0 | Y98: =округл!$Y$71 -> 0 | Z98: =округл!$Z$71 -> 0 | AA98: =округл!$AA$71 -> 0 | AB98: =округл!$AB$71 -> 0 | AC98: =округл!$AC$71 -> 0 | AD98: =округл!$AD$71 -> 0 | AE98: =округл!$AE$71 -> 0 | AF98: =округл!$AF$71 -> 0
A99: 7 | B99: =округл!$B$72 -> 0 | C99: =округл!$C$72 -> 0 | D99: =округл!$D$72 -> 0 | E99: =округл!$E$72 -> 0 | F99: =округл!$F$72 -> 0 | G99: =округл!$G$72 -> 0 | H99: =округл!$H$72 -> 0 | I99: =округл!$I$72 -> 0 | J99: =округл!$J$72 -> 0 | K99: =округл!$K$72 -> 0 | L99: =округл!$L$72 -> 0 | M99: =округл!$M$72 -> 0 | N99: =округл!$N$72 -> 0 | O99: =округл!$O$72 -> 0 | P99: =округл!$P$72 -> 0 | Q99: =округл!$Q$72 -> 0 | R99: =округл!$R$72 -> 0 | S99: =округл!$S$72 -> 0 | T99: =округл!$T$72 -> 0 | U99: =округл!$U$72 -> 0 | V99: =округл!$V$72 -> 0 | W99: =округл!$W$72 -> 0 | X99: =округл!$X$72 -> 0 | Y99: =округл!$Y$72 -> 0 | Z99: =округл!$Z$72 -> 0 | AA99: =округл!$AA$72 -> 0 | AB99: =округл!$AB$72 -> 0 | AC99: =округл!$AC$72 -> 0 | AD99: =округл!$AD$72 -> 0 | AE99: =округл!$AE$72 -> 0 | AF99: =округл!$AF$72 -> 0
A100: 8 | B100: =округл!$B$73 -> 0 | C100: =округл!$C$73 -> 0 | D100: =округл!$D$73 -> 0 | E100: =округл!$E$73 -> 0 | F100: =округл!$F$73 -> 0 | G100: =округл!$G$73 -> 0 | H100: =округл!$H$73 -> 0 | I100: =округл!$I$73 -> 0 | J100: =округл!$J$73 -> 0 | K100: =округл!$K$73 -> 0 | L100: =округл!$L$73 -> 0 | M100: =округл!$M$73 -> 0 | N100: =округл!$N$73 -> 0 | O100: =округл!$O$73 -> 0 | P100: =округл!$P$73 -> 0 | Q100: =округл!$Q$73 -> 0 | R100: =округл!$R$73 -> 0 | S100: =округл!$S$73 -> 0 | T100: =округл!$T$73 -> 0 | U100: =округл!$U$73 -> 0 | V100: =округл!$V$73 -> 0 | W100: =округл!$W$73 -> 0 | X100: =округл!$X$73 -> 0 | Y100: =округл!$Y$73 -> 0 | Z100: =округл!$Z$73 -> 0 | AA100: =округл!$AA$73 -> 0 | AB100: =округл!$AB$73 -> 0 | AC100: =округл!$AC$73 -> 0 | AD100: =округл!$AD$73 -> 0 | AE100: =округл!$AE$73 -> 0 | AF100: =округл!$AF$73 -> 0
A101: 9 | B101: =округл!$B$74 -> 0 | C101: =округл!$C$74 -> 0 | D101: =округл!$D$74 -> 0 | E101: =округл!$E$74 -> 0 | F101: =округл!$F$74 -> 0 | G101: =округл!$G$74 -> 0 | H101: =округл!$H$74 -> 0 | I101: =округл!$I$74 -> 0 | J101: =округл!$J$74 -> 0 | K101: =округл!$K$74 -> 0 | L101: =округл!$L$74 -> 0 | M101: =округл!$M$74 -> 0 | N101: =округл!$N$74 -> 0 | O101: =округл!$O$74 -> 0 | P101: =округл!$P$74 -> 0 | Q101: =округл!$Q$74 -> 0 | R101: =округл!$R$74 -> 0 | S101: =округл!$S$74 -> 0 | T101: =округл!$T$74 -> 0 | U101: =округл!$U$74 -> 0 | V101: =округл!$V$74 -> 0 | W101: =округл!$W$74 -> 0 | X101: =округл!$X$74 -> 0 | Y101: =округл!$Y$74 -> 0 | Z101: =округл!$Z$74 -> 0 | AA101: =округл!$AA$74 -> 0 | AB101: =округл!$AB$74 -> 0 | AC101: =округл!$AC$74 -> 0 | AD101: =округл!$AD$74 -> 0 | AE101: =округл!$AE$74 -> 0 | AF101: =округл!$AF$74 -> 0
A102: 10 | B102: =округл!$B$75 -> 0 | C102: =округл!$C$75 -> 0 | D102: =округл!$D$75 -> 0 | E102: =округл!$E$75 -> 0 | F102: =округл!$F$75 -> 0 | G102: =округл!$G$75 -> 0 | H102: =округл!$H$75 -> 0 | I102: =округл!$I$75 -> 0 | J102: =округл!$J$75 -> 0 | K102: =округл!$K$75 -> 0 | L102: =округл!$L$75 -> 0 | M102: =округл!$M$75 -> 0 | N102: =округл!$N$75 -> 0 | O102: =округл!$O$75 -> 0 | P102: =округл!$P$75 -> 0 | Q102: =округл!$Q$75 -> 0 | R102: =округл!$R$75 -> 0 | S102: =округл!$S$75 -> 0 | T102: =округл!$T$75 -> 0 | U102: =округл!$U$75 -> 0 | V102: =округл!$V$75 -> 0 | W102: =округл!$W$75 -> 0 | X102: =округл!$X$75 -> 0 | Y102: =округл!$Y$75 -> 0 | Z102: =округл!$Z$75 -> 0 | AA102: =округл!$AA$75 -> 0 | AB102: =округл!$AB$75 -> 0 | AC102: =округл!$AC$75 -> 0 | AD102: =округл!$AD$75 -> 0 | AE102: =округл!$AE$75 -> 0 | AF102: =округл!$AF$75 -> 0
A103: 11 | B103: =округл!$B$76 -> 0 | C103: =округл!$C$76 -> 0 | D103: =округл!$D$76 -> 0 | E103: =округл!$E$76 -> 0 | F103: =округл!$F$76 -> 0 | G103: =округл!$G$76 -> 0 | H103: =округл!$H$76 -> 0 | I103: =округл!$I$76 -> 0 | J103: =округл!$J$76 -> 0 | K103: =округл!$K$76 -> 0 | L103: =округл!$L$76 -> 0 | M103: =округл!$M$76 -> 0 | N103: =округл!$N$76 -> 0 | O103: =округл!$O$76 -> 0 | P103: =округл!$P$76 -> 0 | Q103: =округл!$Q$76 -> 0 | R103: =округл!$R$76 -> 0 | S103: =округл!$S$76 -> 0 | T103: =округл!$T$76 -> 0 | U103: =округл!$U$76 -> 0 | V103: =округл!$V$76 -> 0 | W103: =округл!$W$76 -> 0 | X103: =округл!$X$76 -> 0 | Y103: =округл!$Y$76 -> 0 | Z103: =округл!$Z$76 -> 0 | AA103: =округл!$AA$76 -> 0 | AB103: =округл!$AB$76 -> 0 | AC103: =округл!$AC$76 -> 0 | AD103: =округл!$AD$76 -> 0 | AE103: =округл!$AE$76 -> 0 | AF103: =округл!$AF$76 -> 0
A104: 12 | B104: =округл!$B$77 -> 0 | C104: =округл!$C$77 -> 0 | D104: =округл!$D$77 -> 0 | E104: =округл!$E$77 -> 0 | F104: =округл!$F$77 -> 0 | G104: =округл!$G$77 -> 0 | H104: =округл!$H$77 -> 0 | I104: =округл!$I$77 -> 0 | J104: =округл!$J$77 -> 0 | K104: =округл!$K$77 -> 0 | L104: =округл!$L$77 -> 0 | M104: =округл!$M$77 -> 0 | N104: =округл!$N$77 -> 0 | O104: =округл!$O$77 -> 0 | P104: =округл!$P$77 -> 0 | Q104: =округл!$Q$77 -> 0 | R104: =округл!$R$77 -> 0 | S104: =округл!$S$77 -> 0 | T104: =округл!$T$77 -> 0 | U104: =округл!$U$77 -> 0 | V104: =округл!$V$77 -> 0 | W104: =округл!$W$77 -> 0 | X104: =округл!$X$77 -> 0 | Y104: =округл!$Y$77 -> 0 | Z104: =округл!$Z$77 -> 0 | AA104: =округл!$AA$77 -> 0 | AB104: =округл!$AB$77 -> 0 | AC104: =округл!$AC$77 -> 0 | AD104: =округл!$AD$77 -> 0 | AE104: =округл!$AE$77 -> 0 | AF104: =округл!$AF$77 -> 0
A105: 13 | B105: =округл!$B$78 -> 0 | C105: =округл!$C$78 -> 0 | D105: =округл!$D$78 -> 0 | E105: =округл!$E$78 -> 0 | F105: =округл!$F$78 -> 0 | G105: =округл!$G$78 -> 0 | H105: =округл!$H$78 -> 0 | I105: =округл!$I$78 -> 0 | J105: =округл!$J$78 -> 0 | K105: =округл!$K$78 -> 0 | L105: =округл!$L$78 -> 0 | M105: =округл!$M$78 -> 0 | N105: =округл!$N$78 -> 0 | O105: =округл!$O$78 -> 0 | P105: =округл!$P$78 -> 0 | Q105: =округл!$Q$78 -> 0 | R105: =округл!$R$78 -> 0 | S105: =округл!$S$78 -> 0 | T105: =округл!$T$78 -> 0 | U105: =округл!$U$78 -> 0 | V105: =округл!$V$78 -> 0 | W105: =округл!$W$78 -> 0 | X105: =округл!$X$78 -> 0 | Y105: =округл!$Y$78 -> 0 | Z105: =округл!$Z$78 -> 0 | AA105: =округл!$AA$78 -> 0 | AB105: =округл!$AB$78 -> 0 | AC105: =округл!$AC$78 -> 0 | AD105: =округл!$AD$78 -> 0 | AE105: =округл!$AE$78 -> 0 | AF105: =округл!$AF$78 -> 0
A106: 14 | B106: =округл!$B$79 -> 0 | C106: =округл!$C$79 -> 0 | D106: =округл!$D$79 -> 0 | E106: =округл!$E$79 -> 0 | F106: =округл!$F$79 -> 0 | G106: =округл!$G$79 -> 0 | H106: =округл!$H$79 -> 0 | I106: =округл!$I$79 -> 0 | J106: =округл!$J$79 -> 0 | K106: =округл!$K$79 -> 0 | L106: =округл!$L$79 -> 0 | M106: =округл!$M$79 -> 0 | N106: =округл!$N$79 -> 0 | O106: =округл!$O$79 -> 0 | P106: =округл!$P$79 -> 0 | Q106: =округл!$Q$79 -> 0 | R106: =округл!$R$79 -> 0 | S106: =округл!$S$79 -> 0 | T106: =округл!$T$79 -> 0 | U106: =округл!$U$79 -> 0 | V106: =округл!$V$79 -> 0 | W106: =округл!$W$79 -> 0 | X106: =округл!$X$79 -> 0 | Y106: =округл!$Y$79 -> 0 | Z106: =округл!$Z$79 -> 0 | AA106: =округл!$AA$79 -> 0 | AB106: =округл!$AB$79 -> 0 | AC106: =округл!$AC$79 -> 0 | AD106: =округл!$AD$79 -> 0 | AE106: =округл!$AE$79 -> 0 | AF106: =округл!$AF$79 -> 0
A107: 15 | B107: =округл!$B$80 -> 0 | C107: =округл!$C$80 -> 0 | D107: =округл!$D$80 -> 0 | E107: =округл!$E$80 -> 0 | F107: =округл!$F$80 -> 0 | G107: =округл!$G$80 -> 0 | H107: =округл!$H$80 -> 0 | I107: =округл!$I$80 -> 0 | J107: =округл!$J$80 -> 0 | K107: =округл!$K$80 -> 0 | L107: =округл!$L$80 -> 0 | M107: =округл!$M$80 -> 0 | N107: =округл!$N$80 -> 0 | O107: =округл!$O$80 -> 0 | P107: =округл!$P$80 -> 0 | Q107: =округл!$Q$80 -> 0 | R107: =округл!$R$80 -> 0 | S107: =округл!$S$80 -> 0 | T107: =округл!$T$80 -> 0 | U107: =округл!$U$80 -> 0 | V107: =округл!$V$80 -> 0 | W107: =округл!$W$80 -> 0 | X107: =округл!$X$80 -> 0 | Y107: =округл!$Y$80 -> 0 | Z107: =округл!$Z$80 -> 0 | AA107: =округл!$AA$80 -> 0 | AB107: =округл!$AB$80 -> 0 | AC107: =округл!$AC$80 -> 0 | AD107: =округл!$AD$80 -> 0 | AE107: =округл!$AE$80 -> 0 | AF107: =округл!$AF$80 -> 0
A108: 16 | B108: =округл!$B$81 -> 0 | C108: =округл!$C$81 -> 0 | D108: =округл!$D$81 -> 0 | E108: =округл!$E$81 -> 0 | F108: =округл!$F$81 -> 0 | G108: =округл!$G$81 -> 0 | H108: =округл!$H$81 -> 0 | I108: =округл!$I$81 -> 0 | J108: =округл!$J$81 -> 0 | K108: =округл!$K$81 -> 0 | L108: =округл!$L$81 -> 0 | M108: =округл!$M$81 -> 0 | N108: =округл!$N$81 -> 0 | O108: =округл!$O$81 -> 0 | P108: =округл!$P$81 -> 0 | Q108: =округл!$Q$81 -> 0 | R108: =округл!$R$81 -> 0 | S108: =округл!$S$81 -> 0 | T108: =округл!$T$81 -> 0 | U108: =округл!$U$81 -> 0 | V108: =округл!$V$81 -> 0 | W108: =округл!$W$81 -> 0 | X108: =округл!$X$81 -> 0 | Y108: =округл!$Y$81 -> 0 | Z108: =округл!$Z$81 -> 0 | AA108: =округл!$AA$81 -> 0 | AB108: =округл!$AB$81 -> 0 | AC108: =округл!$AC$81 -> 0 | AD108: =округл!$AD$81 -> 0 | AE108: =округл!$AE$81 -> 0 | AF108: =округл!$AF$81 -> 0
A109: 17 | B109: =округл!$B$82 -> 0 | C109: =округл!$C$82 -> 0 | D109: =округл!$D$82 -> 0 | E109: =округл!$E$82 -> 0 | F109: =округл!$F$82 -> 0 | G109: =округл!$G$82 -> 0 | H109: =округл!$H$82 -> 0 | I109: =округл!$I$82 -> 0 | J109: =округл!$J$82 -> 0 | K109: =округл!$K$82 -> 0 | L109: =округл!$L$82 -> 0 | M109: =округл!$M$82 -> 0 | N109: =округл!$N$82 -> 0 | O109: =округл!$O$82 -> 0 | P109: =округл!$P$82 -> 0 | Q109: =округл!$Q$82 -> 0 | R109: =округл!$R$82 -> 0 | S109: =округл!$S$82 -> 0 | T109: =округл!$T$82 -> 0 | U109: =округл!$U$82 -> 0 | V109: =округл!$V$82 -> 0 | W109: =округл!$W$82 -> 0 | X109: =округл!$X$82 -> 0 | Y109: =округл!$Y$82 -> 0 | Z109: =округл!$Z$82 -> 0 | AA109: =округл!$AA$82 -> 0 | AB109: =округл!$AB$82 -> 0 | AC109: =округл!$AC$82 -> 0 | AD109: =округл!$AD$82 -> 0 | AE109: =округл!$AE$82 -> 0 | AF109: =округл!$AF$82 -> 0
A110: 18 | B110: =округл!$B$83 -> 0 | C110: =округл!$C$83 -> 0 | D110: =округл!$D$83 -> 0 | E110: =округл!$E$83 -> 0 | F110: =округл!$F$83 -> 0 | G110: =округл!$G$83 -> 0 | H110: =округл!$H$83 -> 0 | I110: =округл!$I$83 -> 0 | J110: =округл!$J$83 -> 0 | K110: =округл!$K$83 -> 0 | L110: =округл!$L$83 -> 0 | M110: =округл!$M$83 -> 0 | N110: =округл!$N$83 -> 0 | O110: =округл!$O$83 -> 0 | P110: =округл!$P$83 -> 0 | Q110: =округл!$Q$83 -> 0 | R110: =округл!$R$83 -> 0 | S110: =округл!$S$83 -> 0 | T110: =округл!$T$83 -> 0 | U110: =округл!$U$83 -> 0 | V110: =округл!$V$83 -> 0 | W110: =округл!$W$83 -> 0 | X110: =округл!$X$83 -> 0 | Y110: =округл!$Y$83 -> 0 | Z110: =округл!$Z$83 -> 0 | AA110: =округл!$AA$83 -> 0 | AB110: =округл!$AB$83 -> 0 | AC110: =округл!$AC$83 -> 0 | AD110: =округл!$AD$83 -> 0 | AE110: =округл!$AE$83 -> 0 | AF110: =округл!$AF$83 -> 0
A111: 19 | B111: =округл!$B$84 -> 0 | C111: =округл!$C$84 -> 0 | D111: =округл!$D$84 -> 0 | E111: =округл!$E$84 -> 0 | F111: =округл!$F$84 -> 0 | G111: =округл!$G$84 -> 0 | H111: =округл!$H$84 -> 0 | I111: =округл!$I$84 -> 0 | J111: =округл!$J$84 -> 0 | K111: =округл!$K$84 -> 0 | L111: =округл!$L$84 -> 0 | M111: =округл!$M$84 -> 0 | N111: =округл!$N$84 -> 0 | O111: =округл!$O$84 -> 0 | P111: =округл!$P$84 -> 0 | Q111: =округл!$Q$84 -> 0 | R111: =округл!$R$84 -> 0 | S111: =округл!$S$84 -> 0 | T111: =округл!$T$84 -> 0 | U111: =округл!$U$84 -> 0 | V111: =округл!$V$84 -> 0 | W111: =округл!$W$84 -> 0 | X111: =округл!$X$84 -> 0 | Y111: =округл!$Y$84 -> 0 | Z111: =округл!$Z$84 -> 0 | AA111: =округл!$AA$84 -> 0 | AB111: =округл!$AB$84 -> 0 | AC111: =округл!$AC$84 -> 0 | AD111: =округл!$AD$84 -> 0 | AE111: =округл!$AE$84 -> 0 | AF111: =округл!$AF$84 -> 0
A112: 20 | B112: =округл!$B$85 -> 0 | C112: =округл!$C$85 -> 0 | D112: =округл!$D$85 -> 0 | E112: =округл!$E$85 -> 0 | F112: =округл!$F$85 -> 0 | G112: =округл!$G$85 -> 0 | H112: =округл!$H$85 -> 0 | I112: =округл!$I$85 -> 0 | J112: =округл!$J$85 -> 0 | K112: =округл!$K$85 -> 0 | L112: =округл!$L$85 -> 0 | M112: =округл!$M$85 -> 0 | N112: =округл!$N$85 -> 0 | O112: =округл!$O$85 -> 0 | P112: =округл!$P$85 -> 0 | Q112: =округл!$Q$85 -> 0 | R112: =округл!$R$85 -> 0 | S112: =округл!$S$85 -> 0 | T112: =округл!$T$85 -> 0 | U112: =округл!$U$85 -> 0 | V112: =округл!$V$85 -> 0 | W112: =округл!$W$85 -> 0 | X112: =округл!$X$85 -> 0 | Y112: =округл!$Y$85 -> 0 | Z112: =округл!$Z$85 -> 0 | AA112: =округл!$AA$85 -> 0 | AB112: =округл!$AB$85 -> 0 | AC112: =округл!$AC$85 -> 0 | AD112: =округл!$AD$85 -> 0 | AE112: =округл!$AE$85 -> 0 | AF112: =округл!$AF$85 -> 0
A113: 21 | B113: =округл!$B$86 -> 0 | C113: =округл!$C$86 -> 0 | D113: =округл!$D$86 -> 0 | E113: =округл!$E$86 -> 0 | F113: =округл!$F$86 -> 0 | G113: =округл!$G$86 -> 0 | H113: =округл!$H$86 -> 0 | I113: =округл!$I$86 -> 0 | J113: =округл!$J$86 -> 0 | K113: =округл!$K$86 -> 0 | L113: =округл!$L$86 -> 0 | M113: =округл!$M$86 -> 0 | N113: =округл!$N$86 -> 0 | O113: =округл!$O$86 -> 0 | P113: =округл!$P$86 -> 0 | Q113: =округл!$Q$86 -> 0 | R113: =округл!$R$86 -> 0 | S113: =округл!$S$86 -> 0 | T113: =округл!$T$86 -> 0 | U113: =округл!$U$86 -> 0 | V113: =округл!$V$86 -> 0 | W113: =округл!$W$86 -> 0 | X113: =округл!$X$86 -> 0 | Y113: =округл!$Y$86 -> 0 | Z113: =округл!$Z$86 -> 0 | AA113: =округл!$AA$86 -> 0 | AB113: =округл!$AB$86 -> 0 | AC113: =округл!$AC$86 -> 0 | AD113: =округл!$AD$86 -> 0 | AE113: =округл!$AE$86 -> 0 | AF113: =округл!$AF$86 -> 0
A114: 22 | B114: =округл!$B$87 -> 0 | C114: =округл!$C$87 -> 0 | D114: =округл!$D$87 -> 0 | E114: =округл!$E$87 -> 0 | F114: =округл!$F$87 -> 0 | G114: =округл!$G$87 -> 0 | H114: =округл!$H$87 -> 0 | I114: =округл!$I$87 -> 0 | J114: =округл!$J$87 -> 0 | K114: =округл!$K$87 -> 0 | L114: =округл!$L$87 -> 0 | M114: =округл!$M$87 -> 0 | N114: =округл!$N$87 -> 0 | O114: =округл!$O$87 -> 0 | P114: =округл!$P$87 -> 0 | Q114: =округл!$Q$87 -> 0 | R114: =округл!$R$87 -> 0 | S114: =округл!$S$87 -> 0 | T114: =округл!$T$87 -> 0 | U114: =округл!$U$87 -> 0 | V114: =округл!$V$87 -> 0 | W114: =округл!$W$87 -> 0 | X114: =округл!$X$87 -> 0 | Y114: =округл!$Y$87 -> 0 | Z114: =округл!$Z$87 -> 0 | AA114: =округл!$AA$87 -> 0 | AB114: =округл!$AB$87 -> 0 | AC114: =округл!$AC$87 -> 0 | AD114: =округл!$AD$87 -> 0 | AE114: =округл!$AE$87 -> 0 | AF114: =округл!$AF$87 -> 0
A115: 23 | B115: =округл!$B$88 -> 0 | C115: =округл!$C$88 -> 0 | D115: =округл!$D$88 -> 0 | E115: =округл!$E$88 -> 0 | F115: =округл!$F$88 -> 0 | G115: =округл!$G$88 -> 0 | H115: =округл!$H$88 -> 0 | I115: =округл!$I$88 -> 0 | J115: =округл!$J$88 -> 0 | K115: =округл!$K$88 -> 0 | L115: =округл!$L$88 -> 0 | M115: =округл!$M$88 -> 0 | N115: =округл!$N$88 -> 0 | O115: =округл!$O$88 -> 0 | P115: =округл!$P$88 -> 0 | Q115: =округл!$Q$88 -> 0 | R115: =округл!$R$88 -> 0 | S115: =округл!$S$88 -> 0 | T115: =округл!$T$88 -> 0 | U115: =округл!$U$88 -> 0 | V115: =округл!$V$88 -> 0 | W115: =округл!$W$88 -> 0 | X115: =округл!$X$88 -> 0 | Y115: =округл!$Y$88 -> 0 | Z115: =округл!$Z$88 -> 0 | AA115: =округл!$AA$88 -> 0 | AB115: =округл!$AB$88 -> 0 | AC115: =округл!$AC$88 -> 0 | AD115: =округл!$AD$88 -> 0 | AE115: =округл!$AE$88 -> 0 | AF115: =округл!$AF$88 -> 0
A116: 24 | B116: =округл!$B$89 -> 0 | C116: =округл!$C$89 -> 0 | D116: =округл!$D$89 -> 0 | E116: =округл!$E$89 -> 0 | F116: =округл!$F$89 -> 0 | G116: =округл!$G$89 -> 0 | H116: =округл!$H$89 -> 0 | I116: =округл!$I$89 -> 0 | J116: =округл!$J$89 -> 0 | K116: =округл!$K$89 -> 0 | L116: =округл!$L$89 -> 0 | M116: =округл!$M$89 -> 0 | N116: =округл!$N$89 -> 0 | O116: =округл!$O$89 -> 0 | P116: =округл!$P$89 -> 0 | Q116: =округл!$Q$89 -> 0 | R116: =округл!$R$89 -> 0 | S116: =округл!$S$89 -> 0 | T116: =округл!$T$89 -> 0 | U116: =округл!$U$89 -> 0 | V116: =округл!$V$89 -> 0 | W116: =округл!$W$89 -> 0 | X116: =округл!$X$89 -> 0 | Y116: =округл!$Y$89 -> 0 | Z116: =округл!$Z$89 -> 0 | AA116: =округл!$AA$89 -> 0 | AB116: =округл!$AB$89 -> 0 | AC116: =округл!$AC$89 -> 0 | AD116: =округл!$AD$89 -> 0 | AE116: =округл!$AE$89 -> 0 | AF116: =округл!$AF$89 -> 0
